Council Name,Date,TransNo,Amount � (Excl VAT),Supplier name,Supplier Category,Expense Area,Expense Type,Expense Code
London Borough of Sutton,30/04/2024,20075071,"6,000.00",31ten Consulting Ltd,FINANCIAL / INSURANCE INSTNS,Resources,Consultancy Services - Other,A44065
London Borough of Sutton,30/04/2024,20075673,"15,271.00",31ten Consulting Ltd,FINANCIAL / INSURANCE INSTNS,Resources,Professional Fees,A44066
London Borough of Sutton,03/05/2024,50491025,500.00,REDACTED - PERSONAL DATA,GRANTS & EX GRATIA PAYMENTS,Environment Housing and Neighbourhoods,"Grants, Contributions & Donations",A47005
London Borough of Sutton,30/04/2024,20075777,"2,320.00",REDACTED - PERSONAL DATA,TEMP STAFF & CONSULTANCY,Health and Wellbeing,Provider Contract Payments,A44290
London Borough of Sutton,07/05/2024,50493638,649.80,A R G Europe Limited,CONSTRUCTION INDUSTRY,HRA,Payments to Contractors,C14000
London Borough of Sutton,21/05/2024,50498643,763.98,A R G Europe Limited,CONSTRUCTION INDUSTRY,HRA,Payments to Contractors,C14000
London Borough of Sutton,21/05/2024,50498644,"1,490.00",A R G Europe Limited,CONSTRUCTION INDUSTRY,HRA,Payments to Contractors,C14000
London Borough of Sutton,21/05/2024,50498646,"1,073.90",A R G Europe Limited,CONSTRUCTION INDUSTRY,HRA,Payments to Contractors,C14000
London Borough of Sutton,23/05/2024,50497134,"9,776.16",A Step Beyond Ltd,SOCIAL SERVICES - OTHER,People's Services,Supported Living,A56088
London Borough of Sutton,23/05/2024,50497134,"3,666.06",A Step Beyond Ltd,SOCIAL SERVICES - OTHER,People's Services,Supported Living,A56088
London Borough of Sutton,23/05/2024,50497134,643.30,A Step Beyond Ltd,SOCIAL SERVICES - OTHER,People's Services,Supported Living,A56088
London Borough of Sutton,23/05/2024,50497134,960.15,A Step Beyond Ltd,SOCIAL SERVICES - OTHER,People's Services,Supported Living,A56088
London Borough of Sutton,01/04/2024,50492561,"24,250.00",A Wilderness Way Ltd,CHILDREN'S SERVICES - FOSTERING & ADOPTION SERVICES,People's Services,Residential Care-Children,A56115
London Borough of Sutton,10/05/2024,50492820,"4,560.00",Abbey Care Centre,SOCIAL SERVICES RESIDENTIAL,People's Services,Nursing Care Short Term,A56026
London Borough of Sutton,10/05/2024,50492820,-878.84,Abbey Care Centre,SOCIAL SERVICES RESIDENTIAL,People's Services,Nursing Care - 3rd party top up payment,A56023
London Borough of Sutton,10/05/2024,50492859,"4,096.12",Abbey Care Centre,SOCIAL SERVICES RESIDENTIAL,People's Services,Nursing Care - Ext Provider,A56025
London Borough of Sutton,10/05/2024,50492859,-878.84,Abbey Care Centre,SOCIAL SERVICES RESIDENTIAL,People's Services,Nursing Care - 3rd party top up payment,A56023
London Borough of Sutton,10/05/2024,50492890,"4,678.84",Abbey Care Centre,SOCIAL SERVICES RESIDENTIAL,People's Services,Nursing Care - Ext Provider,A56025
London Borough of Sutton,10/05/2024,50492890,-878.84,Abbey Care Centre,SOCIAL SERVICES RESIDENTIAL,People's Services,Nursing Care - 3rd party top up payment,A56023
London Borough of Sutton,10/05/2024,50493120,-750.40,Abbey Care Centre,SOCIAL SERVICES RESIDENTIAL,People's Services,Nursing Care - 3rd party top up payment,A56023
London Borough of Sutton,10/05/2024,50493120,"3,848.24",Abbey Care Centre,SOCIAL SERVICES RESIDENTIAL,People's Services,Nursing Care - Ext Provider,A56025
London Borough of Sutton,10/05/2024,50493120,"-1,492.80",Abbey Care Centre,SOCIAL SERVICES RESIDENTIAL,People's Services,Nursing Care - 3rd party top up payment,A56023
London Borough of Sutton,31/05/2024,50499020,"5,049.00",ABC Pre-School Beddington LLP,GRANTS & EX GRATIA PAYMENTS,People's Services,Payment - Nursery Funding,A51056
London Borough of Sutton,31/05/2024,50499149,"2,983.05",ABC Pre-School Beddington LLP,GRANTS & EX GRATIA PAYMENTS,People's Services,Payment - Nursery Funding,A51056
London Borough of Sutton,01/05/2024,20075822,"71,446.00",Abel Living,ACCOMMODATION BED & BREAKFAST,Environment Housing and Neighbourhoods,Bed & Breakfast,A56000
London Borough of Sutton,01/04/2024,20076193,720.00,Abel Living,ACCOMMODATION BED & BREAKFAST,Environment Housing and Neighbourhoods,Bed & Breakfast,A56000
London Borough of Sutton,01/04/2024,20076194,"1,305.00",Abel Living,ACCOMMODATION BED & BREAKFAST,Environment Housing and Neighbourhoods,Bed & Breakfast,A56000
London Borough of Sutton,08/04/2024,20073724,"7,304.59",Absolute Care Services Ltd,SOCIAL SERVICES DAY CARE,People's Services,Homecare Core Services,A56020
London Borough of Sutton,29/04/2024,20075184,"6,298.11",Absolute Care Services Ltd,SOCIAL SERVICES DAY CARE,People's Services,Homecare Core Services,A56020
London Borough of Sutton,15/04/2024,20075551,"7,487.20",Absolute Care Services Ltd,SOCIAL SERVICES DAY CARE,People's Services,Homecare Core Services,A56020
London Borough of Sutton,29/04/2024,20075552,"7,487.20",Absolute Care Services Ltd,SOCIAL SERVICES DAY CARE,People's Services,Homecare Core Services,A56020
London Borough of Sutton,22/04/2024,20075553,"7,487.20",Absolute Care Services Ltd,SOCIAL SERVICES DAY CARE,People's Services,Homecare Core Services,A56020
London Borough of Sutton,06/05/2024,20075705,"7,487.20",Absolute Care Services Ltd,SOCIAL SERVICES DAY CARE,People's Services,Homecare Core Services,A56020
London Borough of Sutton,06/05/2024,20075706,"6,298.11",Absolute Care Services Ltd,SOCIAL SERVICES DAY CARE,People's Services,Homecare Core Services,A56020
London Borough of Sutton,06/05/2024,20075707,"6,530.27",Absolute Care Services Ltd,SOCIAL SERVICES DAY CARE,People's Services,Homecare Core Services,A56020
London Borough of Sutton,13/05/2024,20076118,"6,530.27",Absolute Care Services Ltd,SOCIAL SERVICES DAY CARE,People's Services,Homecare Core Services,A56020
London Borough of Sutton,13/05/2024,20076119,"7,487.20",Absolute Care Services Ltd,SOCIAL SERVICES DAY CARE,People's Services,Homecare Core Services,A56020
London Borough of Sutton,20/05/2024,20076587,"7,487.20",Absolute Care Services Ltd,SOCIAL SERVICES DAY CARE,People's Services,Homecare Core Services,A56020
London Borough of Sutton,20/05/2024,20076588,"6,298.11",Absolute Care Services Ltd,SOCIAL SERVICES DAY CARE,People's Services,Homecare Core Services,A56020
London Borough of Sutton,27/05/2024,20077036,"6,530.27",Absolute Care Services Ltd,SOCIAL SERVICES DAY CARE,People's Services,Homecare Core Services,A56020
London Borough of Sutton,27/05/2024,20077037,"6,298.11",Absolute Care Services Ltd,SOCIAL SERVICES DAY CARE,People's Services,Homecare Core Services,A56020
London Borough of Sutton,27/05/2024,20077039,"7,487.20",Absolute Care Services Ltd,SOCIAL SERVICES DAY CARE,People's Services,Homecare Core Services,A56020
London Borough of Sutton,21/04/2024,50490892,496.17,Absolute Care Services Ltd,SOCIAL SERVICES DAY CARE,People's Services,Home Care Services,A56019
London Borough of Sutton,21/04/2024,50490892,248.08,Absolute Care Services Ltd,SOCIAL SERVICES DAY CARE,People's Services,Home Care Services,A56019
London Borough of Sutton,21/04/2024,50490910,482.87,Absolute Care Services Ltd,SOCIAL SERVICES DAY CARE,People's Services,Home Care Services,A56019
London Borough of Sutton,21/04/2024,50490910,62.02,Absolute Care Services Ltd,SOCIAL SERVICES DAY CARE,People's Services,Home Care Services,A56019
London Borough of Sutton,21/04/2024,50490959,35.44,Absolute Care Services Ltd,SOCIAL SERVICES DAY CARE,People's Services,Home Care Services,A56019
London Borough of Sutton,21/04/2024,50490959,558.19,Absolute Care Services Ltd,SOCIAL SERVICES DAY CARE,People's Services,Home Care Services,A56019
London Borough of Sutton,21/04/2024,50490982,421.91,Absolute Care Services Ltd,SOCIAL SERVICES DAY CARE,People's Services,Home Care Services,A56019
London Borough of Sutton,21/04/2024,50490982,68.88,Absolute Care Services Ltd,SOCIAL SERVICES DAY CARE,People's Services,Home Care Services,A56019
London Borough of Sutton,21/04/2024,50490982,120.55,Absolute Care Services Ltd,SOCIAL SERVICES DAY CARE,People's Services,Home Care Services,A56019
London Borough of Sutton,21/04/2024,50490992,558.21,Absolute Care Services Ltd,SOCIAL SERVICES DAY CARE,People's Services,Home Care Services,A56019
London Borough of Sutton,21/04/2024,50490992,17.72,Absolute Care Services Ltd,SOCIAL SERVICES DAY CARE,People's Services,Home Care Services,A56019
London Borough of Sutton,28/04/2024,50491736,153.16,Absolute Care Services Ltd,SOCIAL SERVICES DAY CARE,People's Services,Home Care Services,A56019
London Borough of Sutton,28/04/2024,50491736,374.03,Absolute Care Services Ltd,SOCIAL SERVICES DAY CARE,People's Services,Home Care Services,A56019
London Borough of Sutton,28/04/2024,50491824,496.17,Absolute Care Services Ltd,SOCIAL SERVICES DAY CARE,People's Services,Home Care Services,A56019
London Borough of Sutton,28/04/2024,50491824,248.08,Absolute Care Services Ltd,SOCIAL SERVICES DAY CARE,People's Services,Home Care Services,A56019
London Borough of Sutton,28/04/2024,50491832,482.87,Absolute Care Services Ltd,SOCIAL SERVICES DAY CARE,People's Services,Home Care Services,A56019
London Borough of Sutton,28/04/2024,50491832,62.02,Absolute Care Services Ltd,SOCIAL SERVICES DAY CARE,People's Services,Home Care Services,A56019
London Borough of Sutton,28/04/2024,50491866,385.22,Absolute Care Services Ltd,SOCIAL SERVICES DAY CARE,People's Services,Home Care Services,A56019
London Borough of Sutton,28/04/2024,50491866,62.90,Absolute Care Services Ltd,SOCIAL SERVICES DAY CARE,People's Services,Home Care Services,A56019
London Borough of Sutton,28/04/2024,50491866,110.06,Absolute Care Services Ltd,SOCIAL SERVICES DAY CARE,People's Services,Home Care Services,A56019
London Borough of Sutton,28/04/2024,50491886,558.18,Absolute Care Services Ltd,SOCIAL SERVICES DAY CARE,People's Services,Home Care Services,A56019
London Borough of Sutton,28/04/2024,50491886,17.72,Absolute Care Services Ltd,SOCIAL SERVICES DAY CARE,People's Services,Home Care Services,A56019
London Borough of Sutton,28/04/2024,50491908,35.44,Absolute Care Services Ltd,SOCIAL SERVICES DAY CARE,People's Services,Home Care Services,A56019
London Borough of Sutton,28/04/2024,50491908,558.19,Absolute Care Services Ltd,SOCIAL SERVICES DAY CARE,People's Services,Home Care Services,A56019
London Borough of Sutton,21/04/2024,50493525,93.03,Absolute Care Services Ltd,SOCIAL SERVICES DAY CARE,People's Services,Home Care Services,A56019
London Borough of Sutton,21/04/2024,50493525,713.23,Absolute Care Services Ltd,SOCIAL SERVICES DAY CARE,People's Services,Home Care Services,A56019
London Borough of Sutton,28/04/2024,50493526,93.03,Absolute Care Services Ltd,SOCIAL SERVICES DAY CARE,People's Services,Home Care Services,A56019
London Borough of Sutton,28/04/2024,50493526,713.23,Absolute Care Services Ltd,SOCIAL SERVICES DAY CARE,People's Services,Home Care Services,A56019
London Borough of Sutton,03/03/2024,50493527,64.85,Absolute Care Services Ltd,SOCIAL SERVICES DAY CARE,People's Services,Home Care Services,A56019
London Borough of Sutton,03/03/2024,50493527,497.15,Absolute Care Services Ltd,SOCIAL SERVICES DAY CARE,People's Services,Home Care Services,A56019
London Borough of Sutton,05/05/2024,50494427,385.22,Absolute Care Services Ltd,SOCIAL SERVICES DAY CARE,People's Services,Home Care Services,A56019
London Borough of Sutton,05/05/2024,50494427,62.90,Absolute Care Services Ltd,SOCIAL SERVICES DAY CARE,People's Services,Home Care Services,A56019
London Borough of Sutton,05/05/2024,50494427,110.06,Absolute Care Services Ltd,SOCIAL SERVICES DAY CARE,People's Services,Home Care Services,A56019
London Borough of Sutton,05/05/2024,50494435,558.18,Absolute Care Services Ltd,SOCIAL SERVICES DAY CARE,People's Services,Home Care Services,A56019
London Borough of Sutton,05/05/2024,50494435,17.72,Absolute Care Services Ltd,SOCIAL SERVICES DAY CARE,People's Services,Home Care Services,A56019
London Borough of Sutton,05/05/2024,50494447,496.17,Absolute Care Services Ltd,SOCIAL SERVICES DAY CARE,People's Services,Home Care Services,A56019
London Borough of Sutton,05/05/2024,50494447,248.08,Absolute Care Services Ltd,SOCIAL SERVICES DAY CARE,People's Services,Home Care Services,A56019
London Borough of Sutton,05/05/2024,50494448,482.87,Absolute Care Services Ltd,SOCIAL SERVICES DAY CARE,People's Services,Home Care Services,A56019
London Borough of Sutton,05/05/2024,50494448,62.02,Absolute Care Services Ltd,SOCIAL SERVICES DAY CARE,People's Services,Home Care Services,A56019
London Borough of Sutton,05/05/2024,50494527,35.44,Absolute Care Services Ltd,SOCIAL SERVICES DAY CARE,People's Services,Home Care Services,A56019
London Borough of Sutton,05/05/2024,50494527,558.18,Absolute Care Services Ltd,SOCIAL SERVICES DAY CARE,People's Services,Home Care Services,A56019
London Borough of Sutton,05/05/2024,50495237,"2,846.27",Absolute Care Services Ltd,SOCIAL SERVICES DAY CARE,People's Services,Home Care Services,A56019
London Borough of Sutton,05/05/2024,50498824,93.03,Absolute Care Services Ltd,SOCIAL SERVICES DAY CARE,People's Services,Home Care Services,A56019
London Borough of Sutton,05/05/2024,50498824,713.23,Absolute Care Services Ltd,SOCIAL SERVICES DAY CARE,People's Services,Home Care Services,A56019
London Borough of Sutton,11/04/2024,50492037,"2,289.00",Acacia Education Ltd,CHILDREN'S SERVICES - SEN SERVICES,People's Services,Independent Tutoring Fees,A56129
London Borough of Sutton,01/05/2024,20075398,"260,699.59",Access UK Limited,TAXI AND COACH HIRE,People's Services,Childrens Social Care Transport,A32009
London Borough of Sutton,08/05/2024,20075823,"223,027.28",Access UK Limited,TAXI AND COACH HIRE,People's Services,Childrens Social Care Transport,A32009
London Borough of Sutton,15/05/2024,20076276,"174,879.36",Access UK Limited,TAXI AND COACH HIRE,People's Services,Childrens Social Care Transport,A32009
London Borough of Sutton,22/05/2024,20076770,"258,965.04",Access UK Limited,TAXI AND COACH HIRE,People's Services,Childrens Social Care Transport,A32009
London Borough of Sutton,29/05/2024,20077184,"168,683.60",Access UK Limited,TAXI AND COACH HIRE,People's Services,Childrens Social Care Transport,A32009
London Borough of Sutton,18/05/2024,20076570,"2,500.00",Access UK Ltd,IT EQUIPMENT MAINTENANCE,People's Services,Other Supplies & Services,A44291
London Borough of Sutton,19/05/2024,20076572,"11,391.46",Access UK Ltd,IT EQUIPMENT MAINTENANCE,Resources,IT Software Maintenance,A45045
London Borough of Sutton,19/05/2024,20076573,"7,621.81",Access UK Ltd,IT EQUIPMENT MAINTENANCE,Resources,IT Software Maintenance,A45045
London Borough of Sutton,10/05/2024,50492734,"8,103.64",Achieve Together Limited,SOCIAL SERVICES RESIDENTIAL,People's Services,Residential Care - Ext Provider,A56114
London Borough of Sutton,10/05/2024,50492734,-467.20,Achieve Together Limited,SOCIAL SERVICES RESIDENTIAL,People's Services,Residential Care - Client Cont ( Net Paymt ),A56113
London Borough of Sutton,10/05/2024,50492757,"5,100.00",Achieve Together Limited,SOCIAL SERVICES RESIDENTIAL,People's Services,Residential Care - Ext Provider,A56114
London Borough of Sutton,10/05/2024,50492786,-537.00,Achieve Together Limited,SOCIAL SERVICES RESIDENTIAL,People's Services,Residential Care - Client Cont ( Net Paymt ),A56113
London Borough of Sutton,10/05/2024,50492786,"4,682.44",Achieve Together Limited,SOCIAL SERVICES RESIDENTIAL,People's Services,Residential Care - Ext Provider,A56114
London Borough of Sutton,10/05/2024,50492814,-549.00,Achieve Together Limited,SOCIAL SERVICES RESIDENTIAL,People's Services,Residential Care - Client Cont ( Net Paymt ),A56113
London Borough of Sutton,10/05/2024,50492814,390.00,Achieve Together Limited,SOCIAL SERVICES RESIDENTIAL,People's Services,One to One Care,A56108
London Borough of Sutton,10/05/2024,50492814,"4,375.48",Achieve Together Limited,SOCIAL SERVICES RESIDENTIAL,People's Services,Residential Care - Ext Provider,A56114
London Borough of Sutton,10/05/2024,50493102,"5,810.56",Achieve Together Limited,SOCIAL SERVICES RESIDENTIAL,People's Services,Residential Care - Ext Provider,A56114
London Borough of Sutton,10/05/2024,50493110,"7,303.88",Achieve Together Limited,SOCIAL SERVICES RESIDENTIAL,People's Services,Residential Care - Ext Provider,A56114
London Borough of Sutton,01/05/2024,50492151,"3,235.50",ACHIEVE TOGETHER LTD,SOCIAL SERVICES RESIDENTIAL,People's Services,Home Care Services,A56019
London Borough of Sutton,10/05/2024,50492643,-483.20,ACHIEVE TOGETHER LTD,SOCIAL SERVICES RESIDENTIAL,People's Services,Residential Care - Client Cont ( Net Paymt ),A56113
London Borough of Sutton,10/05/2024,50492643,"5,620.60",ACHIEVE TOGETHER LTD,SOCIAL SERVICES RESIDENTIAL,People's Services,Residential Care - Ext Provider,A56114
London Borough of Sutton,10/05/2024,50492702,"11,047.88",ACHIEVE TOGETHER LTD,SOCIAL SERVICES RESIDENTIAL,People's Services,Residential Care - Ext Provider,A56114
London Borough of Sutton,10/05/2024,50492714,"8,716.00",ACHIEVE TOGETHER LTD,SOCIAL SERVICES RESIDENTIAL,People's Services,Residential Care - Ext Provider,A56114
London Borough of Sutton,10/05/2024,50492722,"4,653.76",ACHIEVE TOGETHER LTD,SOCIAL SERVICES RESIDENTIAL,People's Services,Residential Care - Ext Provider,A56114
London Borough of Sutton,23/05/2024,50497073,"4,878.86",ACHIEVE TOGETHER LTD,SOCIAL SERVICES RESIDENTIAL,People's Services,Supported Living,A56088
London Borough of Sutton,23/05/2024,50497080,449.45,ACHIEVE TOGETHER LTD,SOCIAL SERVICES RESIDENTIAL,People's Services,Supported Living,A56088
London Borough of Sutton,23/05/2024,50497080,994.84,ACHIEVE TOGETHER LTD,SOCIAL SERVICES RESIDENTIAL,People's Services,Supported Living,A56088
London Borough of Sutton,23/05/2024,50497080,"3,315.45",ACHIEVE TOGETHER LTD,SOCIAL SERVICES RESIDENTIAL,People's Services,Supported Living,A56088
London Borough of Sutton,23/05/2024,50497080,"2,301.88",ACHIEVE TOGETHER LTD,SOCIAL SERVICES RESIDENTIAL,People's Services,Supported Living,A56088
London Borough of Sutton,23/05/2024,50497086,"1,087.48",ACHIEVE TOGETHER LTD,SOCIAL SERVICES RESIDENTIAL,People's Services,Supported Living,A56088
London Borough of Sutton,23/05/2024,50497086,"1,087.48",ACHIEVE TOGETHER LTD,SOCIAL SERVICES RESIDENTIAL,People's Services,Supported Living,A56088
London Borough of Sutton,23/05/2024,50497086,908.12,ACHIEVE TOGETHER LTD,SOCIAL SERVICES RESIDENTIAL,People's Services,Supported Living,A56088
London Borough of Sutton,23/05/2024,50497124,"1,385.34",ACHIEVE TOGETHER LTD,SOCIAL SERVICES RESIDENTIAL,People's Services,Supported Living,A56088
London Borough of Sutton,23/05/2024,50497124,"2,691.50",ACHIEVE TOGETHER LTD,SOCIAL SERVICES RESIDENTIAL,People's Services,Supported Living,A56088
London Borough of Sutton,23/05/2024,50497124,429.12,ACHIEVE TOGETHER LTD,SOCIAL SERVICES RESIDENTIAL,People's Services,Supported Living,A56088
London Borough of Sutton,23/05/2024,50497152,"2,446.83",ACHIEVE TOGETHER LTD,SOCIAL SERVICES RESIDENTIAL,People's Services,Supported Living,A56088
London Borough of Sutton,23/05/2024,50497152,634.62,ACHIEVE TOGETHER LTD,SOCIAL SERVICES RESIDENTIAL,People's Services,Supported Living,A56088
London Borough of Sutton,23/05/2024,50497152,656.01,ACHIEVE TOGETHER LTD,SOCIAL SERVICES RESIDENTIAL,People's Services,Supported Living,A56088
London Borough of Sutton,23/05/2024,50497175,"3,012.32",ACHIEVE TOGETHER LTD,SOCIAL SERVICES RESIDENTIAL,People's Services,Supported Living,A56088
London Borough of Sutton,23/05/2024,50497175,"3,184.32",ACHIEVE TOGETHER LTD,SOCIAL SERVICES RESIDENTIAL,People's Services,Supported Living,A56088
London Borough of Sutton,01/05/2024,50492596,"32,585.70",Achieving Above Average Ltd,CHILDREN'S SERVICES - RESIDENTIAL,People's Services,Residential Care-Children,A56115
London Borough of Sutton,18/03/2024,50495457,"4,982.00",Achieving For Children Limited,SOCIAL SERVICES - OTHER,People's Services,Special Educational Needs,A51015
London Borough of Sutton,10/05/2024,50492686,"4,231.40",CARELODGE GROUP LTD,SOCIAL SERVICES RESIDENTIAL,People's Services,Residential Care - Ext Provider,A56114
London Borough of Sutton,10/05/2024,50492708,"5,844.00",Acorn Residential Home,SOCIAL SERVICES RESIDENTIAL,People's Services,Residential Care - Ext Provider,A56114
London Borough of Sutton,03/05/2024,50493805,"1,478.00",Activate Learning,ACADEMIC INSTNS - OTHER,People's Services,Top-up Funding,A51016
London Borough of Sutton,10/05/2024,50492685,"6,441.84",Active Prospects,SOCIAL SERVICES DAY CARE,People's Services,Residential Care - Ext Provider,A56114
London Borough of Sutton,10/05/2024,50492755,"8,918.80",Active Prospects,SOCIAL SERVICES DAY CARE,People's Services,Residential Care - Ext Provider,A56114
London Borough of Sutton,10/05/2024,50492755,-702.40,Active Prospects,SOCIAL SERVICES DAY CARE,People's Services,Residential Care - Client Cont ( Net Paymt ),A56113
London Borough of Sutton,15/05/2024,20076338,"1,885.00",ADCS LTD,CONFERENCES,People's Services,Conference Expenses,A43075
London Borough of Sutton,10/05/2024,50492782,"1,458.00",Admiral Healthcare Ltd.,SOCIAL SERVICES RESIDENTIAL,People's Services,Residential Care - Ext Provider,A56114
London Borough of Sutton,30/04/2024,20075487,"6,934.64",Advanced Demand Side Management Ltd,CONFERENCES,Resources,Water Services,A24005
London Borough of Sutton,30/04/2024,20076747,"2,763.87",Advanced Demand Side Management Ltd,CONFERENCES,Resources,Water Services,A24005
London Borough of Sutton,30/04/2024,20076748,"2,529.02",Advanced Demand Side Management Ltd,CONFERENCES,Resources,Water Services,A24005
London Borough of Sutton,28/04/2023,20075817,592.00,Advocacy For All,LEGAL & PROFESSIONAL SERVICES,People's Services,Client Care/Assistance,A61011
London Borough of Sutton,24/04/2024,50492517,"3,381.30",Affinity Fostering Services Ltd,CHILDREN'S SERVICES - FOSTERING & ADOPTION SERVICES,People's Services,Foster Parents Support,A44110
London Borough of Sutton,24/04/2024,50492518,"3,413.70",Affinity Fostering Services Ltd,CHILDREN'S SERVICES - FOSTERING & ADOPTION SERVICES,People's Services,Foster Parents Support,A44110
London Borough of Sutton,24/04/2024,50492519,"3,595.50",Affinity Fostering Services Ltd,CHILDREN'S SERVICES - FOSTERING & ADOPTION SERVICES,People's Services,Foster Parents Support,A44110
London Borough of Sutton,24/04/2024,50492524,"3,210.30",Affinity Fostering Services Ltd,CHILDREN'S SERVICES - FOSTERING & ADOPTION SERVICES,People's Services,Foster Parents Support,A44110
London Borough of Sutton,23/05/2024,50497167,"2,024.22",Agincare Enable Limited,SOCIAL SERVICES RESIDENTIAL,People's Services,One to One Care,A56108
London Borough of Sutton,23/05/2024,50497167,"2,024.22",Agincare Enable Limited,SOCIAL SERVICES RESIDENTIAL,People's Services,Supported Living,A56088
London Borough of Sutton,23/05/2024,50497167,455.70,Agincare Enable Limited,SOCIAL SERVICES RESIDENTIAL,People's Services,Supported Living,A56088
London Borough of Sutton,10/05/2024,50492673,"6,600.00",Leighton House Ltd,SOCIAL SERVICES RESIDENTIAL,People's Services,Nursing Care Short Term,A56026
London Borough of Sutton,10/05/2024,50492673,"-3,300.00",Leighton House Ltd,SOCIAL SERVICES RESIDENTIAL,People's Services,Nursing Care - 3rd party top up payment,A56023
London Borough of Sutton,10/05/2024,50492719,"7,793.40",Leighton House Ltd,SOCIAL SERVICES RESIDENTIAL,People's Services,Residential Care - Ext Provider,A56114
London Borough of Sutton,30/04/2024,20075602,"4,710.24",Albany Housing YP Ltd,CARE LEAVERS,People's Services,Approved Lodgings,A61000
London Borough of Sutton,30/04/2024,20075704,905.35,Albus Environmental Ltd,FM SERVICES,Resources,Hazardous Waste Disposal,A56069
London Borough of Sutton,14/05/2024,20076676,950.00,Alderton Associates Ltd,TEMP STAFF & CONSULTANCY,HRA,External Fees and Consultants,C20000
London Borough of Sutton,03/05/2024,50491052,500.00,REDACTED - PERSONAL DATA,GRANTS & EX GRATIA PAYMENTS,Environment Housing and Neighbourhoods,"Grants, Contributions & Donations",A47005
London Borough of Sutton,07/05/2024,50491185,"14,859.00",All Saints Benhilton C Of E,GRANTS & EX GRATIA PAYMENTS,People's Services,Payment - Nursery Funding,A51056
London Borough of Sutton,07/05/2024,50491231,"176,705.69",All Saints Benhilton C Of E,GRANTS & EX GRATIA PAYMENTS,People's Services,Payments to Schools,A51013
London Borough of Sutton,07/05/2024,50491291,"1,993.75",All Saints Benhilton C Of E,GRANTS & EX GRATIA PAYMENTS,People's Services,Payment - Covid 19 Recovery Premium,A51039
London Borough of Sutton,29/05/2024,50498881,"1,641.04",All Saints Benhilton C Of E,GRANTS & EX GRATIA PAYMENTS,People's Services,Top-up Funding,A51016
London Borough of Sutton,31/05/2024,50498974,"14,859.00",All Saints Benhilton C Of E,GRANTS & EX GRATIA PAYMENTS,People's Services,Payment - Nursery Funding,A51056
London Borough of Sutton,07/05/2024,50491186,"13,144.50",All Saints Carshalton Primary School,ACADEMIC INSTNS - OTHER,People's Services,Payment - Nursery Funding,A51056
London Borough of Sutton,29/05/2024,50498882,"10,803.13",All Saints Carshalton Primary School,ACADEMIC INSTNS - OTHER,People's Services,Top-up Funding,A51016
London Borough of Sutton,31/05/2024,50498975,"13,144.50",All Saints Carshalton Primary School,ACADEMIC INSTNS - OTHER,People's Services,Payment - Nursery Funding,A51056
London Borough of Sutton,30/04/2024,50492521,"8,735.01",All4U Fostering Ltd,CHILDREN'S SERVICES - FOSTERING & ADOPTION SERVICES,People's Services,Foster Parents Support,A44110
London Borough of Sutton,30/04/2024,50492541,"5,856.30",All4U Fostering Ltd,CHILDREN'S SERVICES - FOSTERING & ADOPTION SERVICES,People's Services,Foster Parents Support,A44110
London Borough of Sutton,30/04/2024,50492542,"5,575.50",All4U Fostering Ltd,CHILDREN'S SERVICES - FOSTERING & ADOPTION SERVICES,People's Services,Foster Parents Support,A44110
London Borough of Sutton,17/05/2024,20076467,"2,584.00",REDACTED - PERSONAL DATA,SUNDRY SUPPLIER - HOUSING,Environment Housing and Neighbourhoods,Rent Deposit Scheme,B32179
London Borough of Sutton,29/04/2024,20075364,"1,166.80",Allied Publicity Services (Manchester) Ltd,REPROGRAPHICS & PHOTOGRAPHY,Health and Wellbeing,Mobility Scheme for the Disabled,A61015
London Borough of Sutton,01/05/2024,20075774,"1,254.01",Allstar Business Solutions,FUEL AND VEHICLE SUPPLIES,Environment Housing and Neighbourhoods,Vehicles -  Fuel,A30015
London Borough of Sutton,10/05/2024,50492651,"5,397.60",Allswell Care Services Ltd,SOCIAL SERVICES RESIDENTIAL,People's Services,Residential Care - Ext Provider,A56114
London Borough of Sutton,10/05/2024,50492707,"5,397.60",Allswell Care Services Ltd,SOCIAL SERVICES RESIDENTIAL,People's Services,Residential Care - Ext Provider,A56114
London Borough of Sutton,10/05/2024,50492776,"6,609.52",Allswell Care Services Ltd,SOCIAL SERVICES RESIDENTIAL,People's Services,Residential Care - Ext Provider,A56114
London Borough of Sutton,21/04/2024,50490599,787.68,Alpenbest Limited,SOCIAL SERVICES DAY CARE,People's Services,Home Care Services,A56019
London Borough of Sutton,21/04/2024,50490599,153.16,Alpenbest Limited,SOCIAL SERVICES DAY CARE,People's Services,Home Care Services,A56019
London Borough of Sutton,21/04/2024,50490605,689.06,Alpenbest Limited,SOCIAL SERVICES DAY CARE,People's Services,Home Care Services,A56019
London Borough of Sutton,21/04/2024,50490666,765.45,Alpenbest Limited,SOCIAL SERVICES DAY CARE,People's Services,Home Care Services,A56019
London Borough of Sutton,21/04/2024,50490666,574.28,Alpenbest Limited,SOCIAL SERVICES DAY CARE,People's Services,Home Care Services,A56019
London Borough of Sutton,21/04/2024,50490741,689.06,Alpenbest Limited,SOCIAL SERVICES DAY CARE,People's Services,Home Care Services,A56019
London Borough of Sutton,21/04/2024,50490763,612.64,Alpenbest Limited,SOCIAL SERVICES DAY CARE,People's Services,Home Care Services,A56019
London Borough of Sutton,21/04/2024,50490778,689.06,Alpenbest Limited,SOCIAL SERVICES DAY CARE,People's Services,Home Care Services,A56019
London Borough of Sutton,28/02/2024,50491564,857.08,Alpenbest Limited,SOCIAL SERVICES DAY CARE,People's Services,Home Care Services,A56019
London Borough of Sutton,18/04/2024,50491647,"1,339.94",Alpenbest Limited,SOCIAL SERVICES DAY CARE,People's Services,Home Care Services,A56019
London Borough of Sutton,09/04/2024,50495226,"1,149.79",Alpenbest Limited,SOCIAL SERVICES DAY CARE,People's Services,Home Care Services,A56019
London Borough of Sutton,09/04/2024,50495226,131.28,Alpenbest Limited,SOCIAL SERVICES DAY CARE,People's Services,Home Care Services,A56019
London Borough of Sutton,28/04/2024,50495231,765.45,Alpenbest Limited,SOCIAL SERVICES DAY CARE,People's Services,Home Care Services,A56019
London Borough of Sutton,28/04/2024,50495231,574.28,Alpenbest Limited,SOCIAL SERVICES DAY CARE,People's Services,Home Care Services,A56019
London Borough of Sutton,28/04/2024,50495285,687.24,Alpenbest Limited,SOCIAL SERVICES DAY CARE,People's Services,Home Care Services,A56019
London Borough of Sutton,28/04/2024,50495337,679.95,Alpenbest Limited,SOCIAL SERVICES DAY CARE,People's Services,Home Care Services,A56019
London Borough of Sutton,28/04/2024,50495386,610.82,Alpenbest Limited,SOCIAL SERVICES DAY CARE,People's Services,Home Care Services,A56019
London Borough of Sutton,28/04/2024,50495397,787.68,Alpenbest Limited,SOCIAL SERVICES DAY CARE,People's Services,Home Care Services,A56019
London Borough of Sutton,28/04/2024,50495397,153.16,Alpenbest Limited,SOCIAL SERVICES DAY CARE,People's Services,Home Care Services,A56019
London Borough of Sutton,28/04/2024,50495401,681.77,Alpenbest Limited,SOCIAL SERVICES DAY CARE,People's Services,Home Care Services,A56019
London Borough of Sutton,18/05/2023,50498158,731.36,Alpenbest Limited,SOCIAL SERVICES DAY CARE,People's Services,Home Care Services,A56019
London Borough of Sutton,12/06/2023,50498184,"1,640.44",Alpenbest Limited,SOCIAL SERVICES DAY CARE,People's Services,Home Care Services,A56019
London Borough of Sutton,12/06/2023,50498184,"1,990.92",Alpenbest Limited,SOCIAL SERVICES DAY CARE,People's Services,Home Care Services,A56019
London Borough of Sutton,18/05/2023,50498220,"3,256.25",Alpenbest Limited,SOCIAL SERVICES DAY CARE,People's Services,Home Care Services,A56019
London Borough of Sutton,18/05/2023,50498221,"1,128.12",Alpenbest Limited,SOCIAL SERVICES DAY CARE,People's Services,Home Care Services,A56019
London Borough of Sutton,18/05/2023,50498224,"1,619.66",Alpenbest Limited,SOCIAL SERVICES DAY CARE,People's Services,Home Care Services,A56019
London Borough of Sutton,12/06/2023,50498248,"1,819.85",Alpenbest Limited,SOCIAL SERVICES DAY CARE,People's Services,Home Care Services,A56019
London Borough of Sutton,18/05/2023,50498302,867.58,Alpenbest Limited,SOCIAL SERVICES DAY CARE,People's Services,Home Care Services,A56019
London Borough of Sutton,18/05/2023,50498305,961.58,Alpenbest Limited,SOCIAL SERVICES DAY CARE,People's Services,Home Care Services,A56019
London Borough of Sutton,10/05/2024,50492645,"16,041.84",Alum Care Ltd,SOCIAL SERVICES - DIRECT PAYMENTS,People's Services,Nursing Care - Ext Provider,A56025
London Borough of Sutton,10/05/2024,50492752,"152,996.50",Alum Care Ltd,SOCIAL SERVICES - DIRECT PAYMENTS,People's Services,Nursing Care - Ext Provider,A56025
London Borough of Sutton,03/05/2024,50491048,500.00,REDACTED - PERSONAL DATA,GRANTS & EX GRATIA PAYMENTS,Environment Housing and Neighbourhoods,"Grants, Contributions & Donations",A47005
London Borough of Sutton,31/05/2024,50499021,957.60,REDACTED - PERSONAL DATA,GRANTS & EX GRATIA PAYMENTS,People's Services,Payment - Nursery Funding,A51056
London Borough of Sutton,24/05/2024,50497282,"1,601.70",REDACTED - PERSONAL DATA,CHILDREN'S SERVICES - SEN SERVICES,People's Services,Miscellaneous Expenses,A49000
London Borough of Sutton,31/05/2024,50499151,829.80,Suffolk Child Agency,CHILDMINDERS START UP GRANT,People's Services,Payment - Nursery Funding,A51056
London Borough of Sutton,03/05/2024,50491033,500.00,REDACTED - PERSONAL DATA,GRANTS & EX GRATIA PAYMENTS,Environment Housing and Neighbourhoods,"Grants, Contributions & Donations",A47005
London Borough of Sutton,23/04/2024,20075672,"1,096.00",REDACTED - PERSONAL DATA,PLS LANDLORDS,Environment Housing and Neighbourhoods,Temporary Protection - Homeless Persons,A62028
London Borough of Sutton,31/05/2024,50499069,854.55,REDACTED - PERSONAL DATA,GRANTS & EX GRATIA PAYMENTS,People's Services,Payment - Nursery Funding,A51056
London Borough of Sutton,22/05/2024,50498939,877.80,Angels Place Health,SOCIAL SERVICES DAY CARE,People's Services,Home Care Services,A56019
London Borough of Sutton,22/05/2024,50498941,"1,113.10",Angels Place Health,SOCIAL SERVICES DAY CARE,People's Services,Home Care Services,A56019
London Borough of Sutton,22/05/2024,50498942,668.80,Angels Place Health,SOCIAL SERVICES DAY CARE,People's Services,Home Care Services,A56019
London Borough of Sutton,22/05/2024,50498943,"1,776.64",Angels Place Health,SOCIAL SERVICES DAY CARE,People's Services,Home Care Services,A56019
London Borough of Sutton,22/05/2024,50498948,"2,633.68",Angels Place Health,SOCIAL SERVICES DAY CARE,People's Services,Home Care Services,A56019
London Borough of Sutton,22/05/2024,50498949,"1,254.00",Angels Place Health,SOCIAL SERVICES DAY CARE,People's Services,Home Care Services,A56019
London Borough of Sutton,22/05/2024,50498956,522.50,Angels Place Health,SOCIAL SERVICES DAY CARE,People's Services,Home Care Services,A56019
London Borough of Sutton,22/05/2024,50498957,"2,450.56",Angels Place Health,SOCIAL SERVICES DAY CARE,People's Services,Home Care Services,A56019
London Borough of Sutton,22/05/2024,50498957,"1,060.64",Angels Place Health,SOCIAL SERVICES DAY CARE,People's Services,Home Care Services,A56019
London Borough of Sutton,22/05/2024,50498958,"1,463.00",Angels Place Health,SOCIAL SERVICES DAY CARE,People's Services,Home Care Services,A56019
London Borough of Sutton,22/05/2024,50498959,"1,024.24",Angels Place Health,SOCIAL SERVICES DAY CARE,People's Services,Home Care Services,A56019
London Borough of Sutton,22/05/2024,50498965,"1,316.84",Angels Place Health,SOCIAL SERVICES DAY CARE,People's Services,Home Care Services,A56019
London Borough of Sutton,30/05/2024,50498828,567.74,REDACTED - PERSONAL DATA,SOCIAL SERVICES - DIRECT PAYMENTS,People's Services,Holiday Allowances,A56013
London Borough of Sutton,01/05/2024,50492538,"3,442.24",Ansacare Fostering Agency Ltd,CHILDREN'S SERVICES - FOSTERING & ADOPTION SERVICES,People's Services,Foster Parents Support,A44110
London Borough of Sutton,29/03/2024,20075105,"83,496.00",Aon UK Limited,FINANCIAL / INSURANCE INSTNS,Resources,General Insurance (Excl Premises & Transport),A44260
London Borough of Sutton,30/04/2024,20075419,"9,750.00",Apex Housing Solutions Ltd,SOCIAL SERVICES DAY CARE,Environment Housing and Neighbourhoods,Bed & Breakfast,A56000
London Borough of Sutton,10/05/2024,20076192,"6,960.00",APL Properties,ACCOMMODATION BED & BREAKFAST,Environment Housing and Neighbourhoods,Bed & Breakfast,A56000
London Borough of Sutton,30/04/2024,20075585,"6,690.00",Architecture PLB Ltd,CONSULTING ARCHITECTS ENGINEER,HRA,External Fees and Consultants,C20000
London Borough of Sutton,10/05/2024,50492748,"4,096.12",Aria Healthcare Group Ltd,SOCIAL SERVICES RESIDENTIAL,People's Services,Nursing Care - Ext Provider,A56025
London Borough of Sutton,10/05/2024,50492748,-878.84,Aria Healthcare Group Ltd,SOCIAL SERVICES RESIDENTIAL,People's Services,Nursing Care - 3rd party top up payment,A56023
London Borough of Sutton,22/05/2023,20076779,"3,200.00",REDACTED - PERSONAL DATA,SUNDRY SUPPLIER - HOUSING,Environment Housing and Neighbourhoods,Rent Deposit Scheme,B32179
London Borough of Sutton,03/05/2024,20076682,443.05,Arnold & Self,PREMISES - REMOVALS,Environment Housing and Neighbourhoods,Bed & Breakfast,A56000
London Borough of Sutton,17/04/2024,20075795,"1,640.80",Arthur Rai Medical Services Ltd,TEMP STAFF & CONSULTANCY,Health and Wellbeing,Agency Staff - Other,A10505
London Borough of Sutton,24/05/2024,20075801,"1,617.36",Arthur Rai Medical Services Ltd,TEMP STAFF & CONSULTANCY,Health and Wellbeing,Agency Staff - Other,A10505
London Borough of Sutton,13/03/2024,20076180,"1,547.04",Arthur Rai Medical Services Ltd,TEMP STAFF & CONSULTANCY,Health and Wellbeing,Agency Staff - Other,A10505
London Borough of Sutton,10/04/2024,20075950,"5,479.00",Ascendit Lifts Ltd,BUILDING MNTCE - SERVICES,Environment Housing and Neighbourhoods,Grants Given For Capital Purposes,C20004
London Borough of Sutton,24/04/2024,20076208,"5,415.00",Ascendit Lifts Ltd,BUILDING MNTCE - SERVICES,Environment Housing and Neighbourhoods,Grants Given For Capital Purposes,C20004
London Borough of Sutton,02/05/2024,50491924,"1,108.44",Ashlong House Ltd,SOCIAL SERVICES RESIDENTIAL,People's Services,Supported Living,A56088
London Borough of Sutton,02/05/2024,50491925,"1,108.44",Ashlong House Ltd,SOCIAL SERVICES RESIDENTIAL,People's Services,Supported Living,A56088
London Borough of Sutton,10/05/2024,50492688,"3,821.24",Ashton Care Homes Ltd.,SOCIAL SERVICES RESIDENTIAL,People's Services,Nursing Care - Ext Provider,A56025
London Borough of Sutton,10/05/2024,50492688,-836.76,Ashton Care Homes Ltd.,SOCIAL SERVICES RESIDENTIAL,People's Services,Nursing Care - 3rd party top up payment,A56023
London Borough of Sutton,10/05/2024,50492727,"3,980.00",Ashurst Lodge Healthcare Ltd,CHILDREN'S SERVICES - RESIDENTIAL,People's Services,Residential Care - Ext Provider,A56114
London Borough of Sutton,10/05/2024,50492727,"-1,990.00",Ashurst Lodge Healthcare Ltd,CHILDREN'S SERVICES - RESIDENTIAL,People's Services,Nursing Care - 3rd party top up payment,A56023
London Borough of Sutton,10/05/2024,50492635,"6,478.84",Aspen Place,SOCIAL SERVICES DAY CARE,People's Services,Nursing Care - Ext Provider,A56025
London Borough of Sutton,10/05/2024,50492635,-878.84,Aspen Place,SOCIAL SERVICES DAY CARE,People's Services,Nursing Care - 3rd party top up payment,A56023
London Borough of Sutton,10/05/2024,50492635,"3,024.00",Aspen Place,SOCIAL SERVICES DAY CARE,People's Services,One to One Care,A56108
London Borough of Sutton,10/05/2024,50492747,"5,699.00",Aspens Charities,SOCIAL SERVICES RESIDENTIAL,People's Services,Residential Care - Ext Provider,A56114
London Borough of Sutton,23/05/2024,50497092,654.72,Aspens Charities,SOCIAL SERVICES RESIDENTIAL,People's Services,Supported Living,A56088
London Borough of Sutton,23/05/2024,50497092,"8,475.48",Aspens Charities,SOCIAL SERVICES RESIDENTIAL,People's Services,Supported Living,A56088
London Borough of Sutton,23/05/2024,50497092,"1,598.67",Aspens Charities,SOCIAL SERVICES RESIDENTIAL,People's Services,Supported Living,A56088
London Borough of Sutton,01/05/2024,50492123,"2,400.00",Aspirations Care Ltd,SOCIAL SERVICES DAY CARE,People's Services,Home Care Services,A56019
London Borough of Sutton,01/05/2024,50492123,"9,189.60",Aspirations Care Ltd,SOCIAL SERVICES DAY CARE,People's Services,Home Care Services,A56019
London Borough of Sutton,28/03/2024,20073584,500.00,ASSOCIATON OF ACCOUNTING TECHNICIANS,SUBSCRIPTIONS & PUBLICATIONS,Health and Wellbeing,Examination Fees,A44200
London Borough of Sutton,10/05/2024,20076190,"1,586.00",ASSOCIATON OF ACCOUNTING TECHNICIANS,SUBSCRIPTIONS & PUBLICATIONS,Health and Wellbeing,Examination Fees,A44200
London Borough of Sutton,10/05/2024,50492670,"4,560.00",Aster Grove,SOCIAL SERVICES RESIDENTIAL,People's Services,Nursing Care - Ext Provider,A56025
London Borough of Sutton,10/05/2024,50492670,-878.84,Aster Grove,SOCIAL SERVICES RESIDENTIAL,People's Services,Nursing Care - 3rd party top up payment,A56023
London Borough of Sutton,03/05/2024,20075666,"21,492.00",Aston Pearl,ACCOMMODATION BED & BREAKFAST,Environment Housing and Neighbourhoods,Bed & Breakfast,A56000
London Borough of Sutton,07/05/2024,50492622,"23,528.57",Athena Housing and Support Ltd,CHILDREN'S SERVICES - RESIDENTIAL,People's Services,Residential Care-Children,A56115
London Borough of Sutton,18/04/2024,20075415,"26,100.00",Auditel Rental & Services Ltd,BUSINESS & COMPUTER SYSTEMS,Resources,Equipment Purchase & Hire,A40050
London Borough of Sutton,30/04/2024,20075416,"10,325.00",Auditel Rental & Services Ltd,BUSINESS & COMPUTER SYSTEMS,Resources,Equipment Purchase & Hire,A40050
London Borough of Sutton,31/05/2024,50499023,569.70,Aunty Connies Childcare,ACADEMIC INSTNS - OTHER,People's Services,Payment - Nursery Funding,A51056
London Borough of Sutton,30/04/2024,20076754,"26,275.00",Aura Assets Management Ltd,ACCOMMODATION BED & BREAKFAST,Environment Housing and Neighbourhoods,Bed & Breakfast,A56000
London Borough of Sutton,10/05/2024,50492737,"7,040.00",Autism & Aspergers Care Services,SOCIAL SERVICES RESIDENTIAL,People's Services,Residential Care - Ext Provider,A56114
London Borough of Sutton,23/04/2024,50490194,952.10,Avant Healthcare Services Ltd.,SOCIAL SERVICES DAY CARE,People's Services,Home Care Services,A56019
London Borough of Sutton,23/04/2024,50490197,"1,060.15",Avant Healthcare Services Ltd.,SOCIAL SERVICES DAY CARE,People's Services,Home Care Services,A56019
London Borough of Sutton,23/04/2024,50490198,757.19,Avant Healthcare Services Ltd.,SOCIAL SERVICES DAY CARE,People's Services,Home Care Services,A56019
London Borough of Sutton,23/04/2024,50490201,"1,082.03",Avant Healthcare Services Ltd.,SOCIAL SERVICES DAY CARE,People's Services,Home Care Services,A56019
London Borough of Sutton,23/04/2024,50490202,"1,211.77",Avant Healthcare Services Ltd.,SOCIAL SERVICES DAY CARE,People's Services,Home Care Services,A56019
London Borough of Sutton,07/05/2024,50491187,"15,444.00",Avenue Primary Academy,SCHOOL FUNDS,People's Services,Payment - Nursery Funding,A51056
London Borough of Sutton,07/05/2024,50491260,"4,816.60",Avenue Primary Academy,SCHOOL FUNDS,People's Services,Pupil Growth,A51014
London Borough of Sutton,29/05/2024,50498883,"-3,430.58",Avenue Primary Academy,SCHOOL FUNDS,People's Services,Top-up Funding,A51016
London Borough of Sutton,29/05/2024,50498883,"55,652.00",Avenue Primary Academy,SCHOOL FUNDS,People's Services,Top-up Funding,A51016
London Borough of Sutton,31/05/2024,50498976,"15,444.00",Avenue Primary Academy,SCHOOL FUNDS,People's Services,Payment - Nursery Funding,A51056
London Borough of Sutton,30/04/2024,50494245,"47,292.86",Ayai Care Limited,SOCIAL SERVICES DAY CARE,People's Services,Residential Care-Children,A56115
London Borough of Sutton,31/03/2024,50494246,"48,869.29",Ayai Care Limited,SOCIAL SERVICES DAY CARE,People's Services,Residential Care-Children,A56115
London Borough of Sutton,31/03/2024,50494247,"28,755.12",Ayai Care Limited,SOCIAL SERVICES DAY CARE,People's Services,Residential Care-Children,A56115
London Borough of Sutton,30/04/2024,50494248,"9,275.85",Ayai Care Limited,SOCIAL SERVICES DAY CARE,People's Services,Residential Care-Children,A56115
London Borough of Sutton,23/05/2024,50497058,"14,136.00",Ayai Care Limited,SOCIAL SERVICES DAY CARE,People's Services,Supported Living,A56088
London Borough of Sutton,23/05/2024,50497076,"4,845.30",Ayai Care Limited,SOCIAL SERVICES DAY CARE,People's Services,Supported Living,A56088
London Borough of Sutton,23/05/2024,50497076,"2,421.10",Ayai Care Limited,SOCIAL SERVICES DAY CARE,People's Services,Supported Living,A56088
London Borough of Sutton,23/05/2024,50497076,417.88,Ayai Care Limited,SOCIAL SERVICES DAY CARE,People's Services,Supported Living,A56088
London Borough of Sutton,23/05/2024,50497144,"13,604.58",Ayai Care Limited,SOCIAL SERVICES DAY CARE,People's Services,Supported Living,A56088
London Borough of Sutton,22/05/2024,50498969,"1,290.00",Ayai Care Limited,SOCIAL SERVICES DAY CARE,People's Services,One to One Care,A56108
London Borough of Sutton,22/05/2024,50498970,860.00,Ayai Care Limited,SOCIAL SERVICES DAY CARE,People's Services,One to One Care,A56108
London Borough of Sutton,01/04/2024,50492535,"28,671.43",Back on track children's services SE Ltd,CHILDREN'S SERVICE - OTHER,People's Services,Residential Care-Children,A56115
London Borough of Sutton,22/05/2024,20076805,"5,829.64",Back on Track Housing Ltd,SOCIAL SERVICES - OTHER,People's Services,Approved Lodgings,A61000
London Borough of Sutton,22/05/2024,20076806,"3,490.00",Back on Track Housing Ltd,SOCIAL SERVICES - OTHER,People's Services,Approved Lodgings,A61000
London Borough of Sutton,22/05/2024,20076807,"5,819.64",Back on Track Housing Ltd,SOCIAL SERVICES - OTHER,People's Services,Approved Lodgings,A61000
London Borough of Sutton,22/05/2024,20076808,"6,267.85",Back on Track Housing Ltd,SOCIAL SERVICES - OTHER,People's Services,Approved Lodgings,A61000
London Borough of Sutton,22/05/2024,20076809,"3,565.00",Back on Track Housing Ltd,SOCIAL SERVICES - OTHER,People's Services,Approved Lodgings,A61000
London Borough of Sutton,26/03/2024,50491558,267.86,Back on Track Housing Ltd,SOCIAL SERVICES - OTHER,People's Services,Approved Lodgings,A61000
London Borough of Sutton,26/03/2024,50491558,"5,571.43",Back on Track Housing Ltd,SOCIAL SERVICES - OTHER,People's Services,Approved Lodgings,A61000
London Borough of Sutton,24/04/2024,20074940,"6,087.90",Bandon Hill Primary School (Academy),SCHOOL FUNDS,People's Services,External Fees and Consultants,C20000
London Borough of Sutton,07/05/2024,50491188,"13,144.50",Bandon Hill Primary School (Academy),SCHOOL FUNDS,People's Services,Payment - Nursery Funding,A51056
London Borough of Sutton,29/05/2024,50498884,"2,629.64",Bandon Hill Primary School (Academy),SCHOOL FUNDS,People's Services,Top-up Funding,A51016
London Borough of Sutton,29/05/2024,50498912,"14,791.73",Bandon Hill Primary School (Academy),SCHOOL FUNDS,People's Services,Top-up Funding,A51016
London Borough of Sutton,29/05/2024,50498912,"39,296.00",Bandon Hill Primary School (Academy),SCHOOL FUNDS,People's Services,Top-up Funding,A51016
London Borough of Sutton,31/05/2024,50498977,"13,144.50",Bandon Hill Primary School (Academy),SCHOOL FUNDS,People's Services,Payment - Nursery Funding,A51056
London Borough of Sutton,10/05/2024,50492771,"3,880.00",Barchester Healthcare Homes Ltd,SOCIAL SERVICES RESIDENTIAL,People's Services,Nursing Care - Ext Provider,A56025
London Borough of Sutton,09/05/2023,20075885,"1,200.00",Barnaby's Property Lettings Ltd,SUNDRY SUPPLIER - HOUSING,Environment Housing and Neighbourhoods,PSL Payments To Landlords,A22031
London Borough of Sutton,09/05/2023,20075885,"1,006.85",Barnaby's Property Lettings Ltd,SUNDRY SUPPLIER - HOUSING,Environment Housing and Neighbourhoods,Rent Deposit Scheme,B32179
London Borough of Sutton,09/05/2023,20075885,872.60,Barnaby's Property Lettings Ltd,SUNDRY SUPPLIER - HOUSING,Environment Housing and Neighbourhoods,Rent Deposit Scheme,B32179
London Borough of Sutton,30/04/2024,20075504,"1,440.00",BBFI CIC,CAR PARKS,Environment Housing and Neighbourhoods,Provider Contract Payments,A44290
London Borough of Sutton,07/05/2024,50491190,"15,147.00",Beddington Infants School,SCHOOL FUNDS,People's Services,Payment - Nursery Funding,A51056
London Borough of Sutton,07/05/2024,50491225,"110,245.48",Beddington Infants School,SCHOOL FUNDS,People's Services,Payments to Schools,A51013
London Borough of Sutton,07/05/2024,50491275,"1,232.50",Beddington Infants School,SCHOOL FUNDS,People's Services,Payment - Covid 19 Recovery Premium,A51039
London Borough of Sutton,31/05/2024,50498979,"15,147.00",Beddington Infants School,SCHOOL FUNDS,People's Services,Payment - Nursery Funding,A51056
London Borough of Sutton,07/05/2024,50491191,"15,444.00",Beddington Park Primary (Academy),SCHOOL FUNDS,People's Services,Payment - Nursery Funding,A51056
London Borough of Sutton,29/05/2024,50498885,"-2,045.60",Beddington Park Primary (Academy),SCHOOL FUNDS,People's Services,Top-up Funding,A51016
London Borough of Sutton,31/05/2024,50498980,"15,444.00",Beddington Park Primary (Academy),SCHOOL FUNDS,People's Services,Payment - Nursery Funding,A51056
London Borough of Sutton,23/05/2024,50497179,"6,620.72",Beechcroft Care Limited,SOCIAL SERVICES RESIDENTIAL,People's Services,Supported Living,A56088
London Borough of Sutton,23/05/2024,50497179,813.75,Beechcroft Care Limited,SOCIAL SERVICES RESIDENTIAL,People's Services,One to One Care,A56108
London Borough of Sutton,02/04/2024,20073198,"4,510.32",Beeches Tree Care,AGRICULTURAL & ESTATE SERVICES,Environment Housing and Neighbourhoods,Highway Trees - Maintenance,A28005
London Borough of Sutton,01/05/2024,20075452,"1,248.98",Beeches Tree Care,AGRICULTURAL & ESTATE SERVICES,Environment Housing and Neighbourhoods,Plants and Shrubs,A28004
London Borough of Sutton,01/05/2024,20075453,"3,338.55",Beeches Tree Care,AGRICULTURAL & ESTATE SERVICES,Environment Housing and Neighbourhoods,Plants and Shrubs,A28004
London Borough of Sutton,01/05/2024,20075454,600.46,Beeches Tree Care,AGRICULTURAL & ESTATE SERVICES,Environment Housing and Neighbourhoods,Landscaping,C20019
London Borough of Sutton,01/05/2024,20075455,672.56,Beeches Tree Care,AGRICULTURAL & ESTATE SERVICES,Environment Housing and Neighbourhoods,Plants and Shrubs,A28004
London Borough of Sutton,01/05/2024,20075456,"7,397.65",Beeches Tree Care,AGRICULTURAL & ESTATE SERVICES,Environment Housing and Neighbourhoods,Landscaping,C20019
London Borough of Sutton,01/05/2024,20075457,"5,067.87",Beeches Tree Care,AGRICULTURAL & ESTATE SERVICES,Environment Housing and Neighbourhoods,Plants and Shrubs,A28004
London Borough of Sutton,01/05/2024,20075459,"6,629.13",Beeches Tree Care,AGRICULTURAL & ESTATE SERVICES,Environment Housing and Neighbourhoods,Plants and Shrubs,A28004
London Borough of Sutton,02/05/2024,20075508,"5,322.61",Beeches Tree Care,AGRICULTURAL & ESTATE SERVICES,Environment Housing and Neighbourhoods,Maintenance of trees,A28003
London Borough of Sutton,02/05/2024,20075509,480.36,Beeches Tree Care,AGRICULTURAL & ESTATE SERVICES,Environment Housing and Neighbourhoods,Purchases and Repairs Fixtures & Fittings,A25005
London Borough of Sutton,02/05/2024,20075510,"2,930.00",Beeches Tree Care,AGRICULTURAL & ESTATE SERVICES,Environment Housing and Neighbourhoods,Purchases and Repairs Fixtures & Fittings,A25005
London Borough of Sutton,03/05/2024,20075626,"1,342.40",Beeches Tree Care,AGRICULTURAL & ESTATE SERVICES,Environment Housing and Neighbourhoods,Plants and Shrubs,A28004
London Borough of Sutton,16/05/2024,20076356,"4,080.12",Beeches Tree Care,AGRICULTURAL & ESTATE SERVICES,Environment Housing and Neighbourhoods,Maintenance of trees,A28003
London Borough of Sutton,17/05/2024,20076579,690.00,Beeches Tree Care,AGRICULTURAL & ESTATE SERVICES,Environment Housing and Neighbourhoods,Purchases and Repairs Fixtures & Fittings,A25005
London Borough of Sutton,21/05/2024,20076662,"1,540.00",Beeches Tree Care,AGRICULTURAL & ESTATE SERVICES,Environment Housing and Neighbourhoods,Purchases and Repairs Fixtures & Fittings,A25005
London Borough of Sutton,24/05/2024,20076928,"3,646.49",Beeches Tree Care,AGRICULTURAL & ESTATE SERVICES,Environment Housing and Neighbourhoods,Highway Trees - Maintenance,A28005
London Borough of Sutton,24/05/2024,20076929,"2,139.63",Beeches Tree Care,AGRICULTURAL & ESTATE SERVICES,Environment Housing and Neighbourhoods,Highway Trees - Maintenance,A28005
London Borough of Sutton,30/05/2024,20077285,671.20,Beeches Tree Care,AGRICULTURAL & ESTATE SERVICES,Environment Housing and Neighbourhoods,Plants and Shrubs,A28004
London Borough of Sutton,30/05/2024,20077287,600.46,Beeches Tree Care,AGRICULTURAL & ESTATE SERVICES,Environment Housing and Neighbourhoods,Landscaping,C20019
London Borough of Sutton,30/05/2024,20077288,"1,465.00",Beeches Tree Care,AGRICULTURAL & ESTATE SERVICES,Environment Housing and Neighbourhoods,Purchases and Repairs Fixtures & Fittings,A25005
London Borough of Sutton,30/05/2024,20077289,"7,282.45",Beeches Tree Care,AGRICULTURAL & ESTATE SERVICES,Environment Housing and Neighbourhoods,Landscaping,C20019
London Borough of Sutton,30/05/2024,20077292,"6,552.33",Beeches Tree Care,AGRICULTURAL & ESTATE SERVICES,Environment Housing and Neighbourhoods,Plants and Shrubs,A28004
London Borough of Sutton,30/05/2024,20077294,"5,067.87",Beeches Tree Care,AGRICULTURAL & ESTATE SERVICES,Environment Housing and Neighbourhoods,Plants and Shrubs,A28004
London Borough of Sutton,30/05/2024,20077295,"3,338.55",Beeches Tree Care,AGRICULTURAL & ESTATE SERVICES,Environment Housing and Neighbourhoods,Plants and Shrubs,A28004
London Borough of Sutton,30/05/2024,20077297,672.56,Beeches Tree Care,AGRICULTURAL & ESTATE SERVICES,Environment Housing and Neighbourhoods,Plants and Shrubs,A28004
London Borough of Sutton,30/05/2024,20077298,"1,248.98",Beeches Tree Care,AGRICULTURAL & ESTATE SERVICES,Environment Housing and Neighbourhoods,Plants and Shrubs,A28004
London Borough of Sutton,18/03/2024,50490313,"2,000.00",Aurora Poppyfield School,CHILDREN'S SERVICES - SEN SERVICES,People's Services,Independent School Fees,A56002
London Borough of Sutton,18/03/2024,50490314,"2,000.00",Aurora Poppyfield School,CHILDREN'S SERVICES - SEN SERVICES,People's Services,Independent School Fees,A56002
London Borough of Sutton,03/05/2024,50491044,500.00,REDACTED - PERSONAL DATA,GRANTS & EX GRATIA PAYMENTS,Environment Housing and Neighbourhoods,"Grants, Contributions & Donations",A47005
London Borough of Sutton,20/02/2024,20077110,"2,000.00",BELMONT ALLOTMENT ASSOCIATION,SUNDRY SUPPLIER - ENV SERVICES,Resources,Purchase of Furniture & Equipment,C16000
London Borough of Sutton,02/05/2024,20076274,"2,600.00",Benhill & Belmont GP Centre,SOCIAL SERVICES - OTHER,Health and Wellbeing,Hire of Rooms,A22010
London Borough of Sutton,31/05/2024,50499114,569.70,REDACTED - PERSONAL DATA,CHILDMINDERS START UP GRANT,People's Services,Payment - Nursery Funding,A51056
London Borough of Sutton,10/05/2024,50492654,"5,828.57",Bespoke Care Support Ltd,SOCIAL SERVICES - OTHER,People's Services,Nursing Care - 3rd party top up payment,A56023
London Borough of Sutton,29/01/2024,20075322,"1,300.00",Bespoke Consultancy & Education Ltd,TRAINING,Resources,Subscriptions,A47010
London Borough of Sutton,21/04/2024,50491589,809.56,Best at Home Domiciliary Care Services Ltd,SOCIAL SERVICES DAY CARE,People's Services,Home Care Services,A56019
London Borough of Sutton,21/04/2024,50491642,"1,071.81",Best at Home Domiciliary Care Services Ltd,SOCIAL SERVICES DAY CARE,People's Services,Home Care Services,A56019
London Borough of Sutton,21/04/2024,50491652,765.80,Best at Home Domiciliary Care Services Ltd,SOCIAL SERVICES DAY CARE,People's Services,Home Care Services,A56019
London Borough of Sutton,21/04/2024,50491675,776.58,Best at Home Domiciliary Care Services Ltd,SOCIAL SERVICES DAY CARE,People's Services,Home Care Services,A56019
London Borough of Sutton,24/03/2024,50492156,527.90,Best at Home Domiciliary Care Services Ltd,SOCIAL SERVICES DAY CARE,People's Services,Home Care Services,A56019
London Borough of Sutton,07/04/2024,50492172,541.43,Best at Home Domiciliary Care Services Ltd,SOCIAL SERVICES DAY CARE,People's Services,Home Care Services,A56019
London Borough of Sutton,28/04/2024,50494268,765.80,Best at Home Domiciliary Care Services Ltd,SOCIAL SERVICES DAY CARE,People's Services,Home Care Services,A56019
London Borough of Sutton,28/04/2024,50494286,809.56,Best at Home Domiciliary Care Services Ltd,SOCIAL SERVICES DAY CARE,People's Services,Home Care Services,A56019
London Borough of Sutton,28/04/2024,50494321,"1,071.81",Best at Home Domiciliary Care Services Ltd,SOCIAL SERVICES DAY CARE,People's Services,Home Care Services,A56019
London Borough of Sutton,28/04/2024,50494374,776.58,Best at Home Domiciliary Care Services Ltd,SOCIAL SERVICES DAY CARE,People's Services,Home Care Services,A56019
London Borough of Sutton,05/05/2024,50498223,"1,071.81",Best at Home Domiciliary Care Services Ltd,SOCIAL SERVICES DAY CARE,People's Services,Home Care Services,A56019
London Borough of Sutton,12/05/2024,50498229,765.80,Best at Home Domiciliary Care Services Ltd,SOCIAL SERVICES DAY CARE,People's Services,Home Care Services,A56019
London Borough of Sutton,05/05/2024,50498230,765.80,Best at Home Domiciliary Care Services Ltd,SOCIAL SERVICES DAY CARE,People's Services,Home Care Services,A56019
London Borough of Sutton,12/05/2024,50498245,776.58,Best at Home Domiciliary Care Services Ltd,SOCIAL SERVICES DAY CARE,People's Services,Home Care Services,A56019
London Borough of Sutton,05/05/2024,50498246,776.58,Best at Home Domiciliary Care Services Ltd,SOCIAL SERVICES DAY CARE,People's Services,Home Care Services,A56019
London Borough of Sutton,12/05/2024,50498265,809.56,Best at Home Domiciliary Care Services Ltd,SOCIAL SERVICES DAY CARE,People's Services,Home Care Services,A56019
London Borough of Sutton,05/05/2024,50498266,809.56,Best at Home Domiciliary Care Services Ltd,SOCIAL SERVICES DAY CARE,People's Services,Home Care Services,A56019
London Borough of Sutton,16/02/2024,20075188,"17,952.00",Better Families Social Work Services Ltd,SUNDRY SUPPLIER - SOCIAL SERVICES,People's Services,One to One Care,A56108
London Borough of Sutton,19/05/2024,20075284,"3,650.50",Better Families Social Work Services Ltd,SUNDRY SUPPLIER - SOCIAL SERVICES,People's Services,One to One Care,A56108
London Borough of Sutton,11/04/2024,20075613,796.50,Better Families Social Work Services Ltd,SUNDRY SUPPLIER - SOCIAL SERVICES,People's Services,Client Care/Assistance,A61011
London Borough of Sutton,06/05/2024,20075903,619.50,Better Families Social Work Services Ltd,SUNDRY SUPPLIER - SOCIAL SERVICES,People's Services,One to One Care,A56108
London Borough of Sutton,10/05/2024,20076181,796.50,Better Families Social Work Services Ltd,SUNDRY SUPPLIER - SOCIAL SERVICES,People's Services,One to One Care,A56108
London Borough of Sutton,14/05/2024,20076443,808.50,Better Families Social Work Services Ltd,SUNDRY SUPPLIER - SOCIAL SERVICES,People's Services,One to One Care,A56108
London Borough of Sutton,23/05/2024,50497112,"4,650.00",BETTER LIFE SUPPORTED LIVING LIMITED,SOCIAL SERVICES RESIDENTIAL,People's Services,One to One Care,A56108
London Borough of Sutton,21/05/2024,50495474,"4,502.08",Beulah Junior School,CHILDREN'S SERVICES - SEN SERVICES,People's Services,Top-up Funding,A51016
London Borough of Sutton,30/04/2024,20075636,"15,637.10",Bevan Brittan LLP,LEGAL & PROFESSIONAL SERVICES,HRA,External Fees and Consultants,C20000
London Borough of Sutton,28/03/2024,20076005,612.00,Bevan Brittan LLP,LEGAL & PROFESSIONAL SERVICES,HRA,External Legal Fees,C20008
London Borough of Sutton,25/04/2024,20076169,487.50,Bevan Brittan LLP,LEGAL & PROFESSIONAL SERVICES,People's Services,External Fees and Consultants,C20000
London Borough of Sutton,25/04/2024,20076212,"1,442.40",Bevan Brittan LLP,LEGAL & PROFESSIONAL SERVICES,Development Growth and Regeneration,External Legal Fees,C20008
London Borough of Sutton,30/05/2024,50498829,567.74,REDACTED - PERSONAL DATA,SOCIAL SERVICES - DIRECT PAYMENTS,People's Services,Holiday Allowances,A56013
London Borough of Sutton,25/04/2024,50492035,"23,560.00",Beyond Autism,CHILDREN'S SERVICES - RESIDENTIAL,People's Services,Independent School Fees,A56002
London Borough of Sutton,25/04/2024,50492038,"23,560.00",Beyond Autism,CHILDREN'S SERVICES - RESIDENTIAL,People's Services,Independent School Fees,A56002
London Borough of Sutton,25/04/2024,50492039,"22,872.67",Beyond Autism,CHILDREN'S SERVICES - RESIDENTIAL,People's Services,Independent School Fees,A56002
London Borough of Sutton,25/04/2024,50492042,"22,872.67",Beyond Autism,CHILDREN'S SERVICES - RESIDENTIAL,People's Services,Independent School Fees,A56002
London Borough of Sutton,25/04/2024,50492044,"21,783.33",Beyond Autism,CHILDREN'S SERVICES - RESIDENTIAL,People's Services,Independent School Fees,A56002
London Borough of Sutton,25/04/2024,50492045,"21,783.33",Beyond Autism,CHILDREN'S SERVICES - RESIDENTIAL,People's Services,Independent School Fees,A56002
London Borough of Sutton,25/04/2024,50492046,"21,783.33",Beyond Autism,CHILDREN'S SERVICES - RESIDENTIAL,People's Services,Independent School Fees,A56002
London Borough of Sutton,01/05/2024,20075603,500.56,BFS Group,FOOD & DRINK,Health and Wellbeing,Catering Contract - Frozen Meals,A41001
London Borough of Sutton,31/05/2024,50499135,"8,545.50",Bizzy Bees Day Nursery,ACADEMIC INSTNS - OTHER,People's Services,Payment - Nursery Funding,A51056
London Borough of Sutton,31/05/2024,50499270,"9,127.80",Bizzy Bees Day Nursery,ACADEMIC INSTNS - OTHER,People's Services,Payment - Nursery Funding,A51056
London Borough of Sutton,11/03/2024,20076593,"1,500.00",Black Tech Day Ltd,TEMP STAFF & CONSULTANCY,Health and Wellbeing,Fees,A44040
London Borough of Sutton,02/05/2024,20075549,"2,625.00",Bloom Procurement Services Ltd,TEMP STAFF & CONSULTANCY,Environment Housing and Neighbourhoods,External Fees and Consultants,C20000
London Borough of Sutton,21/05/2024,20076834,"5,180.75",Bloom Procurement Services Ltd,TEMP STAFF & CONSULTANCY,Development Growth and Regeneration,External Fees and Consultants,C20000
London Borough of Sutton,01/05/2024,50493783,678.50,Blossom Healthcare Ltd.,SOCIAL SERVICES-HOME CARE,People's Services,Home Care Services,A56019
London Borough of Sutton,30/04/2024,50492585,"6,903.30",Blue Sky Fostering Ltd,CHILDREN'S SERVICES - FOSTERING & ADOPTION SERVICES,People's Services,Foster Parents Support,A44110
London Borough of Sutton,10/05/2024,50492794,"2,400.00",Brama Care Ltd,SOCIAL SERVICES-HOME CARE,People's Services,Nursing Care - Ext Provider,A56025
London Borough of Sutton,10/05/2024,50492968,600.00,Bramley Health Ltd.,SOCIAL SERVICES RESIDENTIAL,People's Services,One to One Care,A56108
London Borough of Sutton,10/05/2024,50492968,"-4,890.00",Bramley Health Ltd.,SOCIAL SERVICES RESIDENTIAL,People's Services,Nursing Care - 3rd party top up payment,A56023
London Borough of Sutton,10/05/2024,50492968,"10,830.00",Bramley Health Ltd.,SOCIAL SERVICES RESIDENTIAL,People's Services,Nursing Care - Ext Provider,A56025
London Borough of Sutton,10/05/2024,50493039,"12,529.44",Bramley Health Ltd.,SOCIAL SERVICES RESIDENTIAL,People's Services,Nursing Care - Ext Provider,A56025
London Borough of Sutton,10/05/2024,50493039,"-8,770.60",Bramley Health Ltd.,SOCIAL SERVICES RESIDENTIAL,People's Services,Nursing Care - 3rd party top up payment,A56023
London Borough of Sutton,10/05/2024,50493069,"9,400.00",Bramley Health Ltd.,SOCIAL SERVICES RESIDENTIAL,People's Services,Nursing Care - Ext Provider,A56025
London Borough of Sutton,10/05/2024,50493069,"-4,700.00",Bramley Health Ltd.,SOCIAL SERVICES RESIDENTIAL,People's Services,Nursing Care - 3rd party top up payment,A56023
London Borough of Sutton,10/05/2024,50492807,"4,096.12",Bridge House Care Centre,SOCIAL SERVICES RESIDENTIAL,People's Services,Nursing Care - Ext Provider,A56025
London Borough of Sutton,10/05/2024,50492807,-878.84,Bridge House Care Centre,SOCIAL SERVICES RESIDENTIAL,People's Services,Nursing Care - 3rd party top up payment,A56023
London Borough of Sutton,10/05/2024,50492808,"4,560.00",Bridge House Care Centre,SOCIAL SERVICES RESIDENTIAL,People's Services,Nursing Care - Ext Provider,A56025
London Borough of Sutton,10/05/2024,50492808,-878.84,Bridge House Care Centre,SOCIAL SERVICES RESIDENTIAL,People's Services,Nursing Care - 3rd party top up payment,A56023
London Borough of Sutton,10/05/2024,50492822,-878.84,Bridge House Care Centre,SOCIAL SERVICES RESIDENTIAL,People's Services,Nursing Care - 3rd party top up payment,A56023
London Borough of Sutton,10/05/2024,50492822,"4,560.00",Bridge House Care Centre,SOCIAL SERVICES RESIDENTIAL,People's Services,Nursing Care Short Term,A56026
London Borough of Sutton,10/05/2024,50492830,"-3,142.86",Bridge House Care Centre,SOCIAL SERVICES RESIDENTIAL,People's Services,Nursing Care Short Term,A56026
London Borough of Sutton,10/05/2024,50492832,"4,978.76",Bridge House Care Centre,SOCIAL SERVICES RESIDENTIAL,People's Services,Nursing Care - Ext Provider,A56025
London Borough of Sutton,10/05/2024,50492832,-836.76,Bridge House Care Centre,SOCIAL SERVICES RESIDENTIAL,People's Services,Nursing Care - 3rd party top up payment,A56023
London Borough of Sutton,10/05/2024,50492835,"4,096.12",Bridge House Care Centre,SOCIAL SERVICES RESIDENTIAL,People's Services,Nursing Care Short Term,A56026
London Borough of Sutton,10/05/2024,50492835,-878.84,Bridge House Care Centre,SOCIAL SERVICES RESIDENTIAL,People's Services,Nursing Care - 3rd party top up payment,A56023
London Borough of Sutton,10/05/2024,50492841,"4,096.12",Bridge House Care Centre,SOCIAL SERVICES RESIDENTIAL,People's Services,Nursing Care - Ext Provider,A56025
London Borough of Sutton,10/05/2024,50492842,-878.84,Bridge House Care Centre,SOCIAL SERVICES RESIDENTIAL,People's Services,Nursing Care - 3rd party top up payment,A56023
London Borough of Sutton,10/05/2024,50492864,-134.79,Bridge House Care Centre,SOCIAL SERVICES RESIDENTIAL,People's Services,Nursing Care - 3rd party top up payment,A56023
London Borough of Sutton,10/05/2024,50492864,732.63,Bridge House Care Centre,SOCIAL SERVICES RESIDENTIAL,People's Services,Respite Care,A56116
London Borough of Sutton,10/05/2024,50492897,-878.84,Bridge House Care Centre,SOCIAL SERVICES RESIDENTIAL,People's Services,Nursing Care - 3rd party top up payment,A56023
London Borough of Sutton,10/05/2024,50492897,"4,096.12",Bridge House Care Centre,SOCIAL SERVICES RESIDENTIAL,People's Services,Nursing Care - Ext Provider,A56025
London Borough of Sutton,10/05/2024,50492910,"4,560.00",Bridge House Care Centre,SOCIAL SERVICES RESIDENTIAL,People's Services,Nursing Care - Ext Provider,A56025
London Borough of Sutton,10/05/2024,50492910,-878.84,Bridge House Care Centre,SOCIAL SERVICES RESIDENTIAL,People's Services,Nursing Care - 3rd party top up payment,A56023
London Borough of Sutton,10/05/2024,50492914,"4,096.12",Bridge House Care Centre,SOCIAL SERVICES RESIDENTIAL,People's Services,Nursing Care - Ext Provider,A56025
London Borough of Sutton,10/05/2024,50492929,"5,251.64",Bridge House Care Centre,SOCIAL SERVICES RESIDENTIAL,People's Services,Nursing Care - Ext Provider,A56025
London Borough of Sutton,10/05/2024,50492929,"5,700.00",Bridge House Care Centre,SOCIAL SERVICES RESIDENTIAL,People's Services,One to One Care,A56108
London Borough of Sutton,10/05/2024,50492929,-596.36,Bridge House Care Centre,SOCIAL SERVICES RESIDENTIAL,People's Services,Nursing Care - 3rd party top up payment,A56023
London Borough of Sutton,10/05/2024,50492966,"-1,246.79",Bridge House Care Centre,SOCIAL SERVICES RESIDENTIAL,People's Services,Nursing Care - 3rd party top up payment,A56023
London Borough of Sutton,10/05/2024,50492966,"6,111.18",Bridge House Care Centre,SOCIAL SERVICES RESIDENTIAL,People's Services,Nursing Care - Ext Provider,A56025
London Borough of Sutton,10/05/2024,50492989,-878.84,Bridge House Care Centre,SOCIAL SERVICES RESIDENTIAL,People's Services,Nursing Care - 3rd party top up payment,A56023
London Borough of Sutton,10/05/2024,50493007,"4,129.18",Bridge House Care Centre,SOCIAL SERVICES RESIDENTIAL,People's Services,Respite Care,A56116
London Borough of Sutton,10/05/2024,50493007,-842.43,Bridge House Care Centre,SOCIAL SERVICES RESIDENTIAL,People's Services,Nursing Care - 3rd party top up payment,A56023
London Borough of Sutton,10/05/2024,50493024,"4,096.12",Bridge House Care Centre,SOCIAL SERVICES RESIDENTIAL,People's Services,Nursing Care - Ext Provider,A56025
London Borough of Sutton,10/05/2024,50493024,-878.84,Bridge House Care Centre,SOCIAL SERVICES RESIDENTIAL,People's Services,Nursing Care - 3rd party top up payment,A56023
London Borough of Sutton,10/05/2024,50493030,376.65,Bridge House Care Centre,SOCIAL SERVICES RESIDENTIAL,People's Services,Nursing Care - 3rd party top up payment,A56023
London Borough of Sutton,10/05/2024,50493030,"-1,954.29",Bridge House Care Centre,SOCIAL SERVICES RESIDENTIAL,People's Services,Nursing Care Short Term,A56026
London Borough of Sutton,10/05/2024,50493054,"4,096.12",Bridge House Care Centre,SOCIAL SERVICES RESIDENTIAL,People's Services,Nursing Care - Ext Provider,A56025
London Borough of Sutton,10/05/2024,50493054,-878.84,Bridge House Care Centre,SOCIAL SERVICES RESIDENTIAL,People's Services,Nursing Care - 3rd party top up payment,A56023
London Borough of Sutton,10/05/2024,50493071,-878.84,Bridge House Care Centre,SOCIAL SERVICES RESIDENTIAL,People's Services,Nursing Care - 3rd party top up payment,A56023
London Borough of Sutton,10/05/2024,50493071,"4,560.00",Bridge House Care Centre,SOCIAL SERVICES RESIDENTIAL,People's Services,Nursing Care Short Term,A56026
London Borough of Sutton,10/05/2024,50493089,"7,563.59",Bridge House Care Centre,SOCIAL SERVICES RESIDENTIAL,People's Services,Nursing Care - Ext Provider,A56025
London Borough of Sutton,10/05/2024,50493089,"-1,478.05",Bridge House Care Centre,SOCIAL SERVICES RESIDENTIAL,People's Services,Nursing Care - 3rd party top up payment,A56023
London Borough of Sutton,10/05/2024,50493094,"4,096.12",Bridge House Care Centre,SOCIAL SERVICES RESIDENTIAL,People's Services,Nursing Care - Ext Provider,A56025
London Borough of Sutton,10/05/2024,50493094,-878.84,Bridge House Care Centre,SOCIAL SERVICES RESIDENTIAL,People's Services,Nursing Care - 3rd party top up payment,A56023
London Borough of Sutton,10/05/2024,50493096,"4,096.12",Bridge House Care Centre,SOCIAL SERVICES RESIDENTIAL,People's Services,Nursing Care - Ext Provider,A56025
London Borough of Sutton,10/05/2024,50493096,-878.84,Bridge House Care Centre,SOCIAL SERVICES RESIDENTIAL,People's Services,Nursing Care - 3rd party top up payment,A56023
London Borough of Sutton,10/05/2024,50493114,-878.84,Bridge House Care Centre,SOCIAL SERVICES RESIDENTIAL,People's Services,Nursing Care - 3rd party top up payment,A56023
London Borough of Sutton,10/05/2024,50493114,"4,560.00",Bridge House Care Centre,SOCIAL SERVICES RESIDENTIAL,People's Services,Nursing Care - Ext Provider,A56025
London Borough of Sutton,10/05/2024,50493115,-878.84,Bridge House Care Centre,SOCIAL SERVICES RESIDENTIAL,People's Services,Nursing Care - 3rd party top up payment,A56023
London Borough of Sutton,10/05/2024,50493115,"5,278.84",Bridge House Care Centre,SOCIAL SERVICES RESIDENTIAL,People's Services,Respite Care,A56116
London Borough of Sutton,10/05/2024,50493118,-878.84,Bridge House Care Centre,SOCIAL SERVICES RESIDENTIAL,People's Services,Nursing Care - 3rd party top up payment,A56023
London Borough of Sutton,10/05/2024,50493118,"4,096.12",Bridge House Care Centre,SOCIAL SERVICES RESIDENTIAL,People's Services,Nursing Care Short Term,A56026
London Borough of Sutton,10/05/2024,50493154,"4,096.12",Bridge House Care Centre,SOCIAL SERVICES RESIDENTIAL,People's Services,Nursing Care - Ext Provider,A56025
London Borough of Sutton,10/05/2024,50493154,-878.84,Bridge House Care Centre,SOCIAL SERVICES RESIDENTIAL,People's Services,Nursing Care - 3rd party top up payment,A56023
London Borough of Sutton,10/05/2024,50493170,-878.84,Bridge House Care Centre,SOCIAL SERVICES RESIDENTIAL,People's Services,Nursing Care - 3rd party top up payment,A56023
London Borough of Sutton,10/05/2024,50493170,"4,558.84",Bridge House Care Centre,SOCIAL SERVICES RESIDENTIAL,People's Services,Nursing Care Short Term,A56026
London Borough of Sutton,17/05/2024,20076455,"3,202.85",Bridgestock Housing Services,CHILDREN'S SERVICES - RESIDENTIAL,People's Services,Approved Lodgings,A61000
London Borough of Sutton,17/05/2024,20076456,"3,094.52",Bridgestock Housing Services,CHILDREN'S SERVICES - RESIDENTIAL,People's Services,Approved Lodgings,A61000
London Borough of Sutton,17/05/2024,20076457,"3,527.85",Bridgestock Housing Services,CHILDREN'S SERVICES - RESIDENTIAL,People's Services,Approved Lodgings,A61000
London Borough of Sutton,17/05/2024,20076459,"4,069.52",Bridgestock Housing Services,CHILDREN'S SERVICES - RESIDENTIAL,People's Services,Approved Lodgings,A61000
London Borough of Sutton,17/05/2024,20076460,"5,152.85",Bridgestock Housing Services,CHILDREN'S SERVICES - RESIDENTIAL,People's Services,Approved Lodgings,A61000
London Borough of Sutton,17/05/2024,20076461,"5,161.80",Bridgestock Housing Services,CHILDREN'S SERVICES - RESIDENTIAL,People's Services,Approved Lodgings,A61000
London Borough of Sutton,21/05/2024,20076686,"2,986.18",Bridgestock Housing Services,CHILDREN'S SERVICES - RESIDENTIAL,People's Services,Approved Lodgings,A61000
London Borough of Sutton,15/04/2024,50492615,307.29,Bridgestock Housing Services,CHILDREN'S SERVICES - RESIDENTIAL,People's Services,Approved Lodgings,A61000
London Borough of Sutton,15/04/2024,50492615,"4,821.42",Bridgestock Housing Services,CHILDREN'S SERVICES - RESIDENTIAL,People's Services,Approved Lodgings,A61000
London Borough of Sutton,01/04/2024,50492508,"3,385.71",Bridging Gaps Limited,CHILDREN'S SERVICES - FOSTERING & ADOPTION SERVICES,People's Services,Foster Parents Support,A44110
London Borough of Sutton,02/05/2024,20075498,"3,632.87",Bridging the Gap,CHILDREN'S SERVICE - OTHER,People's Services,Approved Lodgings,A61000
London Borough of Sutton,01/05/2024,20075477,"5,500.00",Brightcorp Ltd,TRAINING,Development Growth and Regeneration,Fees,A44040
London Borough of Sutton,15/04/2024,50492553,728.58,Brighter Futures Foster Care Ltd,CHILDREN'S SERVICES - FOSTERING & ADOPTION SERVICES,People's Services,Foster Parents Support,A44110
London Borough of Sutton,09/05/2024,50494238,"3,745.50",Brighter Futures Foster Care Ltd,CHILDREN'S SERVICES - FOSTERING & ADOPTION SERVICES,People's Services,Foster Parents Support,A44110
London Borough of Sutton,09/05/2024,50494239,"3,543.30",Brighter Futures Foster Care Ltd,CHILDREN'S SERVICES - FOSTERING & ADOPTION SERVICES,People's Services,Foster Parents Support,A44110
London Borough of Sutton,23/04/2024,20075568,"2,336.91",British Gas,UTILITIES,Resources,Gas,A21003
London Borough of Sutton,18/03/2024,20075574,"3,166.14",British Gas,UTILITIES,Resources,Gas,A21003
London Borough of Sutton,21/02/2024,20075767,"1,291.28",British Gas,UTILITIES,HRA,Electricity,A21000
London Borough of Sutton,03/05/2024,20076102,"2,714.95",British Gas,UTILITIES,Resources,Electricity,A21000
London Borough of Sutton,21/03/2024,20076105,"1,226.73",British Gas,UTILITIES,HRA,Electricity,A21000
London Borough of Sutton,10/05/2024,50492738,-875.64,British Home & Hospital For Incurables,SOCIAL SERVICES RESIDENTIAL,People's Services,Nursing Care - Client Cont ( Net paymt ),A56024
London Borough of Sutton,10/05/2024,50492738,"4,096.12",British Home & Hospital For Incurables,SOCIAL SERVICES RESIDENTIAL,People's Services,Nursing Care - Ext Provider,A56025
London Borough of Sutton,10/05/2024,50492738,-878.84,British Home & Hospital For Incurables,SOCIAL SERVICES RESIDENTIAL,People's Services,Nursing Care - 3rd party top up payment,A56023
London Borough of Sutton,30/04/2024,20075848,"1,015.00",British Parking Association,SUBSCRIPTIONS & PUBLICATIONS,Environment Housing and Neighbourhoods,Subscriptions,A47010
London Borough of Sutton,31/03/2024,20075371,"-6,658.17",Brockwell Care,ACCOMMODATION - OTHER,People's Services,One to One Care,A56108
London Borough of Sutton,30/04/2024,20076302,"10,220.87",Brockwell Care,ACCOMMODATION - OTHER,People's Services,One to One Care,A56108
London Borough of Sutton,26/04/2024,20075341,"10,044.20",Browne Jacobson LLP,FINANCIAL / INSURANCE INSTNS,Resources,Professional Fees,A44066
London Borough of Sutton,25/04/2024,50490322,"1,833.29",Brunel SEN Multi Academy Trust,CHILDREN'S SERVICES - SEN SERVICES,People's Services,Top-up Funding,A51016
London Borough of Sutton,16/05/2024,50495461,"1,833.29",Brunel SEN Multi Academy Trust,CHILDREN'S SERVICES - SEN SERVICES,People's Services,Top-up Funding,A51016
London Borough of Sutton,03/05/2024,20075621,"50,261.67",Bugler Developments Ltd,CONSTRUCTION INDUSTRY,HRA,Council Dwellings - Construction & Renovation,C10002
London Borough of Sutton,06/05/2024,20076195,"30,638.00",Buildvantage Management Ltd,ACCOMMODATION BED & BREAKFAST,Environment Housing and Neighbourhoods,Bed & Breakfast,A56000
London Borough of Sutton,31/05/2024,50499034,"20,520.00",Bumpsa Daisies Nurserys,ACADEMIC INSTNS - OTHER,People's Services,Payment - Nursery Funding,A51056
London Borough of Sutton,31/05/2024,50499161,"13,276.80",Bumpsa Daisies Nurserys,ACADEMIC INSTNS - OTHER,People's Services,Payment - Nursery Funding,A51056
London Borough of Sutton,10/05/2024,50492659,"-3,044.55",Bupa Care Services Commissioning Limited,SOCIAL SERVICES RESIDENTIAL,People's Services,Nursing Care - 3rd party top up payment,A56023
London Borough of Sutton,10/05/2024,50492659,"15,797.14",Bupa Care Services Commissioning Limited,SOCIAL SERVICES RESIDENTIAL,People's Services,Nursing Care - Ext Provider,A56025
London Borough of Sutton,10/05/2024,50492716,"7,084.60",Bupa Care Services Commissioning Limited,SOCIAL SERVICES RESIDENTIAL,People's Services,Nursing Care Short Term,A56026
London Borough of Sutton,10/05/2024,50492716,-836.76,Bupa Care Services Commissioning Limited,SOCIAL SERVICES RESIDENTIAL,People's Services,Nursing Care - 3rd party top up payment,A56023
London Borough of Sutton,10/05/2024,50492735,"8,091.16",Bupa Care Services Commissioning Limited,SOCIAL SERVICES RESIDENTIAL,People's Services,Nursing Care Short Term,A56026
London Borough of Sutton,10/05/2024,50492735,"-1,436.76",Bupa Care Services Commissioning Limited,SOCIAL SERVICES RESIDENTIAL,People's Services,Nursing Care - 3rd party top up payment,A56023
London Borough of Sutton,10/05/2024,50492911,"4,339.24",Bupa Care Services Commissioning Limited,SOCIAL SERVICES RESIDENTIAL,People's Services,Nursing Care - Ext Provider,A56025
London Borough of Sutton,10/05/2024,50492911,-878.84,Bupa Care Services Commissioning Limited,SOCIAL SERVICES RESIDENTIAL,People's Services,Nursing Care - 3rd party top up payment,A56023
London Borough of Sutton,10/05/2024,50492935,"4,096.12",Bupa Care Services Commissioning Limited,SOCIAL SERVICES RESIDENTIAL,People's Services,Nursing Care - Ext Provider,A56025
London Borough of Sutton,10/05/2024,50492970,"4,339.24",Bupa Care Services Commissioning Limited,SOCIAL SERVICES RESIDENTIAL,People's Services,Nursing Care Short Term,A56026
London Borough of Sutton,10/05/2024,50492970,-878.84,Bupa Care Services Commissioning Limited,SOCIAL SERVICES RESIDENTIAL,People's Services,Nursing Care - 3rd party top up payment,A56023
London Borough of Sutton,10/05/2024,50492979,-878.84,Bupa Care Services Commissioning Limited,SOCIAL SERVICES RESIDENTIAL,People's Services,Nursing Care - 3rd party top up payment,A56023
London Borough of Sutton,10/05/2024,50493044,"59,686.32",Bupa Care Services Commissioning Limited,SOCIAL SERVICES RESIDENTIAL,People's Services,Nursing Care Short Term,A56026
London Borough of Sutton,10/05/2024,50493044,"-12,805.95",Bupa Care Services Commissioning Limited,SOCIAL SERVICES RESIDENTIAL,People's Services,Nursing Care - 3rd party top up payment,A56023
London Borough of Sutton,10/05/2024,50493045,"-51,859.69",Bupa Care Services Commissioning Limited,SOCIAL SERVICES RESIDENTIAL,People's Services,Nursing Care Short Term,A56026
London Borough of Sutton,10/05/2024,50493045,"11,385.91",Bupa Care Services Commissioning Limited,SOCIAL SERVICES RESIDENTIAL,People's Services,Nursing Care - 3rd party top up payment,A56023
London Borough of Sutton,10/05/2024,50493064,"4,096.12",Bupa Care Services Commissioning Limited,SOCIAL SERVICES RESIDENTIAL,People's Services,Nursing Care Short Term,A56026
London Borough of Sutton,10/05/2024,50493064,-878.84,Bupa Care Services Commissioning Limited,SOCIAL SERVICES RESIDENTIAL,People's Services,Nursing Care - 3rd party top up payment,A56023
London Borough of Sutton,10/05/2024,50493086,"4,096.12",Bupa Care Services Commissioning Limited,SOCIAL SERVICES RESIDENTIAL,People's Services,Nursing Care Short Term,A56026
London Borough of Sutton,10/05/2024,50493086,-878.84,Bupa Care Services Commissioning Limited,SOCIAL SERVICES RESIDENTIAL,People's Services,Nursing Care - 3rd party top up payment,A56023
London Borough of Sutton,14/05/2024,50494673,920.00,Busy Bees Day Nurseries Ltd,GRANTS & EX GRATIA PAYMENTS,People's Services,SEND Inclusion funding,A60038
London Borough of Sutton,31/05/2024,50499037,"16,160.64",Busy Bees Day Nurseries Ltd,GRANTS & EX GRATIA PAYMENTS,People's Services,Payment - Nursery Funding,A51056
London Borough of Sutton,31/05/2024,50499164,"11,257.62",Busy Bees Day Nurseries Ltd,GRANTS & EX GRATIA PAYMENTS,People's Services,Payment - Nursery Funding,A51056
London Borough of Sutton,31/05/2024,50499036,"11,217.60",Busy Bees Day Nurseries Ltd,GRANTS & EX GRATIA PAYMENTS,People's Services,Payment - Nursery Funding,A51056
London Borough of Sutton,31/05/2024,50499163,"6,638.40",Busy Bees Day Nurseries Ltd,GRANTS & EX GRATIA PAYMENTS,People's Services,Payment - Nursery Funding,A51056
London Borough of Sutton,10/05/2024,50492689,"8,118.48",Butterfly's Care Homes Ltd,SOCIAL SERVICES RESIDENTIAL,People's Services,Residential Care - Ext Provider,A56114
London Borough of Sutton,01/05/2024,50492597,"2,879.70",By The Bridge Ltd,CHILDREN'S SERVICES - FOSTERING & ADOPTION SERVICES,People's Services,Foster Parents Support,A44110
London Borough of Sutton,01/05/2024,50492598,"7,457.10",By The Bridge Ltd,CHILDREN'S SERVICES - FOSTERING & ADOPTION SERVICES,People's Services,Foster Parents Support,A44110
London Borough of Sutton,01/05/2024,50492599,"7,457.10",By The Bridge Ltd,CHILDREN'S SERVICES - FOSTERING & ADOPTION SERVICES,People's Services,Foster Parents Support,A44110
London Borough of Sutton,01/05/2024,50492607,"4,516.50",By The Bridge Ltd,CHILDREN'S SERVICES - FOSTERING & ADOPTION SERVICES,People's Services,Foster Parents Support,A44110
London Borough of Sutton,30/05/2024,50498830,567.74,REDACTED - PERSONAL DATA,FOSTER PARENTS,People's Services,Holiday Allowances,A56013
London Borough of Sutton,30/04/2024,20075317,"1,940.00",Cablesheer (Asbestos) Ltd,CONSTRUCTION INDUSTRY,HRA,Payments to Contractors,C14000
London Borough of Sutton,30/04/2024,20075319,"5,973.44",Cablesheer (Asbestos) Ltd,CONSTRUCTION INDUSTRY,HRA,Payments to Contractors,C14000
London Borough of Sutton,30/04/2024,20075320,"2,320.00",Cablesheer (Asbestos) Ltd,CONSTRUCTION INDUSTRY,HRA,Payments to Contractors,C14000
London Borough of Sutton,28/03/2024,20076024,"29,055.21",Cablesheer (Asbestos) Ltd,CONSTRUCTION INDUSTRY,HRA,Payments to Contractors,C14000
London Borough of Sutton,19/03/2024,50492578,"23,588.70",Calcot Services for Children Ltd,CHILDREN'S SERVICES - FOSTERING & ADOPTION SERVICES,People's Services,Residential Care-Children,A56115
London Borough of Sutton,27/04/2024,20075168,"3,502.22",Calfordseaden LLP,LEGAL & PROFESSIONAL SERVICES,Environment Housing and Neighbourhoods,External Fees and Consultants,C20000
London Borough of Sutton,30/04/2024,20075826,"2,105.00",Calfordseaden LLP,LEGAL & PROFESSIONAL SERVICES,Development Growth and Regeneration,External Fees and Consultants,C20000
London Borough of Sutton,14/05/2024,20076241,"2,750.00",Calfordseaden LLP,LEGAL & PROFESSIONAL SERVICES,Development Growth and Regeneration,External Fees and Consultants,C20000
London Borough of Sutton,26/04/2024,50492584,"19,457.10",Cambian Childcare Ltd,CHILDREN'S SERVICES - FOSTERING & ADOPTION SERVICES,People's Services,Residential Care-Children,A56115
London Borough of Sutton,28/05/2024,50498871,"4,071.43",Cambian Childcare Ltd,CHILDREN'S SERVICES - FOSTERING & ADOPTION SERVICES,People's Services,Independent School Fees,A56002
London Borough of Sutton,30/04/2024,20075977,484.64,Canon (UK) Ltd,REPROGRAPHICS & PHOTOGRAPHY,Resources,IT Hardware Maintenance,A45008
London Borough of Sutton,10/05/2024,50492783,"4,060.72",Canterbury Oast Trust,SOCIAL SERVICES RESIDENTIAL,People's Services,Residential Care - Ext Provider,A56114
London Borough of Sutton,10/05/2024,50492783,204.72,Canterbury Oast Trust,SOCIAL SERVICES RESIDENTIAL,People's Services,One to One Care,A56108
London Borough of Sutton,10/05/2024,50492783,"-1,032.56",Canterbury Oast Trust,SOCIAL SERVICES RESIDENTIAL,People's Services,Residential Care - Client Cont ( Net Paymt ),A56113
London Borough of Sutton,03/05/2024,50493806,"4,344.14",Capital City College Group,CHILDREN'S SERVICES - SEN SERVICES,People's Services,Top-up Funding,A51016
London Borough of Sutton,25/07/2023,50491562,"1,000.00",Caprani Care Limited,SOCIAL SERVICES RESIDENTIAL,People's Services,Day Care Services,A56021
London Borough of Sutton,02/05/2024,50491569,"1,000.00",Caprani Care Limited,SOCIAL SERVICES RESIDENTIAL,People's Services,Day Care Services,A56021
London Borough of Sutton,25/07/2023,50491915,"3,242.56",Caprani Care Limited,SOCIAL SERVICES RESIDENTIAL,People's Services,Supported Living,A56088
London Borough of Sutton,25/07/2023,50491915,"2,112.00",Caprani Care Limited,SOCIAL SERVICES RESIDENTIAL,People's Services,One to One Care,A56108
London Borough of Sutton,25/07/2023,50491915,721.44,Caprani Care Limited,SOCIAL SERVICES RESIDENTIAL,People's Services,Supported Living,A56088
London Borough of Sutton,02/05/2024,50491919,"2,772.00",Caprani Care Limited,SOCIAL SERVICES RESIDENTIAL,People's Services,Supported Living,A56088
London Borough of Sutton,02/05/2024,50491919,"2,462.32",Caprani Care Limited,SOCIAL SERVICES RESIDENTIAL,People's Services,One to One Care,A56108
London Borough of Sutton,02/05/2024,50491919,841.68,Caprani Care Limited,SOCIAL SERVICES RESIDENTIAL,People's Services,Supported Living,A56088
London Borough of Sutton,03/05/2024,50491920,"2,772.00",Caprani Care Limited,SOCIAL SERVICES RESIDENTIAL,People's Services,Supported Living,A56088
London Borough of Sutton,03/05/2024,50491920,"2,462.32",Caprani Care Limited,SOCIAL SERVICES RESIDENTIAL,People's Services,One to One Care,A56108
London Borough of Sutton,03/05/2024,50491920,841.68,Caprani Care Limited,SOCIAL SERVICES RESIDENTIAL,People's Services,Supported Living,A56088
London Borough of Sutton,03/05/2024,50493926,"1,000.00",Caprani Care Limited,SOCIAL SERVICES RESIDENTIAL,People's Services,Day Care Services,A56021
London Borough of Sutton,03/05/2024,50493933,"2,772.00",Caprani Care Limited,SOCIAL SERVICES RESIDENTIAL,People's Services,Supported Living,A56088
London Borough of Sutton,03/05/2024,50493933,"2,462.32",Caprani Care Limited,SOCIAL SERVICES RESIDENTIAL,People's Services,One to One Care,A56108
London Borough of Sutton,03/05/2024,50493933,841.68,Caprani Care Limited,SOCIAL SERVICES RESIDENTIAL,People's Services,Supported Living,A56088
London Borough of Sutton,17/05/2024,50495423,"1,000.00",Caprani Care Limited,SOCIAL SERVICES RESIDENTIAL,People's Services,Day Care Services,A56021
London Borough of Sutton,30/04/2024,50494237,"6,046.80",Capstone Foster Care (South East) Ltd,CHILDREN'S SERVICES - FOSTERING & ADOPTION SERVICES,People's Services,Foster Parents Support,A44110
London Borough of Sutton,30/04/2024,50494243,"6,196.50",Capstone Foster Care (South East) Ltd,CHILDREN'S SERVICES - FOSTERING & ADOPTION SERVICES,People's Services,Foster Parents Support,A44110
London Borough of Sutton,08/04/2024,50491013,"4,012.20",Care Advocates Ltd,MANAGEMENT & TRAINING SERVICES,People's Services,Supported Living,A56088
London Borough of Sutton,08/04/2024,50491013,"2,880.00",Care Advocates Ltd,MANAGEMENT & TRAINING SERVICES,People's Services,Supported Living,A56088
London Borough of Sutton,08/04/2024,50491013,"2,490.30",Care Advocates Ltd,MANAGEMENT & TRAINING SERVICES,People's Services,Supported Living,A56088
London Borough of Sutton,08/04/2024,50491014,"2,708.96",Care Advocates Ltd,MANAGEMENT & TRAINING SERVICES,People's Services,Supported Living,A56088
London Borough of Sutton,08/04/2024,50491014,"1,504.20",Care Advocates Ltd,MANAGEMENT & TRAINING SERVICES,People's Services,Supported Living,A56088
London Borough of Sutton,08/04/2024,50491014,"1,202.44",Care Advocates Ltd,MANAGEMENT & TRAINING SERVICES,People's Services,Supported Living,A56088
London Borough of Sutton,08/04/2024,50491015,"3,301.67",Care Advocates Ltd,MANAGEMENT & TRAINING SERVICES,People's Services,Supported Living,A56088
London Borough of Sutton,08/04/2024,50491015,"2,139.43",Care Advocates Ltd,MANAGEMENT & TRAINING SERVICES,People's Services,Supported Living,A56088
London Borough of Sutton,08/04/2024,50491016,"1,907.91",Care Advocates Ltd,MANAGEMENT & TRAINING SERVICES,People's Services,Supported Living,A56088
London Borough of Sutton,08/04/2024,50491016,"2,386.29",Care Advocates Ltd,MANAGEMENT & TRAINING SERVICES,People's Services,Supported Living,A56088
London Borough of Sutton,08/04/2024,50491016,"2,490.30",Care Advocates Ltd,MANAGEMENT & TRAINING SERVICES,People's Services,Supported Living,A56088
London Borough of Sutton,24/04/2024,50491956,"3,200.06",Care Advocates Ltd,MANAGEMENT & TRAINING SERVICES,People's Services,Supported Living,A56088
London Borough of Sutton,24/04/2024,50491956,"-1,600.00",Care Advocates Ltd,MANAGEMENT & TRAINING SERVICES,People's Services,Nursing Care - 3rd party top up payment,A56023
London Borough of Sutton,22/05/2024,50498971,"6,942.77",Care Advocates Ltd,MANAGEMENT & TRAINING SERVICES,People's Services,Supported Living,A56088
London Borough of Sutton,22/05/2024,50498971,"-3,428.57",Care Advocates Ltd,MANAGEMENT & TRAINING SERVICES,People's Services,Nursing Care - 3rd party top up payment,A56023
London Borough of Sutton,10/05/2024,50492796,"3,400.00",Care Assist Ltd.,SOCIAL SERVICES RESIDENTIAL,People's Services,Residential Care - Ext Provider,A56114
London Borough of Sutton,10/05/2024,50492796,"-1,700.00",Care Assist Ltd.,SOCIAL SERVICES RESIDENTIAL,People's Services,Nursing Care - 3rd party top up payment,A56023
London Borough of Sutton,10/05/2024,50492630,"7,078.84",Care Base(Redhill)Ltd,SOCIAL SERVICES - OTHER,People's Services,Nursing Care - Ext Provider,A56025
London Borough of Sutton,10/05/2024,50492630,-878.84,Care Base(Redhill)Ltd,SOCIAL SERVICES - OTHER,People's Services,Nursing Care - 3rd party top up payment,A56023
London Borough of Sutton,10/05/2024,50492760,"4,560.00",Care Base(Redhill)Ltd,SOCIAL SERVICES - OTHER,People's Services,Nursing Care - Ext Provider,A56025
London Borough of Sutton,10/05/2024,50492760,-878.84,Care Base(Redhill)Ltd,SOCIAL SERVICES - OTHER,People's Services,Nursing Care - 3rd party top up payment,A56023
London Borough of Sutton,10/05/2024,50492644,"3,320.32",Care Concern Group,SOCIAL SERVICES RESIDENTIAL,People's Services,Residential Care - Ext Provider,A56114
London Borough of Sutton,23/05/2024,50497163,"2,070.36",Care Connexions UK Limited,SOCIAL SERVICES RESIDENTIAL,People's Services,One to One Care,A56108
London Borough of Sutton,10/05/2024,50492785,"3,768.36",Care Direct Uk Ltd,SOCIAL SERVICES RESIDENTIAL,People's Services,Residential Care - Ext Provider,A56114
London Borough of Sutton,21/04/2024,50490685,918.65,Care More Limited,SOCIAL SERVICES RESIDENTIAL,People's Services,Home Care Services,A56019
London Borough of Sutton,21/04/2024,50490687,229.74,Care More Limited,SOCIAL SERVICES RESIDENTIAL,People's Services,Home Care Services,A56019
London Borough of Sutton,21/04/2024,50490687,"1,072.12",Care More Limited,SOCIAL SERVICES RESIDENTIAL,People's Services,Home Care Services,A56019
London Borough of Sutton,21/04/2024,50490693,87.52,Care More Limited,SOCIAL SERVICES RESIDENTIAL,People's Services,Home Care Services,A56019
London Borough of Sutton,21/04/2024,50490693,"1,071.96",Care More Limited,SOCIAL SERVICES RESIDENTIAL,People's Services,Home Care Services,A56019
London Borough of Sutton,21/04/2024,50490711,995.07,Care More Limited,SOCIAL SERVICES RESIDENTIAL,People's Services,Home Care Services,A56019
London Borough of Sutton,21/04/2024,50490765,689.06,Care More Limited,SOCIAL SERVICES RESIDENTIAL,People's Services,Home Care Services,A56019
London Borough of Sutton,21/04/2024,50490780,918.65,Care More Limited,SOCIAL SERVICES RESIDENTIAL,People's Services,Home Care Services,A56019
London Borough of Sutton,21/04/2024,50490780,21.88,Care More Limited,SOCIAL SERVICES RESIDENTIAL,People's Services,Home Care Services,A56019
London Borough of Sutton,31/03/2024,50491687,888.50,Care More Limited,SOCIAL SERVICES RESIDENTIAL,People's Services,Home Care Services,A56019
London Borough of Sutton,31/03/2024,50491687,20.91,Care More Limited,SOCIAL SERVICES RESIDENTIAL,People's Services,Home Care Services,A56019
London Borough of Sutton,28/04/2024,50491692,918.65,Care More Limited,SOCIAL SERVICES RESIDENTIAL,People's Services,Home Care Services,A56019
London Borough of Sutton,28/04/2024,50491692,21.88,Care More Limited,SOCIAL SERVICES RESIDENTIAL,People's Services,Home Care Services,A56019
London Borough of Sutton,28/04/2024,50491703,229.74,Care More Limited,SOCIAL SERVICES RESIDENTIAL,People's Services,Home Care Services,A56019
London Borough of Sutton,28/04/2024,50491703,"1,072.12",Care More Limited,SOCIAL SERVICES RESIDENTIAL,People's Services,Home Care Services,A56019
London Borough of Sutton,04/12/2023,50491704,209.00,Care More Limited,SOCIAL SERVICES RESIDENTIAL,People's Services,Home Care Services,A56019
London Borough of Sutton,04/12/2023,50491704,"1,034.97",Care More Limited,SOCIAL SERVICES RESIDENTIAL,People's Services,Home Care Services,A56019
London Borough of Sutton,30/10/2023,50491715,522.90,Care More Limited,SOCIAL SERVICES RESIDENTIAL,People's Services,Home Care Services,A56019
London Borough of Sutton,28/04/2024,50491727,87.52,Care More Limited,SOCIAL SERVICES RESIDENTIAL,People's Services,Home Care Services,A56019
London Borough of Sutton,28/04/2024,50491727,"1,071.96",Care More Limited,SOCIAL SERVICES RESIDENTIAL,People's Services,Home Care Services,A56019
London Borough of Sutton,04/12/2023,50491728,"1,024.47",Care More Limited,SOCIAL SERVICES RESIDENTIAL,People's Services,Home Care Services,A56019
London Borough of Sutton,28/04/2024,50491739,995.07,Care More Limited,SOCIAL SERVICES RESIDENTIAL,People's Services,Home Care Services,A56019
London Borough of Sutton,28/04/2024,50491749,918.65,Care More Limited,SOCIAL SERVICES RESIDENTIAL,People's Services,Home Care Services,A56019
London Borough of Sutton,28/04/2024,50491751,689.06,Care More Limited,SOCIAL SERVICES RESIDENTIAL,People's Services,Home Care Services,A56019
London Borough of Sutton,03/12/2023,50493205,783.86,Care More Limited,SOCIAL SERVICES RESIDENTIAL,People's Services,Home Care Services,A56019
London Borough of Sutton,04/02/2024,50493237,83.59,Care More Limited,SOCIAL SERVICES RESIDENTIAL,People's Services,Home Care Services,A56019
London Borough of Sutton,04/02/2024,50493237,"1,024.52",Care More Limited,SOCIAL SERVICES RESIDENTIAL,People's Services,Home Care Services,A56019
London Borough of Sutton,04/02/2024,50493291,951.25,Care More Limited,SOCIAL SERVICES RESIDENTIAL,People's Services,Home Care Services,A56019
London Borough of Sutton,04/02/2024,50493314,658.40,Care More Limited,SOCIAL SERVICES RESIDENTIAL,People's Services,Home Care Services,A56019
London Borough of Sutton,04/02/2024,50493323,878.05,Care More Limited,SOCIAL SERVICES RESIDENTIAL,People's Services,Home Care Services,A56019
London Borough of Sutton,04/02/2024,50493323,20.91,Care More Limited,SOCIAL SERVICES RESIDENTIAL,People's Services,Home Care Services,A56019
London Borough of Sutton,04/02/2024,50493325,878.05,Care More Limited,SOCIAL SERVICES RESIDENTIAL,People's Services,Home Care Services,A56019
London Borough of Sutton,04/02/2024,50493341,219.45,Care More Limited,SOCIAL SERVICES RESIDENTIAL,People's Services,Home Care Services,A56019
London Borough of Sutton,04/02/2024,50493341,"1,024.52",Care More Limited,SOCIAL SERVICES RESIDENTIAL,People's Services,Home Care Services,A56019
London Borough of Sutton,05/05/2024,50495296,689.06,Care More Limited,SOCIAL SERVICES RESIDENTIAL,People's Services,Home Care Services,A56019
London Borough of Sutton,05/05/2024,50495300,918.65,Care More Limited,SOCIAL SERVICES RESIDENTIAL,People's Services,Home Care Services,A56019
London Borough of Sutton,05/05/2024,50495300,32.82,Care More Limited,SOCIAL SERVICES RESIDENTIAL,People's Services,Home Care Services,A56019
London Borough of Sutton,05/05/2024,50495349,918.65,Care More Limited,SOCIAL SERVICES RESIDENTIAL,People's Services,Home Care Services,A56019
London Borough of Sutton,05/05/2024,50495378,229.74,Care More Limited,SOCIAL SERVICES RESIDENTIAL,People's Services,Home Care Services,A56019
London Borough of Sutton,05/05/2024,50495378,"1,072.12",Care More Limited,SOCIAL SERVICES RESIDENTIAL,People's Services,Home Care Services,A56019
London Borough of Sutton,05/05/2024,50495409,87.52,Care More Limited,SOCIAL SERVICES RESIDENTIAL,People's Services,Home Care Services,A56019
London Borough of Sutton,05/05/2024,50495409,"1,071.96",Care More Limited,SOCIAL SERVICES RESIDENTIAL,People's Services,Home Care Services,A56019
London Borough of Sutton,05/05/2024,50495419,995.07,Care More Limited,SOCIAL SERVICES RESIDENTIAL,People's Services,Home Care Services,A56019
London Borough of Sutton,12/05/2024,50498458,689.06,Care More Limited,SOCIAL SERVICES RESIDENTIAL,People's Services,Home Care Services,A56019
London Borough of Sutton,12/05/2024,50498459,918.65,Care More Limited,SOCIAL SERVICES RESIDENTIAL,People's Services,Home Care Services,A56019
London Borough of Sutton,12/05/2024,50498459,21.88,Care More Limited,SOCIAL SERVICES RESIDENTIAL,People's Services,Home Care Services,A56019
London Borough of Sutton,12/05/2024,50498558,918.65,Care More Limited,SOCIAL SERVICES RESIDENTIAL,People's Services,Home Care Services,A56019
London Borough of Sutton,12/05/2024,50498567,229.74,Care More Limited,SOCIAL SERVICES RESIDENTIAL,People's Services,Home Care Services,A56019
London Borough of Sutton,12/05/2024,50498567,"1,072.12",Care More Limited,SOCIAL SERVICES RESIDENTIAL,People's Services,Home Care Services,A56019
London Borough of Sutton,12/05/2024,50498611,87.50,Care More Limited,SOCIAL SERVICES RESIDENTIAL,People's Services,Home Care Services,A56019
London Borough of Sutton,12/05/2024,50498611,"1,071.98",Care More Limited,SOCIAL SERVICES RESIDENTIAL,People's Services,Home Care Services,A56019
London Borough of Sutton,12/05/2024,50498621,995.07,Care More Limited,SOCIAL SERVICES RESIDENTIAL,People's Services,Home Care Services,A56019
London Borough of Sutton,10/05/2024,50492633,"4,772.96",Care UK Homecare Ltd,SOCIAL SERVICES RESIDENTIAL,People's Services,Residential Care - Ext Provider,A56114
London Borough of Sutton,10/05/2024,50492633,-563.20,Care UK Homecare Ltd,SOCIAL SERVICES RESIDENTIAL,People's Services,Residential Care - Client Cont ( Net Paymt ),A56113
London Borough of Sutton,10/05/2024,50492810,-878.84,Care UK Homecare Ltd,SOCIAL SERVICES RESIDENTIAL,People's Services,Nursing Care - 3rd party top up payment,A56023
London Borough of Sutton,10/05/2024,50492810,"4,560.00",Care UK Homecare Ltd,SOCIAL SERVICES RESIDENTIAL,People's Services,Nursing Care Short Term,A56026
London Borough of Sutton,10/05/2024,50492987,"5,458.84",Care UK Homecare Ltd,SOCIAL SERVICES RESIDENTIAL,People's Services,Nursing Care - Ext Provider,A56025
London Borough of Sutton,10/05/2024,50492987,-878.84,Care UK Homecare Ltd,SOCIAL SERVICES RESIDENTIAL,People's Services,Nursing Care - 3rd party top up payment,A56023
London Borough of Sutton,10/05/2024,50493085,"4,096.12",Care UK Homecare Ltd,SOCIAL SERVICES RESIDENTIAL,People's Services,Nursing Care - Ext Provider,A56025
London Borough of Sutton,10/05/2024,50493085,-878.84,Care UK Homecare Ltd,SOCIAL SERVICES RESIDENTIAL,People's Services,Nursing Care - 3rd party top up payment,A56023
London Borough of Sutton,10/05/2024,50493093,"4,560.00",Care UK Homecare Ltd,SOCIAL SERVICES RESIDENTIAL,People's Services,Nursing Care - Ext Provider,A56025
London Borough of Sutton,10/05/2024,50493142,-836.76,Care UK Homecare Ltd,SOCIAL SERVICES RESIDENTIAL,People's Services,Nursing Care - 3rd party top up payment,A56023
London Borough of Sutton,01/04/2024,50490170,"1,074.44",Care Unlimited Domcare Ltd,SOCIAL SERVICES DAY CARE,People's Services,Supported Living,A56088
London Borough of Sutton,01/04/2024,50490170,"1,390.56",Care Unlimited Domcare Ltd,SOCIAL SERVICES DAY CARE,People's Services,Supported Living,A56088
London Borough of Sutton,01/04/2024,50490170,"4,173.16",Care Unlimited Domcare Ltd,SOCIAL SERVICES DAY CARE,People's Services,Supported Living,A56088
London Borough of Sutton,01/04/2024,50490171,410.56,Care Unlimited Domcare Ltd,SOCIAL SERVICES DAY CARE,People's Services,Supported Living,A56088
London Borough of Sutton,01/04/2024,50490171,"3,595.20",Care Unlimited Domcare Ltd,SOCIAL SERVICES DAY CARE,People's Services,Supported Living,A56088
London Borough of Sutton,01/04/2024,50490171,"1,056.88",Care Unlimited Domcare Ltd,SOCIAL SERVICES DAY CARE,People's Services,Supported Living,A56088
London Borough of Sutton,01/04/2024,50490172,410.56,Care Unlimited Domcare Ltd,SOCIAL SERVICES DAY CARE,People's Services,Supported Living,A56088
London Borough of Sutton,01/04/2024,50490172,"3,595.20",Care Unlimited Domcare Ltd,SOCIAL SERVICES DAY CARE,People's Services,Supported Living,A56088
London Borough of Sutton,01/04/2024,50490172,"1,056.88",Care Unlimited Domcare Ltd,SOCIAL SERVICES DAY CARE,People's Services,Supported Living,A56088
London Borough of Sutton,23/04/2024,50495424,"6,751.52",Care Unlimited Domcare Ltd,SOCIAL SERVICES DAY CARE,People's Services,Supported Living,A56088
London Borough of Sutton,01/05/2024,50498940,"1,074.44",Care Unlimited Domcare Ltd,SOCIAL SERVICES DAY CARE,People's Services,Supported Living,A56088
London Borough of Sutton,01/05/2024,50498940,"1,390.56",Care Unlimited Domcare Ltd,SOCIAL SERVICES DAY CARE,People's Services,Supported Living,A56088
London Borough of Sutton,01/05/2024,50498940,"4,173.16",Care Unlimited Domcare Ltd,SOCIAL SERVICES DAY CARE,People's Services,Supported Living,A56088
London Borough of Sutton,01/05/2024,50498960,410.56,Care Unlimited Domcare Ltd,SOCIAL SERVICES DAY CARE,People's Services,Supported Living,A56088
London Borough of Sutton,01/05/2024,50498960,"3,595.20",Care Unlimited Domcare Ltd,SOCIAL SERVICES DAY CARE,People's Services,Supported Living,A56088
London Borough of Sutton,01/05/2024,50498960,"1,056.88",Care Unlimited Domcare Ltd,SOCIAL SERVICES DAY CARE,People's Services,Supported Living,A56088
London Borough of Sutton,01/05/2024,50498961,410.56,Care Unlimited Domcare Ltd,SOCIAL SERVICES DAY CARE,People's Services,Supported Living,A56088
London Borough of Sutton,01/05/2024,50498961,"3,595.20",Care Unlimited Domcare Ltd,SOCIAL SERVICES DAY CARE,People's Services,Supported Living,A56088
London Borough of Sutton,01/05/2024,50498961,"1,056.88",Care Unlimited Domcare Ltd,SOCIAL SERVICES DAY CARE,People's Services,Supported Living,A56088
London Borough of Sutton,25/04/2024,50491646,878.22,Care4Care Services Ltd,SOCIAL SERVICES DAY CARE,People's Services,Home Care Services,A56019
London Borough of Sutton,01/05/2024,50492128,"3,533.79",Care4Care Services Ltd,SOCIAL SERVICES DAY CARE,People's Services,Home Care Services,A56019
London Borough of Sutton,01/05/2024,50492145,784.13,Care4Care Services Ltd,SOCIAL SERVICES DAY CARE,People's Services,Home Care Services,A56019
London Borough of Sutton,01/05/2024,50492146,87.52,Care4Care Services Ltd,SOCIAL SERVICES DAY CARE,People's Services,Home Care Services,A56019
London Borough of Sutton,01/05/2024,50492146,"2,223.04",Care4Care Services Ltd,SOCIAL SERVICES DAY CARE,People's Services,Home Care Services,A56019
London Borough of Sutton,01/05/2024,50492147,752.76,Care4Care Services Ltd,SOCIAL SERVICES DAY CARE,People's Services,Home Care Services,A56019
London Borough of Sutton,01/05/2024,50492148,"2,038.73",Care4Care Services Ltd,SOCIAL SERVICES DAY CARE,People's Services,Home Care Services,A56019
London Borough of Sutton,01/05/2024,50492154,"4,077.45",Care4Care Services Ltd,SOCIAL SERVICES DAY CARE,People's Services,Home Care Services,A56019
London Borough of Sutton,01/05/2024,50493778,"7,301.31",Care4Care Services Ltd,SOCIAL SERVICES DAY CARE,People's Services,Home Care Services,A56019
London Borough of Sutton,29/04/2024,20075347,580.00,Caremark (Sutton),SOCIAL SERVICES DAY CARE,People's Services,One to One Care,A56108
London Borough of Sutton,29/04/2024,20075351,609.00,Caremark (Sutton),SOCIAL SERVICES DAY CARE,People's Services,One to One Care,A56108
London Borough of Sutton,13/05/2024,20076389,584.00,Caremark (Sutton),SOCIAL SERVICES DAY CARE,People's Services,One to One Care,A56108
London Borough of Sutton,13/05/2024,20076393,584.00,Caremark (Sutton),SOCIAL SERVICES DAY CARE,People's Services,One to One Care,A56108
London Borough of Sutton,21/04/2024,50490623,552.31,Caremark (Sutton),SOCIAL SERVICES DAY CARE,People's Services,Home Care Services,A56019
London Borough of Sutton,21/04/2024,50490629,689.06,Caremark (Sutton),SOCIAL SERVICES DAY CARE,People's Services,Home Care Services,A56019
London Borough of Sutton,21/04/2024,50490629,43.76,Caremark (Sutton),SOCIAL SERVICES DAY CARE,People's Services,Home Care Services,A56019
London Borough of Sutton,21/04/2024,50490631,689.06,Caremark (Sutton),SOCIAL SERVICES DAY CARE,People's Services,Home Care Services,A56019
London Borough of Sutton,21/04/2024,50490632,218.80,Caremark (Sutton),SOCIAL SERVICES DAY CARE,People's Services,Home Care Services,A56019
London Borough of Sutton,21/04/2024,50490632,382.74,Caremark (Sutton),SOCIAL SERVICES DAY CARE,People's Services,Home Care Services,A56019
London Borough of Sutton,21/04/2024,50490720,536.06,Caremark (Sutton),SOCIAL SERVICES DAY CARE,People's Services,Home Care Services,A56019
London Borough of Sutton,21/04/2024,50490723,"1,837.92",Caremark (Sutton),SOCIAL SERVICES DAY CARE,People's Services,Home Care Services,A56019
London Borough of Sutton,21/04/2024,50490735,907.86,Caremark (Sutton),SOCIAL SERVICES DAY CARE,People's Services,Home Care Services,A56019
London Borough of Sutton,21/04/2024,50490743,820.34,Caremark (Sutton),SOCIAL SERVICES DAY CARE,People's Services,Home Care Services,A56019
London Borough of Sutton,21/04/2024,50490775,765.80,Caremark (Sutton),SOCIAL SERVICES DAY CARE,People's Services,Home Care Services,A56019
London Borough of Sutton,14/04/2024,50493908,667.03,Caremark (Sutton),SOCIAL SERVICES DAY CARE,People's Services,Home Care Services,A56019
London Borough of Sutton,14/04/2024,50493910,907.86,Caremark (Sutton),SOCIAL SERVICES DAY CARE,People's Services,Home Care Services,A56019
London Borough of Sutton,14/04/2024,50493912,218.78,Caremark (Sutton),SOCIAL SERVICES DAY CARE,People's Services,Home Care Services,A56019
London Borough of Sutton,14/04/2024,50493912,382.76,Caremark (Sutton),SOCIAL SERVICES DAY CARE,People's Services,Home Care Services,A56019
London Borough of Sutton,14/04/2024,50493914,787.65,Caremark (Sutton),SOCIAL SERVICES DAY CARE,People's Services,Home Care Services,A56019
London Borough of Sutton,14/04/2024,50493923,689.06,Caremark (Sutton),SOCIAL SERVICES DAY CARE,People's Services,Home Care Services,A56019
London Borough of Sutton,14/04/2024,50493924,557.94,Caremark (Sutton),SOCIAL SERVICES DAY CARE,People's Services,Home Care Services,A56019
London Borough of Sutton,28/04/2024,50495233,765.80,Caremark (Sutton),SOCIAL SERVICES DAY CARE,People's Services,Home Care Services,A56019
London Borough of Sutton,28/04/2024,50495299,"1,837.92",Caremark (Sutton),SOCIAL SERVICES DAY CARE,People's Services,Home Care Services,A56019
London Borough of Sutton,28/04/2024,50495306,907.86,Caremark (Sutton),SOCIAL SERVICES DAY CARE,People's Services,Home Care Services,A56019
London Borough of Sutton,28/04/2024,50495313,820.34,Caremark (Sutton),SOCIAL SERVICES DAY CARE,People's Services,Home Care Services,A56019
London Borough of Sutton,28/04/2024,50495373,552.31,Caremark (Sutton),SOCIAL SERVICES DAY CARE,People's Services,Home Care Services,A56019
London Borough of Sutton,28/04/2024,50495377,689.08,Caremark (Sutton),SOCIAL SERVICES DAY CARE,People's Services,Home Care Services,A56019
London Borough of Sutton,28/04/2024,50495377,43.74,Caremark (Sutton),SOCIAL SERVICES DAY CARE,People's Services,Home Care Services,A56019
London Borough of Sutton,28/04/2024,50495387,689.06,Caremark (Sutton),SOCIAL SERVICES DAY CARE,People's Services,Home Care Services,A56019
London Borough of Sutton,28/04/2024,50495388,218.78,Caremark (Sutton),SOCIAL SERVICES DAY CARE,People's Services,Home Care Services,A56019
London Borough of Sutton,28/04/2024,50495388,382.76,Caremark (Sutton),SOCIAL SERVICES DAY CARE,People's Services,Home Care Services,A56019
London Borough of Sutton,10/05/2024,20076028,"5,742.86",Caremore Group Ltd,CHILDREN'S SERVICES - FOSTERING & ADOPTION SERVICES,People's Services,Approved Lodgings,A61000
London Borough of Sutton,10/05/2024,50494242,307.29,Caremore Group Ltd,CHILDREN'S SERVICES - FOSTERING & ADOPTION SERVICES,People's Services,Approved Lodgings,A61000
London Borough of Sutton,10/05/2024,50494242,"6,385.71",Caremore Group Ltd,CHILDREN'S SERVICES - FOSTERING & ADOPTION SERVICES,People's Services,Approved Lodgings,A61000
London Borough of Sutton,10/05/2024,50492679,"5,896.69",Caretech Community Services Ltd,SOCIAL SERVICES RESIDENTIAL,People's Services,Residential Care - Ext Provider,A56114
London Borough of Sutton,10/05/2024,50492679,"1,390.51",Caretech Community Services Ltd,SOCIAL SERVICES RESIDENTIAL,People's Services,Residential Care - Client Cont ( Net Paymt ),A56113
London Borough of Sutton,10/05/2024,50492682,"5,621.56",Caretech Community Services Ltd,SOCIAL SERVICES RESIDENTIAL,People's Services,Residential Care - Ext Provider,A56114
London Borough of Sutton,07/05/2024,50491242,"4,076.70",Carew Academy,CHILDREN'S SERVICES - RESIDENTIAL,People's Services,Payment - Teachers Pay Grant,A51026
London Borough of Sutton,07/05/2024,50491248,"11,296.86",Carew Academy,CHILDREN'S SERVICES - RESIDENTIAL,People's Services,Payment - Teachers Pension Grant,A51027
London Borough of Sutton,07/05/2024,20076196,"7,606.50",Caridon Property Ltd,ACCOMMODATION BED & BREAKFAST,Environment Housing and Neighbourhoods,Bed & Breakfast,A56000
London Borough of Sutton,25/04/2024,50492513,307.29,Caridon Young Living Ltd,CHILDREN'S SERVICES - RESIDENTIAL,People's Services,Approved Lodgings,A61000
London Borough of Sutton,25/04/2024,50492513,"4,928.57",Caridon Young Living Ltd,CHILDREN'S SERVICES - RESIDENTIAL,People's Services,Approved Lodgings,A61000
London Borough of Sutton,25/04/2024,50492549,307.29,Caridon Young Living Ltd,CHILDREN'S SERVICES - RESIDENTIAL,People's Services,Approved Lodgings,A61000
London Borough of Sutton,25/04/2024,50492549,"19,821.43",Caridon Young Living Ltd,CHILDREN'S SERVICES - RESIDENTIAL,People's Services,Approved Lodgings,A61000
London Borough of Sutton,25/04/2024,50492628,307.29,Caridon Young Living Ltd,CHILDREN'S SERVICES - RESIDENTIAL,People's Services,Approved Lodgings,A61000
London Borough of Sutton,25/04/2024,50492628,"5,250.00",Caridon Young Living Ltd,CHILDREN'S SERVICES - RESIDENTIAL,People's Services,Approved Lodgings,A61000
London Borough of Sutton,25/04/2024,50492629,"43,928.57",Caridon Young Living Ltd,CHILDREN'S SERVICES - RESIDENTIAL,People's Services,Residential Care-Children,A56115
London Borough of Sutton,30/04/2024,50494244,"22,457.14",Caridon Young Living Ltd,CHILDREN'S SERVICES - RESIDENTIAL,People's Services,Residential Care-Children,A56115
London Borough of Sutton,23/05/2024,50497109,792.72,Care  Support Partners Ltd,SOCIAL SERVICES RESIDENTIAL,People's Services,Supported Living,A56088
London Borough of Sutton,23/05/2024,50497109,634.18,Care  Support Partners Ltd,SOCIAL SERVICES RESIDENTIAL,People's Services,Supported Living,A56088
London Borough of Sutton,23/05/2024,50497109,"2,147.86",Care  Support Partners Ltd,SOCIAL SERVICES RESIDENTIAL,People's Services,Supported Living,A56088
London Borough of Sutton,01/05/2024,50492138,"1,387.26",Carlene House,SOCIAL SERVICES RESIDENTIAL,People's Services,Home Care Services,A56019
London Borough of Sutton,01/05/2024,50492139,"1,567.81",Carlene House,SOCIAL SERVICES RESIDENTIAL,People's Services,Home Care Services,A56019
London Borough of Sutton,01/05/2024,50492140,"1,132.24",Carlene House,SOCIAL SERVICES RESIDENTIAL,People's Services,Home Care Services,A56019
London Borough of Sutton,01/05/2024,50492141,"4,137.42",Carlene House,SOCIAL SERVICES RESIDENTIAL,People's Services,Home Care Services,A56019
London Borough of Sutton,01/05/2024,50492152,"1,655.03",Carlene House,SOCIAL SERVICES RESIDENTIAL,People's Services,Home Care Services,A56019
London Borough of Sutton,01/05/2024,50492153,"1,654.78",Carlene House,SOCIAL SERVICES RESIDENTIAL,People's Services,Home Care Services,A56019
London Borough of Sutton,01/05/2024,50492210,"2,279.92",Carlene House,SOCIAL SERVICES RESIDENTIAL,People's Services,Supported Living,A56088
London Borough of Sutton,01/05/2024,50492210,"1,458.52",Carlene House,SOCIAL SERVICES RESIDENTIAL,People's Services,Supported Living,A56088
London Borough of Sutton,01/05/2024,50492210,784.84,Carlene House,SOCIAL SERVICES RESIDENTIAL,People's Services,Supported Living,A56088
London Borough of Sutton,01/05/2024,50492211,"1,386.64",Carlene House,SOCIAL SERVICES RESIDENTIAL,People's Services,Supported Living,A56088
London Borough of Sutton,01/05/2024,50492211,"1,458.52",Carlene House,SOCIAL SERVICES RESIDENTIAL,People's Services,Supported Living,A56088
London Borough of Sutton,01/05/2024,50492211,784.84,Carlene House,SOCIAL SERVICES RESIDENTIAL,People's Services,Supported Living,A56088
London Borough of Sutton,01/05/2024,50492212,"2,109.24",Carlene House,SOCIAL SERVICES RESIDENTIAL,People's Services,Supported Living,A56088
London Borough of Sutton,01/05/2024,50492212,"1,458.52",Carlene House,SOCIAL SERVICES RESIDENTIAL,People's Services,Supported Living,A56088
London Borough of Sutton,01/05/2024,50492212,784.84,Carlene House,SOCIAL SERVICES RESIDENTIAL,People's Services,Supported Living,A56088
London Borough of Sutton,01/05/2024,50492213,"1,829.19",Carlene House,SOCIAL SERVICES RESIDENTIAL,People's Services,Supported Living,A56088
London Borough of Sutton,10/05/2024,50492879,"7,002.79",Carlene House,SOCIAL SERVICES RESIDENTIAL,People's Services,Residential Care - Ext Provider,A56114
London Borough of Sutton,10/05/2024,50492955,"6,127.44",Carlene House,SOCIAL SERVICES RESIDENTIAL,People's Services,Residential Care - Ext Provider,A56114
London Borough of Sutton,10/05/2024,50493006,"6,127.44",Carlene House,SOCIAL SERVICES RESIDENTIAL,People's Services,Residential Care - Ext Provider,A56114
London Borough of Sutton,10/05/2024,50493087,"6,127.44",Carlene House,SOCIAL SERVICES RESIDENTIAL,People's Services,Residential Care - Ext Provider,A56114
London Borough of Sutton,10/05/2024,50493090,"6,127.44",Carlene House,SOCIAL SERVICES RESIDENTIAL,People's Services,Residential Care - Ext Provider,A56114
London Borough of Sutton,10/05/2024,50493149,"6,127.44",Carlene House,SOCIAL SERVICES RESIDENTIAL,People's Services,Residential Care - Ext Provider,A56114
London Borough of Sutton,10/05/2024,50493185,"6,127.44",Carlene House,SOCIAL SERVICES RESIDENTIAL,People's Services,Residential Care - Ext Provider,A56114
London Borough of Sutton,01/05/2024,50493597,800.36,Carlene House,SOCIAL SERVICES RESIDENTIAL,People's Services,Supported Living,A56088
London Borough of Sutton,01/05/2024,50493597,"1,614.79",Carlene House,SOCIAL SERVICES RESIDENTIAL,People's Services,Supported Living,A56088
London Borough of Sutton,01/05/2024,50493597,868.93,Carlene House,SOCIAL SERVICES RESIDENTIAL,People's Services,Supported Living,A56088
London Borough of Sutton,07/05/2024,50493782,"1,345.92",Carlene House,SOCIAL SERVICES RESIDENTIAL,People's Services,Supported Living,A56088
London Borough of Sutton,07/05/2024,50493782,"4,390.72",Carlene House,SOCIAL SERVICES RESIDENTIAL,People's Services,Supported Living,A56088
London Borough of Sutton,01/04/2024,50493790,"1,756.44",Carlene House,SOCIAL SERVICES RESIDENTIAL,People's Services,Supported Living,A56088
London Borough of Sutton,31/05/2024,50499080,"1,993.95",REDACTED - PERSONAL DATA,GRANTS & EX GRATIA PAYMENTS,People's Services,Payment - Nursery Funding,A51056
London Borough of Sutton,31/05/2024,50499212,852.30,REDACTED - PERSONAL DATA,GRANTS & EX GRATIA PAYMENTS,People's Services,Payment - Nursery Funding,A51056
London Borough of Sutton,03/05/2024,50491035,500.00,REDACTED - PERSONAL DATA,GRANTS & EX GRATIA PAYMENTS,Environment Housing and Neighbourhoods,"Grants, Contributions & Donations",A47005
London Borough of Sutton,31/05/2024,50499032,"1,614.15",REDACTED - PERSONAL DATA,GRANTS & EX GRATIA PAYMENTS,People's Services,Payment - Nursery Funding,A51056
London Borough of Sutton,31/05/2024,50499159,"2,130.75",REDACTED - PERSONAL DATA,GRANTS & EX GRATIA PAYMENTS,People's Services,Payment - Nursery Funding,A51056
London Borough of Sutton,07/05/2024,50491254,"7,310.20",Carshalton Boys Sports College (Academy),SCHOOL FUNDS,People's Services,Pupil Growth,A51014
London Borough of Sutton,29/05/2024,50498886,"13,084.48",Carshalton Boys Sports College (Academy),SCHOOL FUNDS,People's Services,Top-up Funding,A51016
London Borough of Sutton,27/03/2024,20073047,869.00,Carter Jonas LLP,LEGAL & PROFESSIONAL SERVICES,Environment Housing and Neighbourhoods,Payments to Contractors,C14000
London Borough of Sutton,25/04/2024,20075049,"1,593.60",Carter Jonas LLP,LEGAL & PROFESSIONAL SERVICES,Environment Housing and Neighbourhoods,Payments to Contractors,C14000
London Borough of Sutton,31/05/2024,50499081,569.70,REDACTED - PERSONAL DATA,GRANTS & EX GRATIA PAYMENTS,People's Services,Payment - Nursery Funding,A51056
London Borough of Sutton,31/05/2024,50499092,854.55,REDACTED - PERSONAL DATA,GRANTS & EX GRATIA PAYMENTS,People's Services,Payment - Nursery Funding,A51056
London Borough of Sutton,23/05/2024,50497180,"2,242.23",Centred (Scotland) N,SOCIAL SERVICES RESIDENTIAL,People's Services,Supported Living,A56088
London Borough of Sutton,29/04/2024,50492523,"23,314.29",Champion Children (Fig Tree) Limited,CHILDREN'S SERVICE - OTHER,People's Services,Residential Care-Children,A56115
London Borough of Sutton,10/05/2024,50492642,"4,080.00",CHARING GARDENS LTD,SOCIAL SERVICES RESIDENTIAL,People's Services,Residential Care - Ext Provider,A56114
London Borough of Sutton,14/05/2024,50494675,"3,220.00",Cheam Baptist Church Pre-School,ACADEMIC INSTNS - OTHER,People's Services,SEND Inclusion funding,A60038
London Borough of Sutton,31/05/2024,50499041,"13,018.50",Cheam Baptist Church Pre-School,ACADEMIC INSTNS - OTHER,People's Services,Payment - Nursery Funding,A51056
London Borough of Sutton,26/04/2024,20075161,"2,498.49",Cheam Common Infants School -ACADEMY,SCHOOL FUNDS,Resources,Provider Contract Payments,A44290
London Borough of Sutton,07/05/2024,50491193,"27,324.00",Cheam Common Infants School -ACADEMY,SCHOOL FUNDS,People's Services,Payment - Nursery Funding,A51056
London Borough of Sutton,29/05/2024,50498888,"5,717.63",Cheam Common Infants School -ACADEMY,SCHOOL FUNDS,People's Services,Top-up Funding,A51016
London Borough of Sutton,31/05/2024,50498982,"27,324.00",Cheam Common Infants School -ACADEMY,SCHOOL FUNDS,People's Services,Payment - Nursery Funding,A51056
London Borough of Sutton,31/05/2024,50499013,"4,800.00",Cheam Common Infants School -ACADEMY,SCHOOL FUNDS,People's Services,SEND Inclusion funding,A60038
London Borough of Sutton,07/05/2024,50491256,"4,873.40",Cheam High School (Academy),SCHOOL FUNDS,People's Services,Pupil Growth,A51014
London Borough of Sutton,07/05/2024,50491195,"14,859.00",Cheam Park Farm Primary School  ,SCHOOL FUNDS,People's Services,Payment - Nursery Funding,A51056
London Borough of Sutton,29/05/2024,50498891,"3,838.35",Cheam Park Farm Primary School  ,SCHOOL FUNDS,People's Services,Top-up Funding,A51016
London Borough of Sutton,31/05/2024,50498984,"14,859.00",Cheam Park Farm Primary School  ,SCHOOL FUNDS,People's Services,Payment - Nursery Funding,A51056
London Borough of Sutton,31/05/2024,50499014,600.00,Cheam Park Farm Primary School  ,SCHOOL FUNDS,People's Services,SEND Inclusion funding,A60038
London Borough of Sutton,10/05/2024,50492821,"4,096.12",Chegworth Nursing Home Bayswift Ltd,SOCIAL SERVICES RESIDENTIAL,People's Services,Nursing Care - Ext Provider,A56025
London Borough of Sutton,10/05/2024,50492821,-878.84,Chegworth Nursing Home Bayswift Ltd,SOCIAL SERVICES RESIDENTIAL,People's Services,Nursing Care - 3rd party top up payment,A56023
London Borough of Sutton,10/05/2024,50492840,-878.84,Chegworth Nursing Home Bayswift Ltd,SOCIAL SERVICES RESIDENTIAL,People's Services,Nursing Care - 3rd party top up payment,A56023
London Borough of Sutton,10/05/2024,50492840,"4,096.12",Chegworth Nursing Home Bayswift Ltd,SOCIAL SERVICES RESIDENTIAL,People's Services,Nursing Care Short Term,A56026
London Borough of Sutton,10/05/2024,50492846,"4,400.00",Chegworth Nursing Home Bayswift Ltd,SOCIAL SERVICES RESIDENTIAL,People's Services,Nursing Care - Ext Provider,A56025
London Borough of Sutton,10/05/2024,50492846,-878.84,Chegworth Nursing Home Bayswift Ltd,SOCIAL SERVICES RESIDENTIAL,People's Services,Nursing Care - 3rd party top up payment,A56023
London Borough of Sutton,10/05/2024,50492872,"4,560.00",Chegworth Nursing Home Bayswift Ltd,SOCIAL SERVICES RESIDENTIAL,People's Services,Nursing Care - Ext Provider,A56025
London Borough of Sutton,10/05/2024,50492872,-878.84,Chegworth Nursing Home Bayswift Ltd,SOCIAL SERVICES RESIDENTIAL,People's Services,Nursing Care - 3rd party top up payment,A56023
London Borough of Sutton,10/05/2024,50492878,"-1,851.84",Chegworth Nursing Home Bayswift Ltd,SOCIAL SERVICES RESIDENTIAL,People's Services,Nursing Care - 3rd party top up payment,A56023
London Borough of Sutton,10/05/2024,50492878,"10,451.43",Chegworth Nursing Home Bayswift Ltd,SOCIAL SERVICES RESIDENTIAL,People's Services,Nursing Care - Ext Provider,A56025
London Borough of Sutton,10/05/2024,50492906,"4,096.12",Chegworth Nursing Home Bayswift Ltd,SOCIAL SERVICES RESIDENTIAL,People's Services,Nursing Care - Ext Provider,A56025
London Borough of Sutton,10/05/2024,50492906,-878.84,Chegworth Nursing Home Bayswift Ltd,SOCIAL SERVICES RESIDENTIAL,People's Services,Nursing Care - 3rd party top up payment,A56023
London Borough of Sutton,10/05/2024,50492908,-878.84,Chegworth Nursing Home Bayswift Ltd,SOCIAL SERVICES RESIDENTIAL,People's Services,Nursing Care - 3rd party top up payment,A56023
London Borough of Sutton,10/05/2024,50492908,"4,096.12",Chegworth Nursing Home Bayswift Ltd,SOCIAL SERVICES RESIDENTIAL,People's Services,Nursing Care Short Term,A56026
London Borough of Sutton,10/05/2024,50492922,"4,096.12",Chegworth Nursing Home Bayswift Ltd,SOCIAL SERVICES RESIDENTIAL,People's Services,Nursing Care - Ext Provider,A56025
London Borough of Sutton,10/05/2024,50492922,-878.84,Chegworth Nursing Home Bayswift Ltd,SOCIAL SERVICES RESIDENTIAL,People's Services,Nursing Care - 3rd party top up payment,A56023
London Borough of Sutton,10/05/2024,50492926,"4,560.00",Chegworth Nursing Home Bayswift Ltd,SOCIAL SERVICES RESIDENTIAL,People's Services,Nursing Care - Ext Provider,A56025
London Borough of Sutton,10/05/2024,50492926,-878.84,Chegworth Nursing Home Bayswift Ltd,SOCIAL SERVICES RESIDENTIAL,People's Services,Nursing Care - 3rd party top up payment,A56023
London Borough of Sutton,10/05/2024,50492942,-673.94,Chegworth Nursing Home Bayswift Ltd,SOCIAL SERVICES RESIDENTIAL,People's Services,Nursing Care - 3rd party top up payment,A56023
London Borough of Sutton,10/05/2024,50492942,"3,391.43",Chegworth Nursing Home Bayswift Ltd,SOCIAL SERVICES RESIDENTIAL,People's Services,Nursing Care Short Term,A56026
London Borough of Sutton,10/05/2024,50492971,-878.84,Chegworth Nursing Home Bayswift Ltd,SOCIAL SERVICES RESIDENTIAL,People's Services,Nursing Care - 3rd party top up payment,A56023
London Borough of Sutton,10/05/2024,50492971,"4,096.12",Chegworth Nursing Home Bayswift Ltd,SOCIAL SERVICES RESIDENTIAL,People's Services,Nursing Care - Ext Provider,A56025
London Borough of Sutton,10/05/2024,50492973,"4,150.40",Chegworth Nursing Home Bayswift Ltd,SOCIAL SERVICES RESIDENTIAL,People's Services,Nursing Care - Ext Provider,A56025
London Borough of Sutton,10/05/2024,50493000,"4,096.12",Chegworth Nursing Home Bayswift Ltd,SOCIAL SERVICES RESIDENTIAL,People's Services,Nursing Care - Ext Provider,A56025
London Borough of Sutton,10/05/2024,50493000,-878.84,Chegworth Nursing Home Bayswift Ltd,SOCIAL SERVICES RESIDENTIAL,People's Services,Nursing Care - 3rd party top up payment,A56023
London Borough of Sutton,10/05/2024,50493036,-878.84,Chegworth Nursing Home Bayswift Ltd,SOCIAL SERVICES RESIDENTIAL,People's Services,Nursing Care - 3rd party top up payment,A56023
London Borough of Sutton,10/05/2024,50493036,"4,096.12",Chegworth Nursing Home Bayswift Ltd,SOCIAL SERVICES RESIDENTIAL,People's Services,Nursing Care - Ext Provider,A56025
London Borough of Sutton,10/05/2024,50493057,-878.84,Chegworth Nursing Home Bayswift Ltd,SOCIAL SERVICES RESIDENTIAL,People's Services,Nursing Care - 3rd party top up payment,A56023
London Borough of Sutton,10/05/2024,50493057,"4,560.00",Chegworth Nursing Home Bayswift Ltd,SOCIAL SERVICES RESIDENTIAL,People's Services,Nursing Care Short Term,A56026
London Borough of Sutton,10/05/2024,50493073,-878.84,Chegworth Nursing Home Bayswift Ltd,SOCIAL SERVICES RESIDENTIAL,People's Services,Nursing Care - 3rd party top up payment,A56023
London Borough of Sutton,10/05/2024,50493073,"4,096.12",Chegworth Nursing Home Bayswift Ltd,SOCIAL SERVICES RESIDENTIAL,People's Services,Nursing Care Short Term,A56026
London Borough of Sutton,10/05/2024,50493083,"4,096.12",Chegworth Nursing Home Bayswift Ltd,SOCIAL SERVICES RESIDENTIAL,People's Services,Nursing Care - Ext Provider,A56025
London Borough of Sutton,10/05/2024,50493083,-878.84,Chegworth Nursing Home Bayswift Ltd,SOCIAL SERVICES RESIDENTIAL,People's Services,Nursing Care - 3rd party top up payment,A56023
London Borough of Sutton,10/05/2024,50493101,-878.84,Chegworth Nursing Home Bayswift Ltd,SOCIAL SERVICES RESIDENTIAL,People's Services,Nursing Care - 3rd party top up payment,A56023
London Borough of Sutton,10/05/2024,50493101,"4,560.00",Chegworth Nursing Home Bayswift Ltd,SOCIAL SERVICES RESIDENTIAL,People's Services,Nursing Care Short Term,A56026
London Borough of Sutton,10/05/2024,50493108,"4,096.12",Chegworth Nursing Home Bayswift Ltd,SOCIAL SERVICES RESIDENTIAL,People's Services,Nursing Care - Ext Provider,A56025
London Borough of Sutton,10/05/2024,50493108,-878.84,Chegworth Nursing Home Bayswift Ltd,SOCIAL SERVICES RESIDENTIAL,People's Services,Nursing Care - 3rd party top up payment,A56023
London Borough of Sutton,10/05/2024,50493134,"4,149.92",Chegworth Nursing Home Bayswift Ltd,SOCIAL SERVICES RESIDENTIAL,People's Services,Nursing Care - Ext Provider,A56025
London Borough of Sutton,10/05/2024,50493134,-750.40,Chegworth Nursing Home Bayswift Ltd,SOCIAL SERVICES RESIDENTIAL,People's Services,Nursing Care - 3rd party top up payment,A56023
London Borough of Sutton,10/05/2024,50493179,-662.24,Chegworth Nursing Home Bayswift Ltd,SOCIAL SERVICES RESIDENTIAL,People's Services,Nursing Care - 3rd party top up payment,A56023
London Borough of Sutton,10/05/2024,50493179,"4,955.56",Chegworth Nursing Home Bayswift Ltd,SOCIAL SERVICES RESIDENTIAL,People's Services,Nursing Care Short Term,A56026
London Borough of Sutton,10/05/2024,50493180,"4,096.12",Chegworth Nursing Home Bayswift Ltd,SOCIAL SERVICES RESIDENTIAL,People's Services,Nursing Care - Ext Provider,A56025
London Borough of Sutton,10/05/2024,50493180,-878.84,Chegworth Nursing Home Bayswift Ltd,SOCIAL SERVICES RESIDENTIAL,People's Services,Nursing Care - 3rd party top up payment,A56023
London Borough of Sutton,10/05/2024,50493201,"4,551.43",Chegworth Nursing Home Bayswift Ltd,SOCIAL SERVICES RESIDENTIAL,People's Services,Nursing Care - Ext Provider,A56025
London Borough of Sutton,10/05/2024,50493201,-909.82,Chegworth Nursing Home Bayswift Ltd,SOCIAL SERVICES RESIDENTIAL,People's Services,Nursing Care - 3rd party top up payment,A56023
London Borough of Sutton,14/05/2024,20076569,"13,725.00",Chelsea Studios Ltd,ACCOMMODATION BED & BREAKFAST,Environment Housing and Neighbourhoods,Temporary Protection - Homeless Persons,A62028
London Borough of Sutton,10/05/2024,50492681,"4,443.40",CARELODGES GROUP LIMITED,SOCIAL SERVICES RESIDENTIAL,People's Services,Residential Care - Ext Provider,A56114
London Borough of Sutton,10/05/2024,50492732,-508.04,CARELODGES GROUP LIMITED,SOCIAL SERVICES RESIDENTIAL,People's Services,Residential Care - Client Cont ( Net Paymt ),A56113
London Borough of Sutton,10/05/2024,50492732,"5,159.40",CARELODGES GROUP LIMITED,SOCIAL SERVICES RESIDENTIAL,People's Services,Residential Care - Ext Provider,A56114
London Borough of Sutton,07/05/2024,50493811,"7,479.06",Children's Trust,CHILDREN'S SERVICES - DAY CARE,People's Services,Independent School Fees,A56002
London Borough of Sutton,07/05/2024,50493812,"7,207.50",Children's Trust,CHILDREN'S SERVICES - DAY CARE,People's Services,Independent School Fees,A56002
London Borough of Sutton,07/05/2024,50493813,"7,479.06",Children's Trust,CHILDREN'S SERVICES - DAY CARE,People's Services,Independent School Fees,A56002
London Borough of Sutton,07/05/2024,50493814,"7,225.79",Children's Trust,CHILDREN'S SERVICES - DAY CARE,People's Services,Independent School Fees,A56002
London Borough of Sutton,31/05/2024,50499042,"1,993.95",Chiltern Day Nursery,ACADEMIC INSTNS - OTHER,People's Services,Payment - Nursery Funding,A51056
London Borough of Sutton,16/05/2024,50495453,"6,666.65",Chipstead Valley Primary School,SCHOOL FUNDS,People's Services,Top-up Funding,A51016
London Borough of Sutton,10/05/2024,50492805,"8,863.92",Choice Care Group (Surrey) Ltd,SOCIAL SERVICES RESIDENTIAL,People's Services,Residential Care - Ext Provider,A56114
London Borough of Sutton,10/05/2024,50492818,"8,769.56",Choice Care Group (Surrey) Ltd,SOCIAL SERVICES RESIDENTIAL,People's Services,Residential Care - Ext Provider,A56114
London Borough of Sutton,10/05/2024,50492986,"8,682.92",Choice Care Group (Surrey) Ltd,SOCIAL SERVICES RESIDENTIAL,People's Services,Residential Care - Ext Provider,A56114
London Borough of Sutton,10/05/2024,50493009,"7,809.32",Choice Care Group (Surrey) Ltd,SOCIAL SERVICES RESIDENTIAL,People's Services,Residential Care - Ext Provider,A56114
London Borough of Sutton,10/05/2024,50493153,"7,512.24",Choice Care Group (Surrey) Ltd,SOCIAL SERVICES RESIDENTIAL,People's Services,Residential Care - Ext Provider,A56114
London Borough of Sutton,29/04/2024,20075212,"1,650.40",Choice Support,GRANTS & EX GRATIA PAYMENTS,People's Services,Provider Contract Payments,A44290
London Borough of Sutton,29/04/2024,20075213,"1,650.40",Choice Support,GRANTS & EX GRATIA PAYMENTS,People's Services,Provider Contract Payments,A44290
London Borough of Sutton,29/04/2024,20075214,"1,788.44",Choice Support,GRANTS & EX GRATIA PAYMENTS,People's Services,Provider Contract Payments,A44290
London Borough of Sutton,29/04/2024,20075215,"1,650.40",Choice Support,GRANTS & EX GRATIA PAYMENTS,People's Services,Provider Contract Payments,A44290
London Borough of Sutton,29/04/2024,20075216,"2,116.64",Choice Support,GRANTS & EX GRATIA PAYMENTS,People's Services,Provider Contract Payments,A44290
London Borough of Sutton,29/04/2024,20075217,"1,872.52",Choice Support,GRANTS & EX GRATIA PAYMENTS,People's Services,Provider Contract Payments,A44290
London Borough of Sutton,28/03/2024,50490893,"6,484.68",Choice Support,GRANTS & EX GRATIA PAYMENTS,People's Services,Home Care Services,A56019
London Borough of Sutton,10/05/2024,50492728,"5,887.60",Choice Support,GRANTS & EX GRATIA PAYMENTS,People's Services,Residential Care - Ext Provider,A56114
London Borough of Sutton,23/05/2024,50497068,644.00,Choice Support,GRANTS & EX GRATIA PAYMENTS,People's Services,Supported Living,A56088
London Borough of Sutton,23/05/2024,50497069,"4,771.70",Choice Support,GRANTS & EX GRATIA PAYMENTS,People's Services,Supported Living,A56088
London Borough of Sutton,23/05/2024,50497069,"1,179.24",Choice Support,GRANTS & EX GRATIA PAYMENTS,People's Services,Supported Living,A56088
London Borough of Sutton,23/05/2024,50497070,"8,689.92",Choice Support,GRANTS & EX GRATIA PAYMENTS,People's Services,Supported Living,A56088
London Borough of Sutton,23/05/2024,50497070,"1,965.14",Choice Support,GRANTS & EX GRATIA PAYMENTS,People's Services,Supported Living,A56088
London Borough of Sutton,23/05/2024,50497078,"4,123.67",Choice Support,GRANTS & EX GRATIA PAYMENTS,People's Services,Supported Living,A56088
London Borough of Sutton,23/05/2024,50497078,509.07,Choice Support,GRANTS & EX GRATIA PAYMENTS,People's Services,Supported Living,A56088
London Borough of Sutton,23/05/2024,50497078,117.88,Choice Support,GRANTS & EX GRATIA PAYMENTS,People's Services,Supported Living,A56088
London Borough of Sutton,23/05/2024,50497084,"1,280.22",Choice Support,GRANTS & EX GRATIA PAYMENTS,People's Services,Supported Living,A56088
London Borough of Sutton,23/05/2024,50497084,"5,780.34",Choice Support,GRANTS & EX GRATIA PAYMENTS,People's Services,Supported Living,A56088
London Borough of Sutton,23/05/2024,50497084,"1,179.24",Choice Support,GRANTS & EX GRATIA PAYMENTS,People's Services,Supported Living,A56088
London Borough of Sutton,23/05/2024,50497085,"1,280.22",Choice Support,GRANTS & EX GRATIA PAYMENTS,People's Services,Supported Living,A56088
London Borough of Sutton,23/05/2024,50497085,"3,375.10",Choice Support,GRANTS & EX GRATIA PAYMENTS,People's Services,Supported Living,A56088
London Borough of Sutton,23/05/2024,50497085,"1,179.24",Choice Support,GRANTS & EX GRATIA PAYMENTS,People's Services,Supported Living,A56088
London Borough of Sutton,23/05/2024,50497091,543.12,Choice Support,GRANTS & EX GRATIA PAYMENTS,People's Services,Supported Living,A56088
London Borough of Sutton,23/05/2024,50497091,440.69,Choice Support,GRANTS & EX GRATIA PAYMENTS,People's Services,Supported Living,A56088
London Borough of Sutton,23/05/2024,50497091,"2,094.90",Choice Support,GRANTS & EX GRATIA PAYMENTS,People's Services,Supported Living,A56088
London Borough of Sutton,23/05/2024,50497095,"2,133.68",Choice Support,GRANTS & EX GRATIA PAYMENTS,People's Services,Supported Living,A56088
London Borough of Sutton,23/05/2024,50497095,"1,179.24",Choice Support,GRANTS & EX GRATIA PAYMENTS,People's Services,Supported Living,A56088
London Borough of Sutton,23/05/2024,50497095,"1,280.22",Choice Support,GRANTS & EX GRATIA PAYMENTS,People's Services,Supported Living,A56088
London Borough of Sutton,23/05/2024,50497097,"1,492.03",Choice Support,GRANTS & EX GRATIA PAYMENTS,People's Services,Supported Living,A56088
London Borough of Sutton,23/05/2024,50497097,509.07,Choice Support,GRANTS & EX GRATIA PAYMENTS,People's Services,Supported Living,A56088
London Borough of Sutton,23/05/2024,50497097,648.29,Choice Support,GRANTS & EX GRATIA PAYMENTS,People's Services,Supported Living,A56088
London Borough of Sutton,23/05/2024,50497097,"3,945.99",Choice Support,GRANTS & EX GRATIA PAYMENTS,People's Services,Supported Living,A56088
London Borough of Sutton,23/05/2024,50497101,"1,280.22",Choice Support,GRANTS & EX GRATIA PAYMENTS,People's Services,Supported Living,A56088
London Borough of Sutton,23/05/2024,50497101,"5,663.96",Choice Support,GRANTS & EX GRATIA PAYMENTS,People's Services,Supported Living,A56088
London Borough of Sutton,23/05/2024,50497101,"1,179.24",Choice Support,GRANTS & EX GRATIA PAYMENTS,People's Services,Supported Living,A56088
London Borough of Sutton,23/05/2024,50497103,"1,280.22",Choice Support,GRANTS & EX GRATIA PAYMENTS,People's Services,Supported Living,A56088
London Borough of Sutton,23/05/2024,50497103,"3,491.48",Choice Support,GRANTS & EX GRATIA PAYMENTS,People's Services,Supported Living,A56088
London Borough of Sutton,23/05/2024,50497103,"1,179.24",Choice Support,GRANTS & EX GRATIA PAYMENTS,People's Services,Supported Living,A56088
London Borough of Sutton,23/05/2024,50497107,"3,673.81",Choice Support,GRANTS & EX GRATIA PAYMENTS,People's Services,Supported Living,A56088
London Borough of Sutton,23/05/2024,50497113,310.36,Choice Support,GRANTS & EX GRATIA PAYMENTS,People's Services,Supported Living,A56088
London Borough of Sutton,23/05/2024,50497113,440.69,Choice Support,GRANTS & EX GRATIA PAYMENTS,People's Services,Supported Living,A56088
London Borough of Sutton,23/05/2024,50497113,"2,094.90",Choice Support,GRANTS & EX GRATIA PAYMENTS,People's Services,Supported Living,A56088
London Borough of Sutton,23/05/2024,50497114,644.00,Choice Support,GRANTS & EX GRATIA PAYMENTS,People's Services,Supported Living,A56088
London Borough of Sutton,23/05/2024,50497114,"5,314.82",Choice Support,GRANTS & EX GRATIA PAYMENTS,People's Services,Supported Living,A56088
London Borough of Sutton,23/05/2024,50497114,"1,179.24",Choice Support,GRANTS & EX GRATIA PAYMENTS,People's Services,Supported Living,A56088
London Borough of Sutton,23/05/2024,50497115,"6,614.42",Choice Support,GRANTS & EX GRATIA PAYMENTS,People's Services,Supported Living,A56088
London Borough of Sutton,23/05/2024,50497115,"1,200.32",Choice Support,GRANTS & EX GRATIA PAYMENTS,People's Services,Supported Living,A56088
London Borough of Sutton,23/05/2024,50497116,581.92,Choice Support,GRANTS & EX GRATIA PAYMENTS,People's Services,Supported Living,A56088
London Borough of Sutton,23/05/2024,50497117,"1,499.52",Choice Support,GRANTS & EX GRATIA PAYMENTS,People's Services,Supported Living,A56088
London Borough of Sutton,23/05/2024,50497117,509.07,Choice Support,GRANTS & EX GRATIA PAYMENTS,People's Services,Supported Living,A56088
London Borough of Sutton,23/05/2024,50497117,117.88,Choice Support,GRANTS & EX GRATIA PAYMENTS,People's Services,Supported Living,A56088
London Borough of Sutton,23/05/2024,50497117,"2,324.25",Choice Support,GRANTS & EX GRATIA PAYMENTS,People's Services,Supported Living,A56088
London Borough of Sutton,23/05/2024,50497121,"2,549.18",Choice Support,GRANTS & EX GRATIA PAYMENTS,People's Services,Supported Living,A56088
London Borough of Sutton,23/05/2024,50497121,509.07,Choice Support,GRANTS & EX GRATIA PAYMENTS,People's Services,Supported Living,A56088
London Borough of Sutton,23/05/2024,50497121,117.88,Choice Support,GRANTS & EX GRATIA PAYMENTS,People's Services,Supported Living,A56088
London Borough of Sutton,23/05/2024,50497121,"1,874.39",Choice Support,GRANTS & EX GRATIA PAYMENTS,People's Services,Supported Living,A56088
London Borough of Sutton,23/05/2024,50497131,"1,280.22",Choice Support,GRANTS & EX GRATIA PAYMENTS,People's Services,Supported Living,A56088
London Borough of Sutton,23/05/2024,50497131,"3,413.90",Choice Support,GRANTS & EX GRATIA PAYMENTS,People's Services,Supported Living,A56088
London Borough of Sutton,23/05/2024,50497131,"1,179.24",Choice Support,GRANTS & EX GRATIA PAYMENTS,People's Services,Supported Living,A56088
London Borough of Sutton,23/05/2024,50497136,"5,470.00",Choice Support,GRANTS & EX GRATIA PAYMENTS,People's Services,Supported Living,A56088
London Borough of Sutton,23/05/2024,50497136,"1,965.14",Choice Support,GRANTS & EX GRATIA PAYMENTS,People's Services,Supported Living,A56088
London Borough of Sutton,23/05/2024,50497137,644.00,Choice Support,GRANTS & EX GRATIA PAYMENTS,People's Services,Supported Living,A56088
London Borough of Sutton,23/05/2024,50497137,"5,314.82",Choice Support,GRANTS & EX GRATIA PAYMENTS,People's Services,Supported Living,A56088
London Borough of Sutton,23/05/2024,50497137,"1,179.24",Choice Support,GRANTS & EX GRATIA PAYMENTS,People's Services,Supported Living,A56088
London Borough of Sutton,23/05/2024,50497138,581.92,Choice Support,GRANTS & EX GRATIA PAYMENTS,People's Services,Supported Living,A56088
London Borough of Sutton,23/05/2024,50497138,"5,043.26",Choice Support,GRANTS & EX GRATIA PAYMENTS,People's Services,Supported Living,A56088
London Borough of Sutton,23/05/2024,50497138,"1,200.32",Choice Support,GRANTS & EX GRATIA PAYMENTS,People's Services,Supported Living,A56088
London Borough of Sutton,23/05/2024,50497139,"1,629.36",Choice Support,GRANTS & EX GRATIA PAYMENTS,People's Services,Supported Living,A56088
London Borough of Sutton,23/05/2024,50497139,440.69,Choice Support,GRANTS & EX GRATIA PAYMENTS,People's Services,Supported Living,A56088
London Borough of Sutton,23/05/2024,50497139,"2,094.90",Choice Support,GRANTS & EX GRATIA PAYMENTS,People's Services,Supported Living,A56088
London Borough of Sutton,23/05/2024,50497142,"1,728.20",Choice Support,GRANTS & EX GRATIA PAYMENTS,People's Services,Supported Living,A56088
London Borough of Sutton,23/05/2024,50497142,509.07,Choice Support,GRANTS & EX GRATIA PAYMENTS,People's Services,Supported Living,A56088
London Borough of Sutton,23/05/2024,50497142,648.29,Choice Support,GRANTS & EX GRATIA PAYMENTS,People's Services,Supported Living,A56088
London Borough of Sutton,23/05/2024,50497142,"2,442.72",Choice Support,GRANTS & EX GRATIA PAYMENTS,People's Services,Supported Living,A56088
London Borough of Sutton,23/05/2024,50497143,509.07,Choice Support,GRANTS & EX GRATIA PAYMENTS,People's Services,Supported Living,A56088
London Borough of Sutton,23/05/2024,50497143,648.29,Choice Support,GRANTS & EX GRATIA PAYMENTS,People's Services,Supported Living,A56088
London Borough of Sutton,23/05/2024,50497143,"2,511.70",Choice Support,GRANTS & EX GRATIA PAYMENTS,People's Services,Supported Living,A56088
London Borough of Sutton,23/05/2024,50497143,"1,765.68",Choice Support,GRANTS & EX GRATIA PAYMENTS,People's Services,Supported Living,A56088
London Borough of Sutton,23/05/2024,50497155,644.00,Choice Support,GRANTS & EX GRATIA PAYMENTS,People's Services,Supported Living,A56088
London Borough of Sutton,23/05/2024,50497155,"5,120.84",Choice Support,GRANTS & EX GRATIA PAYMENTS,People's Services,Supported Living,A56088
London Borough of Sutton,23/05/2024,50497155,"1,179.24",Choice Support,GRANTS & EX GRATIA PAYMENTS,People's Services,Supported Living,A56088
London Borough of Sutton,23/05/2024,50497156,"4,888.08",Choice Support,GRANTS & EX GRATIA PAYMENTS,People's Services,Supported Living,A56088
London Borough of Sutton,23/05/2024,50497156,440.69,Choice Support,GRANTS & EX GRATIA PAYMENTS,People's Services,Supported Living,A56088
London Borough of Sutton,23/05/2024,50497156,"2,094.90",Choice Support,GRANTS & EX GRATIA PAYMENTS,People's Services,Supported Living,A56088
London Borough of Sutton,23/05/2024,50497158,"1,737.94",Choice Support,GRANTS & EX GRATIA PAYMENTS,People's Services,Supported Living,A56088
London Borough of Sutton,23/05/2024,50497158,509.07,Choice Support,GRANTS & EX GRATIA PAYMENTS,People's Services,Supported Living,A56088
London Borough of Sutton,23/05/2024,50497158,648.29,Choice Support,GRANTS & EX GRATIA PAYMENTS,People's Services,Supported Living,A56088
London Borough of Sutton,23/05/2024,50497158,"2,474.19",Choice Support,GRANTS & EX GRATIA PAYMENTS,People's Services,Supported Living,A56088
London Borough of Sutton,23/05/2024,50497162,"1,280.22",Choice Support,GRANTS & EX GRATIA PAYMENTS,People's Services,Supported Living,A56088
London Borough of Sutton,23/05/2024,50497162,"3,375.10",Choice Support,GRANTS & EX GRATIA PAYMENTS,People's Services,Supported Living,A56088
London Borough of Sutton,23/05/2024,50497162,"1,179.24",Choice Support,GRANTS & EX GRATIA PAYMENTS,People's Services,Supported Living,A56088
London Borough of Sutton,23/05/2024,50497173,581.92,Choice Support,GRANTS & EX GRATIA PAYMENTS,People's Services,Supported Living,A56088
London Borough of Sutton,23/05/2024,50497173,"4,907.48",Choice Support,GRANTS & EX GRATIA PAYMENTS,People's Services,Supported Living,A56088
London Borough of Sutton,23/05/2024,50497173,"1,200.32",Choice Support,GRANTS & EX GRATIA PAYMENTS,People's Services,Supported Living,A56088
London Borough of Sutton,23/05/2024,50497189,"1,280.22",Choice Support,GRANTS & EX GRATIA PAYMENTS,People's Services,Supported Living,A56088
London Borough of Sutton,23/05/2024,50497189,"3,569.08",Choice Support,GRANTS & EX GRATIA PAYMENTS,People's Services,Supported Living,A56088
London Borough of Sutton,23/05/2024,50497189,"1,179.24",Choice Support,GRANTS & EX GRATIA PAYMENTS,People's Services,Supported Living,A56088
London Borough of Sutton,25/04/2024,50493797,820.52,Christ Church Primary School,CHILDREN'S SERVICES - SEN SERVICES,People's Services,Top-up Funding,A51016
London Borough of Sutton,25/04/2004,50493798,"1,230.78",Christ Church Primary School,CHILDREN'S SERVICES - SEN SERVICES,People's Services,Top-up Funding,A51016
London Borough of Sutton,25/04/2024,50493799,"2,051.30",Christ Church Primary School,CHILDREN'S SERVICES - SEN SERVICES,People's Services,Top-up Funding,A51016
London Borough of Sutton,14/05/2024,50494676,600.00,Christchurch Fledgelings Pre-School,ACADEMIC INSTNS - OTHER,People's Services,SEND Inclusion funding,A60038
London Borough of Sutton,14/05/2024,50494677,"1,860.00",Christchurch Fledgelings Pre-School,ACADEMIC INSTNS - OTHER,People's Services,SEND Inclusion funding,A60038
London Borough of Sutton,17/05/2024,50495468,"6,387.83",Christchurch Fledgelings Pre-School,ACADEMIC INSTNS - OTHER,People's Services,Top-up individual funding,A60033
London Borough of Sutton,17/05/2024,50495471,"7,154.24",Christchurch Fledgelings Pre-School,ACADEMIC INSTNS - OTHER,People's Services,Top-up individual funding,A60033
London Borough of Sutton,17/05/2024,50495472,"7,409.77",Christchurch Fledgelings Pre-School,ACADEMIC INSTNS - OTHER,People's Services,Top-up individual funding,A60033
London Borough of Sutton,17/05/2024,50495473,"9,342.18",Christchurch Fledgelings Pre-School,ACADEMIC INSTNS - OTHER,People's Services,Top-up individual funding,A60033
London Borough of Sutton,31/05/2024,50499043,"14,812.20",Christchurch Fledgelings Pre-School,ACADEMIC INSTNS - OTHER,People's Services,Payment - Nursery Funding,A51056
London Borough of Sutton,31/05/2024,50499167,"4,687.65",Christchurch Fledgelings Pre-School,ACADEMIC INSTNS - OTHER,People's Services,Payment - Nursery Funding,A51056
London Borough of Sutton,30/05/2024,50498831,567.74,REDACTED - PERSONAL DATA,CHILDREN'S SERVICES - FOSTERING & ADOPTION SERVICES,People's Services,Holiday Allowances,A56013
London Borough of Sutton,31/05/2024,50499124,854.55,REDACTED - PERSONAL DATA,GRANTS & EX GRATIA PAYMENTS,People's Services,Payment - Nursery Funding,A51056
London Borough of Sutton,31/05/2024,50499098,547.20,REDACTED - PERSONAL DATA,CHILDMINDERS START UP GRANT,People's Services,Payment - Nursery Funding,A51056
London Borough of Sutton,08/05/2024,20076811,"1,096.98",KEYNYONS ESTATE AGENTS,GRANTS & EX GRATIA PAYMENTS,Environment Housing and Neighbourhoods,Temporary Protection - Homeless Persons,A62028
London Borough of Sutton,01/02/2024,20075770,"2,027.71",Chroma Vision Limited,AGRICULTURAL & ESTATE SERVICES,Environment Housing and Neighbourhoods,Other Capital Expenditure,C20002
London Borough of Sutton,09/05/2024,20075917,"3,042.68",Chroma Vision Limited,AGRICULTURAL & ESTATE SERVICES,People's Services,Payments to Contractors,C14000
London Borough of Sutton,10/05/2024,20076019,"9,040.81",Chroma Vision Limited,AGRICULTURAL & ESTATE SERVICES,People's Services,Payments to Contractors,C14000
London Borough of Sutton,16/05/2024,20076428,"13,437.99",Chroma Vision Limited,AGRICULTURAL & ESTATE SERVICES,Environment Housing and Neighbourhoods,Other Capital Expenditure,C20002
London Borough of Sutton,27/03/2024,20076541,"1,150.00",CIPFA,SUBSCRIPTIONS & PUBLICATIONS,Resources,Staff Professional Membership Fees Non Payroll,A15025
London Borough of Sutton,07/05/2024,50491189,"18,230.40",Barrow Hedges Primary School Academy,GRANTS & EX GRATIA PAYMENTS,People's Services,Payment - Nursery Funding,A51056
London Borough of Sutton,24/05/2024,50498862,"2,000.00",Barrow Hedges Primary School Academy,GRANTS & EX GRATIA PAYMENTS,People's Services,Top Up Additional Support,A60015
London Borough of Sutton,24/05/2024,50498863,"2,000.00",Barrow Hedges Primary School Academy,GRANTS & EX GRATIA PAYMENTS,People's Services,Top Up Additional Support,A60015
London Borough of Sutton,31/05/2024,50498978,"18,230.40",Barrow Hedges Primary School Academy,GRANTS & EX GRATIA PAYMENTS,People's Services,Payment - Nursery Funding,A51056
London Borough of Sutton,31/05/2024,50499009,900.00,Barrow Hedges Primary School Academy,GRANTS & EX GRATIA PAYMENTS,People's Services,SEND Inclusion funding,A60038
London Borough of Sutton,03/05/2024,20075620,"4,468.30",City of London Corporation,CENTRAL & LOCAL GOVERNMENT,Environment Housing and Neighbourhoods,Hazardous Waste Disposal,A56069
London Borough of Sutton,01/05/2024,20075298,972.00,Cityglen Ltd,ACCOMMODATION BED & BREAKFAST,People's Services,Approved Lodgings,A61000
London Borough of Sutton,01/05/2024,20075367,"21,536.00",Cityglen Ltd,ACCOMMODATION BED & BREAKFAST,Environment Housing and Neighbourhoods,Bed & Breakfast,A56000
London Borough of Sutton,09/04/2024,20075685,"1,630.00",Civica UK Ltd,BUSINESS & COMPUTER SYSTEMS,Resources,IT Software Purchase,A45040
London Borough of Sutton,10/05/2024,20076335,"2,130.00",CJA Property Consulting Limited,OFFICE SERVICES,Resources,External Fees and Consultants,C20000
London Borough of Sutton,03/05/2024,50491059,500.00,REDACTED - PERSONAL DATA,GRANTS & EX GRATIA PAYMENTS,Environment Housing and Neighbourhoods,"Grants, Contributions & Donations",A47005
London Borough of Sutton,15/04/2024,20076341,"1,680.00",REDACTED - PERSONAL DATA,SOCIAL SERVICES - DIRECT PAYMENTS,People's Services,Education Allowance,A60008
London Borough of Sutton,10/05/2024,50492889,"5,200.00",Claremont Care Svs Ltd,SOCIAL SERVICES RESIDENTIAL,People's Services,Nursing Care - Ext Provider,A56025
London Borough of Sutton,10/05/2024,50492889,-878.84,Claremont Care Svs Ltd,SOCIAL SERVICES RESIDENTIAL,People's Services,Nursing Care - 3rd party top up payment,A56023
London Borough of Sutton,10/05/2024,50492957,"6,236.76",Claremont Care Svs Ltd,SOCIAL SERVICES RESIDENTIAL,People's Services,Nursing Care - Ext Provider,A56025
London Borough of Sutton,10/05/2024,50492957,-836.76,Claremont Care Svs Ltd,SOCIAL SERVICES RESIDENTIAL,People's Services,Nursing Care - 3rd party top up payment,A56023
London Borough of Sutton,10/05/2024,50492962,-878.84,Claremont Care Svs Ltd,SOCIAL SERVICES RESIDENTIAL,People's Services,Nursing Care - 3rd party top up payment,A56023
London Borough of Sutton,10/05/2024,50492962,"7,836.00",Claremont Care Svs Ltd,SOCIAL SERVICES RESIDENTIAL,People's Services,Nursing Care - Ext Provider,A56025
London Borough of Sutton,10/05/2024,50493058,"6,278.84",Claremont Care Svs Ltd,SOCIAL SERVICES RESIDENTIAL,People's Services,Nursing Care - Ext Provider,A56025
London Borough of Sutton,10/05/2024,50493058,-876.68,Claremont Care Svs Ltd,SOCIAL SERVICES RESIDENTIAL,People's Services,Nursing Care - 3rd party top up payment,A56023
London Borough of Sutton,10/05/2024,50493062,"6,900.00",Claremont Care Svs Ltd,SOCIAL SERVICES RESIDENTIAL,People's Services,Nursing Care - Ext Provider,A56025
London Borough of Sutton,10/05/2024,50493062,"-3,450.00",Claremont Care Svs Ltd,SOCIAL SERVICES RESIDENTIAL,People's Services,Nursing Care - 3rd party top up payment,A56023
London Borough of Sutton,10/05/2024,50493193,"4,525.36",Claremont Care Svs Ltd,SOCIAL SERVICES RESIDENTIAL,People's Services,Nursing Care - Ext Provider,A56025
London Borough of Sutton,10/05/2024,50493193,-750.40,Claremont Care Svs Ltd,SOCIAL SERVICES RESIDENTIAL,People's Services,Nursing Care - 3rd party top up payment,A56023
London Borough of Sutton,10/05/2024,50492632,-735.68,Bondcare (London) Ltd,SOCIAL SERVICES RESIDENTIAL,People's Services,Nursing Care - 3rd party top up payment,A56023
London Borough of Sutton,10/05/2024,50492632,"3,720.16",Bondcare (London) Ltd,SOCIAL SERVICES RESIDENTIAL,People's Services,Nursing Care - Ext Provider,A56025
London Borough of Sutton,15/04/2024,50494652,"2,132.77",Clear Thinking Care Limited,SOCIAL SERVICES RESIDENTIAL,People's Services,Supported Living,A56088
London Borough of Sutton,26/04/2024,50494653,"2,132.77",Clear Thinking Care Limited,SOCIAL SERVICES RESIDENTIAL,People's Services,Supported Living,A56088
London Borough of Sutton,22/04/2024,50494654,"2,132.77",Clear Thinking Care Limited,SOCIAL SERVICES RESIDENTIAL,People's Services,Supported Living,A56088
London Borough of Sutton,29/04/2024,50494655,"2,132.77",Clear Thinking Care Limited,SOCIAL SERVICES RESIDENTIAL,People's Services,Supported Living,A56088
London Borough of Sutton,13/05/2024,50495445,"2,132.77",Clear Thinking Care Limited,SOCIAL SERVICES RESIDENTIAL,People's Services,Supported Living,A56088
London Borough of Sutton,06/05/2024,50497052,"2,132.77",Clear Thinking Care Limited,SOCIAL SERVICES RESIDENTIAL,People's Services,Supported Living,A56088
London Borough of Sutton,31/01/2024,20076734,"4,125.00",Clearway Environmental Services (UK) Limited,CONSTRUCTION INDUSTRY,HRA,Payments to Contractors,C14000
London Borough of Sutton,15/04/2024,20075358,608.95,Clemlec Group LTD,BUILDING MNTCE - SERVICES,Environment Housing and Neighbourhoods,Grants Given For Capital Purposes,C20004
London Borough of Sutton,08/04/2024,20076206,"1,578.50",Clemlec Group LTD,BUILDING MNTCE - SERVICES,Environment Housing and Neighbourhoods,Grants Given For Capital Purposes,C20004
London Borough of Sutton,14/05/2024,20076600,"12,874.00",Clemlec Group LTD,BUILDING MNTCE - SERVICES,Environment Housing and Neighbourhoods,Grants Given For Capital Purposes,C20004
London Borough of Sutton,23/05/2024,50497127,"5,384.34",CLIA CARE LTD,SOCIAL SERVICES RESIDENTIAL,People's Services,Supported Living,A56088
London Borough of Sutton,23/05/2024,50497127,"-2,692.17",CLIA CARE LTD,SOCIAL SERVICES RESIDENTIAL,People's Services,Nursing Care - 3rd party top up payment,A56023
London Borough of Sutton,23/05/2024,50497169,"1,097.01",CLIA CARE LTD,SOCIAL SERVICES RESIDENTIAL,People's Services,Supported Living,A56088
London Borough of Sutton,23/05/2024,50497169,731.60,CLIA CARE LTD,SOCIAL SERVICES RESIDENTIAL,People's Services,Supported Living,A56088
London Borough of Sutton,23/05/2024,50497169,"3,886.47",CLIA CARE LTD,SOCIAL SERVICES RESIDENTIAL,People's Services,Supported Living,A56088
London Borough of Sutton,23/05/2024,50497169,"2,859.75",CLIA CARE LTD,SOCIAL SERVICES RESIDENTIAL,People's Services,One to One Care,A56108
London Borough of Sutton,23/05/2024,50497169,"-4,287.43",CLIA CARE LTD,SOCIAL SERVICES RESIDENTIAL,People's Services,Nursing Care - 3rd party top up payment,A56023
London Borough of Sutton,23/05/2024,50497191,"7,450.72",CLIA CARE LTD,SOCIAL SERVICES RESIDENTIAL,People's Services,Supported Living,A56088
London Borough of Sutton,23/05/2024,50497191,"-3,725.35",CLIA CARE LTD,SOCIAL SERVICES RESIDENTIAL,People's Services,Nursing Care - 3rd party top up payment,A56023
London Borough of Sutton,14/05/2023,20076221,"1,450.00",Client Account,SUNDRY SUPPLIER - HOUSING,Environment Housing and Neighbourhoods,Rent Deposit Scheme,B32179
London Borough of Sutton,14/05/2023,20076221,"1,673.00",Client Account,SUNDRY SUPPLIER - HOUSING,Environment Housing and Neighbourhoods,Rent Deposit Scheme,B32179
London Borough of Sutton,28/04/2024,50491671,568.50,Clovecare Ltd,SOCIAL SERVICES RESIDENTIAL,People's Services,Home Care Services,A56019
London Borough of Sutton,19/05/2024,50498455,502.93,Clovecare Ltd,SOCIAL SERVICES RESIDENTIAL,People's Services,Home Care Services,A56019
London Borough of Sutton,10/05/2024,50492656,"4,234.16",Coast Care Homes Ltd,SOCIAL SERVICES RESIDENTIAL,People's Services,Residential Care - Ext Provider,A56114
London Borough of Sutton,10/05/2024,50492701,"12,960.16",Cognithan Ltd,SOCIAL SERVICES RESIDENTIAL,People's Services,Residential Care - Ext Provider,A56114
London Borough of Sutton,13/05/2024,20076164,756.00,Cognus Ltd,LEGAL & PROFESSIONAL SERVICES,People's Services,Staff Development And Training,A15022
London Borough of Sutton,13/05/2024,20076165,756.00,Cognus Ltd,LEGAL & PROFESSIONAL SERVICES,People's Services,Staff Development And Training,A15022
London Borough of Sutton,10/05/2024,50492764,"11,981.04",Coleg Elidyr Camphill Communities,CHILDREN'S SERVICES - RESIDENTIAL,People's Services,Residential Care - Ext Provider,A56114
London Borough of Sutton,31/05/2024,50499044,"13,430.25",Collingwood School Ltd,GRANTS & EX GRATIA PAYMENTS,People's Services,Payment - Nursery Funding,A51056
London Borough of Sutton,02/05/2024,50491917,"2,937.87",Comfort Care Services UK Ltd,SOCIAL SERVICES - DIRECT PAYMENTS,People's Services,Supported Living,A56088
London Borough of Sutton,02/05/2024,50491918,"2,843.10",Comfort Care Services UK Ltd,SOCIAL SERVICES - DIRECT PAYMENTS,People's Services,Supported Living,A56088
London Borough of Sutton,02/05/2024,50491922,"2,843.10",Comfort Care Services UK Ltd,SOCIAL SERVICES - DIRECT PAYMENTS,People's Services,Supported Living,A56088
London Borough of Sutton,02/05/2024,50491922,"-1,421.57",Comfort Care Services UK Ltd,SOCIAL SERVICES - DIRECT PAYMENTS,People's Services,Nursing Care - 3rd party top up payment,A56023
London Borough of Sutton,02/05/2024,50491923,"2,937.87",Comfort Care Services UK Ltd,SOCIAL SERVICES - DIRECT PAYMENTS,People's Services,Supported Living,A56088
London Borough of Sutton,02/05/2024,50491923,"-1,468.96",Comfort Care Services UK Ltd,SOCIAL SERVICES - DIRECT PAYMENTS,People's Services,Nursing Care - 3rd party top up payment,A56023
London Borough of Sutton,13/05/2024,20076121,"275,400.00",Community Action Sutton,GRANTS & EX GRATIA PAYMENTS,Resources,Provider Contract Payments,A44290
London Borough of Sutton,13/05/2024,20076122,"65,000.00",Community Action Sutton,GRANTS & EX GRATIA PAYMENTS,Resources,"Grants, Contributions & Donations",A47005
London Borough of Sutton,15/05/2024,20076321,"2,321.33",Community Action Sutton,GRANTS & EX GRATIA PAYMENTS,Health and Wellbeing,Community Initiatives,A44288
London Borough of Sutton,01/04/2024,50492555,"3,592.20",Compass Fostering London Ltd,CHILDREN'S SERVICES - FOSTERING & ADOPTION SERVICES,People's Services,Foster Parents Support,A44110
London Borough of Sutton,01/04/2024,50492563,"3,704.70",Compass Fostering London Ltd,CHILDREN'S SERVICES - FOSTERING & ADOPTION SERVICES,People's Services,Foster Parents Support,A44110
London Borough of Sutton,01/04/2024,50492564,"3,831.60",Compass Fostering London Ltd,CHILDREN'S SERVICES - FOSTERING & ADOPTION SERVICES,People's Services,Foster Parents Support,A44110
London Borough of Sutton,31/05/2024,50497639,"6,163.80",Compass Fostering South Ltd,CHILDREN'S SERVICES - FOSTERING & ADOPTION SERVICES,People's Services,Foster Parents Support,A44110
London Borough of Sutton,30/04/2024,50492532,"7,071.43",Concept Care & Support Ltd,CHILDREN'S SERVICE - OTHER,People's Services,Approved Lodgings,A61000
London Borough of Sutton,01/05/2024,50492588,"4,028.57",Connect Fostering Services Ltd,CHILDREN'S SERVICES - FOSTERING & ADOPTION SERVICES,People's Services,Foster Parents Support,A44110
London Borough of Sutton,01/05/2024,50492621,"4,028.57",Connect Fostering Services Ltd,CHILDREN'S SERVICES - FOSTERING & ADOPTION SERVICES,People's Services,Foster Parents Support,A44110
London Borough of Sutton,31/05/2024,50499087,"14,287.50",Little PioneersSsutton,GRANTS & EX GRATIA PAYMENTS,People's Services,Payment - Nursery Funding,A51056
London Borough of Sutton,31/05/2024,50499220,"10,372.50",Little PioneersSsutton,GRANTS & EX GRATIA PAYMENTS,People's Services,Payment - Nursery Funding,A51056
London Borough of Sutton,30/01/2024,20075484,"1,450.80",Coram Academy Ltd,CONFERENCES,People's Services,Registration & Licence Fees Payable,A44267
London Borough of Sutton,30/04/2024,20077182,"7,305.00",Corelogic UK Ltd,TEMP STAFF & CONSULTANCY,HRA,External Fees and Consultants,C20000
London Borough of Sutton,30/04/2024,20075485,"6,588.52",CPC Project Services LLP,LEGAL & PROFESSIONAL SERVICES,HRA,External Fees and Consultants,C20000
London Borough of Sutton,30/05/2024,50498832,567.74,REDACTED - PERSONAL DATA,FOSTER PARENTS,People's Services,Holiday Allowances,A56013
London Borough of Sutton,29/04/2024,50492522,267.86,Cranmead Ltd,CHILDREN'S SERVICE - OTHER,People's Services,Approved Lodgings,A61000
London Borough of Sutton,29/04/2024,50492522,"6,300.00",Cranmead Ltd,CHILDREN'S SERVICE - OTHER,People's Services,Approved Lodgings,A61000
London Borough of Sutton,01/05/2024,20075698,"154,067.08",Cranstoun,SOCIAL SERVICES - OTHER,Health and Wellbeing,Provider Contract Payments,A44290
London Borough of Sutton,01/04/2024,20075699,"154,067.08",Cranstoun,SOCIAL SERVICES - OTHER,Health and Wellbeing,Provider Contract Payments,A44290
London Borough of Sutton,10/05/2024,50492746,"7,584.16",Cream 1 Ltd,SOCIAL SERVICES RESIDENTIAL,People's Services,Residential Care - Ext Provider,A56114
London Borough of Sutton,10/05/2024,50492746,"5,560.52",Cream 1 Ltd,SOCIAL SERVICES RESIDENTIAL,People's Services,One to One Care,A56108
London Borough of Sutton,09/04/2024,50492590,"6,732.86",Credo Care Limited,CHILDREN'S SERVICE - OTHER,People's Services,Foster Parents Support,A44110
London Borough of Sutton,26/04/2024,50490346,"21,445.84",Cressey Oasis Education Ltd,CHILDREN'S SERVICES - RESIDENTIAL,People's Services,Independent School Fees,A56002
London Borough of Sutton,26/04/2024,50490347,"21,445.84",Cressey Oasis Education Ltd,CHILDREN'S SERVICES - RESIDENTIAL,People's Services,Independent School Fees,A56002
London Borough of Sutton,10/05/2024,50492829,"5,400.00",CRNH Ltd  ,SOCIAL SERVICES RESIDENTIAL,People's Services,Nursing Care - Ext Provider,A56025
London Borough of Sutton,10/05/2024,50492829,-836.76,CRNH Ltd  ,SOCIAL SERVICES RESIDENTIAL,People's Services,Nursing Care - 3rd party top up payment,A56023
London Borough of Sutton,10/05/2024,50492848,-836.76,CRNH Ltd  ,SOCIAL SERVICES RESIDENTIAL,People's Services,Nursing Care - 3rd party top up payment,A56023
London Borough of Sutton,10/05/2024,50492848,"12,784.00",CRNH Ltd  ,SOCIAL SERVICES RESIDENTIAL,People's Services,Nursing Care Short Term,A56026
London Borough of Sutton,10/05/2024,50492892,"4,560.00",CRNH Ltd  ,SOCIAL SERVICES RESIDENTIAL,People's Services,Nursing Care - Ext Provider,A56025
London Borough of Sutton,10/05/2024,50492892,-878.84,CRNH Ltd  ,SOCIAL SERVICES RESIDENTIAL,People's Services,Nursing Care - 3rd party top up payment,A56023
London Borough of Sutton,10/05/2024,50492896,"4,096.12",CRNH Ltd  ,SOCIAL SERVICES RESIDENTIAL,People's Services,Nursing Care - Ext Provider,A56025
London Borough of Sutton,10/05/2024,50492896,-878.84,CRNH Ltd  ,SOCIAL SERVICES RESIDENTIAL,People's Services,Nursing Care - 3rd party top up payment,A56023
London Borough of Sutton,10/05/2024,50492969,"4,096.12",CRNH Ltd  ,SOCIAL SERVICES RESIDENTIAL,People's Services,Nursing Care - Ext Provider,A56025
London Borough of Sutton,10/05/2024,50492969,-878.84,CRNH Ltd  ,SOCIAL SERVICES RESIDENTIAL,People's Services,Nursing Care - 3rd party top up payment,A56023
London Borough of Sutton,10/05/2024,50493031,-836.76,CRNH Ltd  ,SOCIAL SERVICES RESIDENTIAL,People's Services,Nursing Care - 3rd party top up payment,A56023
London Borough of Sutton,10/05/2024,50493031,"5,400.00",CRNH Ltd  ,SOCIAL SERVICES RESIDENTIAL,People's Services,Nursing Care Short Term,A56026
London Borough of Sutton,10/05/2024,50493067,"21,499.24",CRNH Ltd  ,SOCIAL SERVICES RESIDENTIAL,People's Services,Nursing Care - Ext Provider,A56025
London Borough of Sutton,10/05/2024,50493067,"-3,989.03",CRNH Ltd  ,SOCIAL SERVICES RESIDENTIAL,People's Services,Nursing Care - 3rd party top up payment,A56023
London Borough of Sutton,10/05/2024,50493131,"4,096.12",CRNH Ltd  ,SOCIAL SERVICES RESIDENTIAL,People's Services,Nursing Care - Ext Provider,A56025
London Borough of Sutton,10/05/2024,50493131,-878.84,CRNH Ltd  ,SOCIAL SERVICES RESIDENTIAL,People's Services,Nursing Care - 3rd party top up payment,A56023
London Borough of Sutton,30/04/2024,20076298,"20,315.00",Cromwood Limited,ACCOMMODATION BED & BREAKFAST,Environment Housing and Neighbourhoods,Bed & Breakfast,A56000
London Borough of Sutton,10/05/2024,50492956,"4,096.12",Cross Care Services Ltd,SOCIAL SERVICES RESIDENTIAL,People's Services,Nursing Care - Ext Provider,A56025
London Borough of Sutton,10/05/2024,50492956,-878.84,Cross Care Services Ltd,SOCIAL SERVICES RESIDENTIAL,People's Services,Nursing Care - 3rd party top up payment,A56023
London Borough of Sutton,10/05/2024,50493002,-878.84,Cross Care Services Ltd,SOCIAL SERVICES RESIDENTIAL,People's Services,Nursing Care - 3rd party top up payment,A56023
London Borough of Sutton,10/05/2024,50493002,"4,096.12",Cross Care Services Ltd,SOCIAL SERVICES RESIDENTIAL,People's Services,Nursing Care - Ext Provider,A56025
London Borough of Sutton,10/05/2024,50493042,"4,096.12",Cross Care Services Ltd,SOCIAL SERVICES RESIDENTIAL,People's Services,Nursing Care - Ext Provider,A56025
London Borough of Sutton,10/05/2024,50493042,-878.84,Cross Care Services Ltd,SOCIAL SERVICES RESIDENTIAL,People's Services,Nursing Care - 3rd party top up payment,A56023
London Borough of Sutton,10/05/2024,50493106,"4,096.12",Cross Care Services Ltd,SOCIAL SERVICES RESIDENTIAL,People's Services,Nursing Care - Ext Provider,A56025
London Borough of Sutton,10/05/2024,50493106,-878.84,Cross Care Services Ltd,SOCIAL SERVICES RESIDENTIAL,People's Services,Nursing Care - 3rd party top up payment,A56023
London Borough of Sutton,10/05/2024,50493150,"-13,357.14",Cross Care Services Ltd,SOCIAL SERVICES RESIDENTIAL,People's Services,Nursing Care Short Term,A56026
London Borough of Sutton,10/05/2024,50493150,"19,914.29",Cross Care Services Ltd,SOCIAL SERVICES RESIDENTIAL,People's Services,Nursing Care - Ext Provider,A56025
London Borough of Sutton,10/05/2024,50493150,-878.84,Cross Care Services Ltd,SOCIAL SERVICES RESIDENTIAL,People's Services,Nursing Care - 3rd party top up payment,A56023
London Borough of Sutton,10/05/2024,50493151,"4,096.12",Cross Care Services Ltd,SOCIAL SERVICES RESIDENTIAL,People's Services,Nursing Care - Ext Provider,A56025
London Borough of Sutton,10/05/2024,50493151,-878.84,Cross Care Services Ltd,SOCIAL SERVICES RESIDENTIAL,People's Services,Nursing Care - 3rd party top up payment,A56023
London Borough of Sutton,28/03/2024,20074204,"7,679.74",London Borough of Croydon,CENTRAL & LOCAL GOVERNMENT,People's Services,Payments to Other Local Authorities,A51005
London Borough of Sutton,30/04/2024,20075586,"887,547.01",London Borough of Croydon,CENTRAL & LOCAL GOVERNMENT,Environment Housing and Neighbourhoods,Waste Contractor Payment,A56057
London Borough of Sutton,01/02/2024,20076047,"13,650.00",London Borough of Croydon,CENTRAL & LOCAL GOVERNMENT,Resources,Building Rents,A22005
London Borough of Sutton,17/04/2024,50490326,"4,349.86",London Borough of Croydon,CENTRAL & LOCAL GOVERNMENT,People's Services,Childrens Social Care Transport,A32009
London Borough of Sutton,30/04/2024,20075345,"1,950.00",Croydon Court Ltd,ACCOMMODATION BED & BREAKFAST,Environment Housing and Neighbourhoods,Bed & Breakfast,A56000
London Borough of Sutton,10/05/2024,50492799,"8,118.44",CSS Ltd,SOCIAL SERVICES RESIDENTIAL,People's Services,Residential Care - Ext Provider,A56114
London Borough of Sutton,30/04/2024,20075356,695.00,Cubiquity Limited,OFFICE SERVICES,Resources,Printing,A43010
London Borough of Sutton,24/04/2024,20074938,"24,123.00",Culvers House Primary School,SCHOOL FUNDS,People's Services,Payments to Contractors,C14000
London Borough of Sutton,07/05/2024,50491196,"10,858.50",Culvers House Primary School,SCHOOL FUNDS,People's Services,Payment - Nursery Funding,A51056
London Borough of Sutton,07/05/2024,50491229,"185,016.98",Culvers House Primary School,SCHOOL FUNDS,People's Services,Payments to Schools,A51013
London Borough of Sutton,07/05/2024,50491283,"5,002.50",Culvers House Primary School,SCHOOL FUNDS,People's Services,Payment - Covid 19 Recovery Premium,A51039
London Borough of Sutton,31/05/2024,50498985,"10,858.50",Culvers House Primary School,SCHOOL FUNDS,People's Services,Payment - Nursery Funding,A51056
London Borough of Sutton,10/05/2024,50492641,"4,800.00",Curado Limited,GRANTS & EX GRATIA PAYMENTS,People's Services,Interim Placements - Ext Provider,A56102
London Borough of Sutton,10/05/2024,50492709,"6,400.00",Curado Limited,GRANTS & EX GRATIA PAYMENTS,People's Services,Residential Care - Ext Provider,A56114
London Borough of Sutton,10/05/2024,50492754,"6,400.00",Curado Limited,GRANTS & EX GRATIA PAYMENTS,People's Services,Residential Care - Ext Provider,A56114
London Borough of Sutton,23/05/2024,50497071,"-3,587.14",Curado Limited,GRANTS & EX GRATIA PAYMENTS,People's Services,Nursing Care - 3rd party top up payment,A56023
London Borough of Sutton,23/05/2024,50497071,"5,978.58",Curado Limited,GRANTS & EX GRATIA PAYMENTS,People's Services,Supported Living,A56088
London Borough of Sutton,23/05/2024,50497186,"9,707.14",Curado Limited,GRANTS & EX GRATIA PAYMENTS,People's Services,Supported Living,A56088
London Borough of Sutton,10/05/2024,50492680,"7,884.00",Cygnet Learning Disabilities Midlands Ltd,SOCIAL SERVICES RESIDENTIAL,People's Services,Residential Care - Ext Provider,A56114
London Borough of Sutton,10/05/2024,50492680,-846.40,Cygnet Learning Disabilities Midlands Ltd,SOCIAL SERVICES RESIDENTIAL,People's Services,Residential Care - Client Cont ( Net Paymt ),A56113
London Borough of Sutton,09/05/2024,20076002,822.00,D G Servicing Ltd,GRANTS & EX GRATIA PAYMENTS,Environment Housing and Neighbourhoods,Grants Given For Capital Purposes,C20004
London Borough of Sutton,11/05/2024,20075993,805.00,REDACTED - PERSONAL DATA,GRANTS & EX GRATIA PAYMENTS,Environment Housing and Neighbourhoods,Temporary Protection - Homeless Persons,A62028
London Borough of Sutton,30/05/2024,50498833,567.74,REDACTED - PERSONAL DATA,CHILDREN'S SERVICES - FOSTERING & ADOPTION SERVICES,People's Services,Holiday Allowances,A56013
London Borough of Sutton,23/05/2024,50497060,"2,646.08",Daret Healthcare UK Limited,SOCIAL SERVICES RESIDENTIAL,People's Services,Supported Living,A56088
London Borough of Sutton,30/04/2024,20075318,960.00,Dariba Design Limited,CONSULTING ARCHITECTS ENGINEER,Environment Housing and Neighbourhoods,Grants Given For Capital Purposes,C20004
London Borough of Sutton,28/04/2024,20075335,858.00,Dariba Design Limited,CONSULTING ARCHITECTS ENGINEER,Environment Housing and Neighbourhoods,Grants Given For Capital Purposes,C20004
London Borough of Sutton,24/04/2024,20075717,720.00,Dariba Design Limited,CONSULTING ARCHITECTS ENGINEER,HRA,Payments to Contractors,C14000
London Borough of Sutton,24/04/2024,20075718,720.00,Dariba Design Limited,CONSULTING ARCHITECTS ENGINEER,HRA,Payments to Contractors,C14000
London Borough of Sutton,29/03/2024,20075946,"2,229.46",Dariba Design Limited,CONSULTING ARCHITECTS ENGINEER,Environment Housing and Neighbourhoods,Grants Given For Capital Purposes,C20004
London Borough of Sutton,06/04/2024,20076205,"1,405.96",Dariba Design Limited,CONSULTING ARCHITECTS ENGINEER,Environment Housing and Neighbourhoods,Grants Given For Capital Purposes,C20004
London Borough of Sutton,01/04/2024,20075478,785.73,Angel Lettings,ACCOMMODATION BED & BREAKFAST,Environment Housing and Neighbourhoods,Temporary Protection - Homeless Persons,A62028
London Borough of Sutton,01/05/2024,20075480,785.73,Angel Lettings,ACCOMMODATION BED & BREAKFAST,Environment Housing and Neighbourhoods,Temporary Protection - Homeless Persons,A62028
London Borough of Sutton,30/05/2024,50498835,567.74,REDACTED - PERSONAL DATA,CHILDREN'S SERVICES - FOSTERING & ADOPTION SERVICES,People's Services,Holiday Allowances,A56013
London Borough of Sutton,31/05/2024,50499218,"3,409.20",REDACTED - PERSONAL DATA,CHILDMINDERS START UP GRANT,People's Services,Payment - Nursery Funding,A51056
London Borough of Sutton,30/04/2024,20075423,"6,600.00",Dellhome Limited,ACCOMMODATION BED & BREAKFAST,Environment Housing and Neighbourhoods,Bed & Breakfast,A56000
London Borough of Sutton,02/05/2024,20075678,"36,329.00",Delta Wise Limited,ACCOMMODATION BED & BREAKFAST,Environment Housing and Neighbourhoods,Bed & Breakfast,A56000
London Borough of Sutton,10/05/2024,50492763,"3,505.00",Denville Hall 2012,SOCIAL SERVICES RESIDENTIAL,People's Services,Residential Care - Ext Provider,A56114
London Borough of Sutton,07/05/2024,50491197,"7,722.00",Devonshire Primary School,SCHOOL FUNDS,People's Services,Payment - Nursery Funding,A51056
London Borough of Sutton,07/05/2024,50491222,"278,784.50",Devonshire Primary School,SCHOOL FUNDS,People's Services,Payments to Schools,A51013
London Borough of Sutton,07/05/2024,50491286,"6,996.25",Devonshire Primary School,SCHOOL FUNDS,People's Services,Payment - Covid 19 Recovery Premium,A51039
London Borough of Sutton,29/05/2024,50498892,"6,917.42",Devonshire Primary School,SCHOOL FUNDS,People's Services,Top-up Funding,A51016
London Borough of Sutton,31/05/2024,50498986,"7,722.00",Devonshire Primary School,SCHOOL FUNDS,People's Services,Payment - Nursery Funding,A51056
London Borough of Sutton,09/05/2024,20075945,495.00,Dewberry Redpoint Ltd,MANAGEMENT & TRAINING SERVICES,Resources,Staff Development And Training,A15022
London Borough of Sutton,03/05/2024,50493792,680.60,Direct Care And Support Services,ACCOMMODATION - OTHER,People's Services,Supported Living,A56088
London Borough of Sutton,03/05/2024,50493792,"-1,401.61",Direct Care And Support Services,ACCOMMODATION - OTHER,People's Services,Supported Living,A56088
London Borough of Sutton,03/05/2024,50493792,"1,307.32",Direct Care And Support Services,ACCOMMODATION - OTHER,People's Services,Supported Living,A56088
London Borough of Sutton,03/05/2024,50493793,"-2,649.87",Direct Care And Support Services,ACCOMMODATION - OTHER,People's Services,Supported Living,A56088
London Borough of Sutton,03/05/2024,50493793,"1,835.48",Direct Care And Support Services,ACCOMMODATION - OTHER,People's Services,Supported Living,A56088
London Borough of Sutton,03/05/2024,50493793,"1,400.70",Direct Care And Support Services,ACCOMMODATION - OTHER,People's Services,Supported Living,A56088
London Borough of Sutton,03/05/2024,50493794,"-2,434.13",Direct Care And Support Services,ACCOMMODATION - OTHER,People's Services,Supported Living,A56088
London Borough of Sutton,03/05/2024,50493794,"1,713.12",Direct Care And Support Services,ACCOMMODATION - OTHER,People's Services,Supported Living,A56088
London Borough of Sutton,03/05/2024,50493794,"1,307.32",Direct Care And Support Services,ACCOMMODATION - OTHER,People's Services,Supported Living,A56088
London Borough of Sutton,03/05/2024,50493795,"-2,434.13",Direct Care And Support Services,ACCOMMODATION - OTHER,People's Services,Supported Living,A56088
London Borough of Sutton,03/05/2024,50493795,"1,713.12",Direct Care And Support Services,ACCOMMODATION - OTHER,People's Services,Supported Living,A56088
London Borough of Sutton,03/05/2024,50493795,"1,307.32",Direct Care And Support Services,ACCOMMODATION - OTHER,People's Services,Supported Living,A56088
London Borough of Sutton,03/05/2024,50493796,"-2,434.13",Direct Care And Support Services,ACCOMMODATION - OTHER,People's Services,Supported Living,A56088
London Borough of Sutton,03/05/2024,50493796,"1,713.12",Direct Care And Support Services,ACCOMMODATION - OTHER,People's Services,Supported Living,A56088
London Borough of Sutton,03/05/2024,50493796,"1,307.32",Direct Care And Support Services,ACCOMMODATION - OTHER,People's Services,Supported Living,A56088
London Borough of Sutton,03/05/2024,50493870,"2,279.52",Direct Care And Support Services,ACCOMMODATION - OTHER,People's Services,Supported Living,A56088
London Borough of Sutton,03/05/2024,50493870,"1,307.32",Direct Care And Support Services,ACCOMMODATION - OTHER,People's Services,Supported Living,A56088
London Borough of Sutton,03/05/2024,50493870,"2,169.28",Direct Care And Support Services,ACCOMMODATION - OTHER,People's Services,Supported Living,A56088
London Borough of Sutton,03/05/2024,50493871,"2,324.00",Direct Care And Support Services,ACCOMMODATION - OTHER,People's Services,Supported Living,A56088
London Borough of Sutton,03/05/2024,50493871,697.20,Direct Care And Support Services,ACCOMMODATION - OTHER,People's Services,Supported Living,A56088
London Borough of Sutton,03/05/2024,50493871,"1,307.32",Direct Care And Support Services,ACCOMMODATION - OTHER,People's Services,Supported Living,A56088
London Borough of Sutton,03/05/2024,50493873,"2,279.52",Direct Care And Support Services,ACCOMMODATION - OTHER,People's Services,Supported Living,A56088
London Borough of Sutton,03/05/2024,50493873,"1,307.32",Direct Care And Support Services,ACCOMMODATION - OTHER,People's Services,Supported Living,A56088
London Borough of Sutton,03/05/2024,50493873,"2,169.28",Direct Care And Support Services,ACCOMMODATION - OTHER,People's Services,Supported Living,A56088
London Borough of Sutton,03/05/2024,50493874,"2,324.00",Direct Care And Support Services,ACCOMMODATION - OTHER,People's Services,Supported Living,A56088
London Borough of Sutton,03/05/2024,50493874,697.20,Direct Care And Support Services,ACCOMMODATION - OTHER,People's Services,Supported Living,A56088
London Borough of Sutton,03/05/2024,50493874,"1,307.32",Direct Care And Support Services,ACCOMMODATION - OTHER,People's Services,Supported Living,A56088
London Borough of Sutton,03/05/2024,50493875,"2,324.00",Direct Care And Support Services,ACCOMMODATION - OTHER,People's Services,Supported Living,A56088
London Borough of Sutton,03/05/2024,50493875,697.20,Direct Care And Support Services,ACCOMMODATION - OTHER,People's Services,Supported Living,A56088
London Borough of Sutton,03/05/2024,50493875,"1,307.32",Direct Care And Support Services,ACCOMMODATION - OTHER,People's Services,Supported Living,A56088
London Borough of Sutton,03/05/2024,50493876,"2,324.00",Direct Care And Support Services,ACCOMMODATION - OTHER,People's Services,Supported Living,A56088
London Borough of Sutton,03/05/2024,50493876,697.20,Direct Care And Support Services,ACCOMMODATION - OTHER,People's Services,Supported Living,A56088
London Borough of Sutton,03/05/2024,50493876,"1,307.32",Direct Care And Support Services,ACCOMMODATION - OTHER,People's Services,Supported Living,A56088
London Borough of Sutton,03/05/2024,50493877,"2,279.52",Direct Care And Support Services,ACCOMMODATION - OTHER,People's Services,Supported Living,A56088
London Borough of Sutton,03/05/2024,50493877,"1,307.32",Direct Care And Support Services,ACCOMMODATION - OTHER,People's Services,Supported Living,A56088
London Borough of Sutton,03/05/2024,50493877,"2,169.28",Direct Care And Support Services,ACCOMMODATION - OTHER,People's Services,Supported Living,A56088
London Borough of Sutton,03/05/2024,50493878,"2,279.52",Direct Care And Support Services,ACCOMMODATION - OTHER,People's Services,Supported Living,A56088
London Borough of Sutton,03/05/2024,50493878,"1,307.32",Direct Care And Support Services,ACCOMMODATION - OTHER,People's Services,Supported Living,A56088
London Borough of Sutton,03/05/2024,50493878,"2,169.28",Direct Care And Support Services,ACCOMMODATION - OTHER,People's Services,Supported Living,A56088
London Borough of Sutton,03/05/2024,50493879,"2,279.52",Direct Care And Support Services,ACCOMMODATION - OTHER,People's Services,Supported Living,A56088
London Borough of Sutton,03/05/2024,50493879,"1,307.32",Direct Care And Support Services,ACCOMMODATION - OTHER,People's Services,Supported Living,A56088
London Borough of Sutton,03/05/2024,50493879,"2,169.28",Direct Care And Support Services,ACCOMMODATION - OTHER,People's Services,Supported Living,A56088
London Borough of Sutton,03/05/2024,50493927,"1,892.40",Direct Care And Support Services,ACCOMMODATION - OTHER,People's Services,Supported Living,A56088
London Borough of Sutton,03/05/2024,50493927,"-1,306.09",Direct Care And Support Services,ACCOMMODATION - OTHER,People's Services,Supported Living,A56088
London Borough of Sutton,03/05/2024,50493928,"1,892.40",Direct Care And Support Services,ACCOMMODATION - OTHER,People's Services,Supported Living,A56088
London Borough of Sutton,03/05/2024,50493928,"-1,306.09",Direct Care And Support Services,ACCOMMODATION - OTHER,People's Services,Supported Living,A56088
London Borough of Sutton,03/05/2024,50493929,"2,076.99",Direct Care And Support Services,ACCOMMODATION - OTHER,People's Services,Supported Living,A56088
London Borough of Sutton,03/05/2024,50493929,"1,307.32",Direct Care And Support Services,ACCOMMODATION - OTHER,People's Services,Supported Living,A56088
London Borough of Sutton,03/05/2024,50493929,"1,082.32",Direct Care And Support Services,ACCOMMODATION - OTHER,People's Services,Supported Living,A56088
London Borough of Sutton,03/05/2024,50493930,"2,076.99",Direct Care And Support Services,ACCOMMODATION - OTHER,People's Services,Supported Living,A56088
London Borough of Sutton,03/05/2024,50493930,"1,307.32",Direct Care And Support Services,ACCOMMODATION - OTHER,People's Services,Supported Living,A56088
London Borough of Sutton,03/05/2024,50493930,"1,082.32",Direct Care And Support Services,ACCOMMODATION - OTHER,People's Services,Supported Living,A56088
London Borough of Sutton,03/05/2024,50493931,"2,076.99",Direct Care And Support Services,ACCOMMODATION - OTHER,People's Services,Supported Living,A56088
London Borough of Sutton,03/05/2024,50493931,"1,307.32",Direct Care And Support Services,ACCOMMODATION - OTHER,People's Services,Supported Living,A56088
London Borough of Sutton,03/05/2024,50493931,"1,082.32",Direct Care And Support Services,ACCOMMODATION - OTHER,People's Services,Supported Living,A56088
London Borough of Sutton,03/05/2024,50493932,"2,076.99",Direct Care And Support Services,ACCOMMODATION - OTHER,People's Services,Supported Living,A56088
London Borough of Sutton,03/05/2024,50493932,"1,307.32",Direct Care And Support Services,ACCOMMODATION - OTHER,People's Services,Supported Living,A56088
London Borough of Sutton,03/05/2024,50493932,"1,082.32",Direct Care And Support Services,ACCOMMODATION - OTHER,People's Services,Supported Living,A56088
London Borough of Sutton,03/05/2024,50495227,"1,534.39",Direct Care And Support Services,ACCOMMODATION - OTHER,People's Services,Supported Living,A56088
London Borough of Sutton,03/05/2024,50495227,"2,168.64",Direct Care And Support Services,ACCOMMODATION - OTHER,People's Services,Supported Living,A56088
London Borough of Sutton,03/05/2024,50495228,"1,534.39",Direct Care And Support Services,ACCOMMODATION - OTHER,People's Services,Supported Living,A56088
London Borough of Sutton,03/05/2024,50495228,"2,168.64",Direct Care And Support Services,ACCOMMODATION - OTHER,People's Services,Supported Living,A56088
London Borough of Sutton,03/05/2024,50495229,"1,534.39",Direct Care And Support Services,ACCOMMODATION - OTHER,People's Services,Supported Living,A56088
London Borough of Sutton,03/05/2024,50495229,"2,168.64",Direct Care And Support Services,ACCOMMODATION - OTHER,People's Services,Supported Living,A56088
London Borough of Sutton,03/05/2024,50495365,"1,534.39",Direct Care And Support Services,ACCOMMODATION - OTHER,People's Services,Supported Living,A56088
London Borough of Sutton,03/05/2024,50495365,"2,168.64",Direct Care And Support Services,ACCOMMODATION - OTHER,People's Services,Supported Living,A56088
London Borough of Sutton,07/05/2024,50495427,"2,324.00",Direct Care And Support Services,ACCOMMODATION - OTHER,People's Services,Supported Living,A56088
London Borough of Sutton,07/05/2024,50495427,697.20,Direct Care And Support Services,ACCOMMODATION - OTHER,People's Services,Supported Living,A56088
London Borough of Sutton,07/05/2024,50495427,"1,307.32",Direct Care And Support Services,ACCOMMODATION - OTHER,People's Services,Supported Living,A56088
London Borough of Sutton,03/05/2024,50495431,"2,801.32",Direct Care And Support Services,ACCOMMODATION - OTHER,People's Services,Supported Living,A56088
London Borough of Sutton,03/05/2024,50495431,"1,082.32",Direct Care And Support Services,ACCOMMODATION - OTHER,People's Services,Supported Living,A56088
London Borough of Sutton,03/05/2024,50495432,"3,199.71",Direct Care And Support Services,ACCOMMODATION - OTHER,People's Services,Supported Living,A56088
London Borough of Sutton,03/05/2024,50495432,"1,084.32",Direct Care And Support Services,ACCOMMODATION - OTHER,People's Services,Supported Living,A56088
London Borough of Sutton,03/05/2024,50495433,"3,199.71",Direct Care And Support Services,ACCOMMODATION - OTHER,People's Services,Supported Living,A56088
London Borough of Sutton,03/05/2024,50495433,"1,084.32",Direct Care And Support Services,ACCOMMODATION - OTHER,People's Services,Supported Living,A56088
London Borough of Sutton,03/05/2024,50495434,"3,199.71",Direct Care And Support Services,ACCOMMODATION - OTHER,People's Services,Supported Living,A56088
London Borough of Sutton,03/05/2024,50495434,"1,084.32",Direct Care And Support Services,ACCOMMODATION - OTHER,People's Services,Supported Living,A56088
London Borough of Sutton,03/05/2024,50495435,"3,199.71",Direct Care And Support Services,ACCOMMODATION - OTHER,People's Services,Supported Living,A56088
London Borough of Sutton,03/05/2024,50495435,"1,084.32",Direct Care And Support Services,ACCOMMODATION - OTHER,People's Services,Supported Living,A56088
London Borough of Sutton,07/05/2024,50495436,"2,076.99",Direct Care And Support Services,ACCOMMODATION - OTHER,People's Services,Supported Living,A56088
London Borough of Sutton,07/05/2024,50495436,"1,307.32",Direct Care And Support Services,ACCOMMODATION - OTHER,People's Services,Supported Living,A56088
London Borough of Sutton,07/05/2024,50495436,"1,082.32",Direct Care And Support Services,ACCOMMODATION - OTHER,People's Services,Supported Living,A56088
London Borough of Sutton,03/05/2024,50495437,"3,199.71",Direct Care And Support Services,ACCOMMODATION - OTHER,People's Services,Supported Living,A56088
London Borough of Sutton,03/05/2024,50495437,"1,084.32",Direct Care And Support Services,ACCOMMODATION - OTHER,People's Services,Supported Living,A56088
London Borough of Sutton,03/05/2024,50495438,"2,801.32",Direct Care And Support Services,ACCOMMODATION - OTHER,People's Services,Supported Living,A56088
London Borough of Sutton,03/05/2024,50495438,"1,082.32",Direct Care And Support Services,ACCOMMODATION - OTHER,People's Services,Supported Living,A56088
London Borough of Sutton,03/05/2024,50495439,"2,801.32",Direct Care And Support Services,ACCOMMODATION - OTHER,People's Services,Supported Living,A56088
London Borough of Sutton,03/05/2024,50495439,"1,082.32",Direct Care And Support Services,ACCOMMODATION - OTHER,People's Services,Supported Living,A56088
London Borough of Sutton,03/05/2024,50495440,"2,801.32",Direct Care And Support Services,ACCOMMODATION - OTHER,People's Services,Supported Living,A56088
London Borough of Sutton,03/05/2024,50495440,"1,082.32",Direct Care And Support Services,ACCOMMODATION - OTHER,People's Services,Supported Living,A56088
London Borough of Sutton,03/05/2024,50495441,"2,465.43",Direct Care And Support Services,ACCOMMODATION - OTHER,People's Services,Supported Living,A56088
London Borough of Sutton,03/05/2024,50495441,"1,307.32",Direct Care And Support Services,ACCOMMODATION - OTHER,People's Services,Supported Living,A56088
London Borough of Sutton,03/05/2024,50495442,"2,465.43",Direct Care And Support Services,ACCOMMODATION - OTHER,People's Services,Supported Living,A56088
London Borough of Sutton,03/05/2024,50495442,"1,307.32",Direct Care And Support Services,ACCOMMODATION - OTHER,People's Services,Supported Living,A56088
London Borough of Sutton,03/05/2024,50495443,"2,465.43",Direct Care And Support Services,ACCOMMODATION - OTHER,People's Services,Supported Living,A56088
London Borough of Sutton,03/05/2024,50495443,"1,307.32",Direct Care And Support Services,ACCOMMODATION - OTHER,People's Services,Supported Living,A56088
London Borough of Sutton,03/05/2024,50495444,"2,465.43",Direct Care And Support Services,ACCOMMODATION - OTHER,People's Services,Supported Living,A56088
London Borough of Sutton,03/05/2024,50495444,"1,307.32",Direct Care And Support Services,ACCOMMODATION - OTHER,People's Services,Supported Living,A56088
London Borough of Sutton,07/05/2024,50497041,"1,534.39",Direct Care And Support Services,ACCOMMODATION - OTHER,People's Services,Supported Living,A56088
London Borough of Sutton,07/05/2024,50497041,"2,168.64",Direct Care And Support Services,ACCOMMODATION - OTHER,People's Services,Supported Living,A56088
London Borough of Sutton,07/05/2024,50498827,"2,465.43",Direct Care And Support Services,ACCOMMODATION - OTHER,People's Services,Supported Living,A56088
London Borough of Sutton,07/05/2024,50498827,"1,307.32",Direct Care And Support Services,ACCOMMODATION - OTHER,People's Services,Supported Living,A56088
London Borough of Sutton,27/04/2024,20076757,938.34,REDACTED - PERSONAL DATA,PLS LANDLORDS,Environment Housing and Neighbourhoods,Temporary Protection - Homeless Persons,A62028
London Borough of Sutton,09/05/2024,20076042,"7,382.00",Dolphin Mobility Ltd,GRANTS & EX GRATIA PAYMENTS,Environment Housing and Neighbourhoods,Grants Given For Capital Purposes,C20004
London Borough of Sutton,31/05/2024,50499050,"1,424.25",REDACTED - PERSONAL DATA,GRANTS & EX GRATIA PAYMENTS,People's Services,Payment - Nursery Funding,A51056
London Borough of Sutton,31/05/2024,50499174,"1,244.70",REDACTED - PERSONAL DATA,GRANTS & EX GRATIA PAYMENTS,People's Services,Payment - Nursery Funding,A51056
London Borough of Sutton,07/05/2024,50491198,"24,057.00",Dorchester Primary School,SCHOOL FUNDS,People's Services,Payment - Nursery Funding,A51056
London Borough of Sutton,07/05/2024,50491224,"208,466.11",Dorchester Primary School,SCHOOL FUNDS,People's Services,Payments to Schools,A51013
London Borough of Sutton,07/05/2024,50491293,"3,552.50",Dorchester Primary School,SCHOOL FUNDS,People's Services,Payment - Covid 19 Recovery Premium,A51039
London Borough of Sutton,15/05/2024,50495481,770.00,Dorchester Primary School,SCHOOL FUNDS,People's Services,Top Up Additional Support,A60015
London Borough of Sutton,15/05/2024,50495482,"1,695.00",Dorchester Primary School,SCHOOL FUNDS,People's Services,Top Up Additional Support,A60015
London Borough of Sutton,29/05/2024,50498893,"2,675.24",Dorchester Primary School,SCHOOL FUNDS,People's Services,Top-up Funding,A51016
London Borough of Sutton,31/05/2024,50498987,"24,057.00",Dorchester Primary School,SCHOOL FUNDS,People's Services,Payment - Nursery Funding,A51056
London Borough of Sutton,31/05/2024,50499015,"3,000.00",Dorchester Primary School,SCHOOL FUNDS,People's Services,SEND Inclusion funding,A60038
London Borough of Sutton,02/05/2024,20076023,980.00,REDACTED - PERSONAL DATA,TCES RETAILERS (PHARMACYS),Health and Wellbeing,Provider Contract Payments,A44290
London Borough of Sutton,30/04/2024,20075316,638.10,REDACTED - PERSONAL DATA,"SOCIAL SERVICES - DOLS, GUM & BIA ASSESSMENTS",People's Services,Client Related Assessments,A56017
London Borough of Sutton,26/04/2024,20075497,"7,404.80",Dramabuds,ENTERTAINMENTS INDUSTRY,Resources,Provider Contract Payments,A44290
London Borough of Sutton,02/05/2024,20075579,"2,939.20",Dreamfo Housing Ltd,CHILDREN'S SERVICE - OTHER,People's Services,Approved Lodgings,A61000
London Borough of Sutton,02/04/2024,50491561,"4,340.04",Dreamfo Housing Ltd,CHILDREN'S SERVICE - OTHER,People's Services,Accommodation - Supported Living,A62001
London Borough of Sutton,02/04/2024,50491561,276.79,Dreamfo Housing Ltd,CHILDREN'S SERVICE - OTHER,People's Services,Accommodation - Supported Living,A62001
London Borough of Sutton,02/05/2024,50492512,"4,199.99",Dreamfo Housing Ltd,CHILDREN'S SERVICE - OTHER,People's Services,Accommodation - Supported Living,A62001
London Borough of Sutton,02/05/2024,50492512,307.29,Dreamfo Housing Ltd,CHILDREN'S SERVICE - OTHER,People's Services,Accommodation - Supported Living,A62001
London Borough of Sutton,08/05/2024,20075954,433.70,DSI Billing Services Ltd,OFFICE SERVICES,Resources,Postage & Couriers,A45015
London Borough of Sutton,08/05/2024,20075954,433.70,DSI Billing Services Ltd,OFFICE SERVICES,Resources,Postage & Couriers,A45015
London Borough of Sutton,07/05/2024,20075966,501.64,DSI Billing Services Ltd,OFFICE SERVICES,Resources,Printing,A43010
London Borough of Sutton,07/05/2024,20075967,"4,197.18",DSI Billing Services Ltd,OFFICE SERVICES,Resources,Printing,A43010
London Borough of Sutton,25/03/2024,20076159,"18,875.95",DSI Billing Services Ltd,OFFICE SERVICES,Resources,Postage & Couriers,A45015
London Borough of Sutton,25/03/2024,20076159,"18,875.96",DSI Billing Services Ltd,OFFICE SERVICES,Resources,Postage & Couriers,A45015
London Borough of Sutton,15/05/2024,20076328,877.94,DSI Billing Services Ltd,OFFICE SERVICES,Resources,Postage & Couriers,A45015
London Borough of Sutton,15/05/2024,20076328,877.94,DSI Billing Services Ltd,OFFICE SERVICES,Resources,Postage & Couriers,A45015
London Borough of Sutton,01/05/2024,20075512,"1,542.86",Dunfield & Mead Ltd,CHILDREN'S SERVICES - RESIDENTIAL,People's Services,Approved Lodgings,A61000
London Borough of Sutton,01/05/2024,20075513,"2,778.57",Dunfield & Mead Ltd,CHILDREN'S SERVICES - RESIDENTIAL,People's Services,Approved Lodgings,A61000
London Borough of Sutton,01/05/2024,20075514,"1,560.71",Dunfield & Mead Ltd,CHILDREN'S SERVICES - RESIDENTIAL,People's Services,Approved Lodgings,A61000
London Borough of Sutton,01/05/2024,20075515,"3,203.57",Dunfield & Mead Ltd,CHILDREN'S SERVICES - RESIDENTIAL,People's Services,Approved Lodgings,A61000
London Borough of Sutton,01/05/2024,20075516,"1,335.71",Dunfield & Mead Ltd,CHILDREN'S SERVICES - RESIDENTIAL,People's Services,Approved Lodgings,A61000
London Borough of Sutton,01/05/2024,20075517,"1,560.71",Dunfield & Mead Ltd,CHILDREN'S SERVICES - RESIDENTIAL,People's Services,Approved Lodgings,A61000
London Borough of Sutton,01/04/2024,20076277,"1,257.14",Dunfield & Mead Ltd,CHILDREN'S SERVICES - RESIDENTIAL,People's Services,Approved Lodgings,A61000
London Borough of Sutton,01/04/2024,50492570,307.29,Dunfield & Mead Ltd,CHILDREN'S SERVICES - RESIDENTIAL,People's Services,Approved Lodgings,A61000
London Borough of Sutton,01/04/2024,50492570,"3,535.70",Dunfield & Mead Ltd,CHILDREN'S SERVICES - RESIDENTIAL,People's Services,Approved Lodgings,A61000
London Borough of Sutton,01/04/2024,50492571,307.29,Dunfield & Mead Ltd,CHILDREN'S SERVICES - RESIDENTIAL,People's Services,Accommodation - Supported Living,A62001
London Borough of Sutton,01/04/2024,50492571,"4,071.42",Dunfield & Mead Ltd,CHILDREN'S SERVICES - RESIDENTIAL,People's Services,Accommodation - Supported Living,A62001
London Borough of Sutton,01/04/2024,50492600,307.29,Dunfield & Mead Ltd,CHILDREN'S SERVICES - RESIDENTIAL,People's Services,Accommodation - Supported Living,A62001
London Borough of Sutton,01/04/2024,50492600,"3,535.70",Dunfield & Mead Ltd,CHILDREN'S SERVICES - RESIDENTIAL,People's Services,Accommodation - Supported Living,A62001
London Borough of Sutton,10/05/2024,50492767,"3,016.00",Dunheved Lodge,SOCIAL SERVICES RESIDENTIAL,People's Services,One to One Care,A56108
London Borough of Sutton,10/05/2024,50492767,"3,187.44",Dunheved Lodge,SOCIAL SERVICES RESIDENTIAL,People's Services,Residential Care - Ext Provider,A56114
London Borough of Sutton,28/04/2024,50493639,"1,050.00",DWT Windows & Doors,CONSTRUCTION INDUSTRY,HRA,Payments to Contractors,C14000
London Borough of Sutton,28/04/2024,50493640,"1,050.00",DWT Windows & Doors,CONSTRUCTION INDUSTRY,HRA,Payments to Contractors,C14000
London Borough of Sutton,28/04/2024,50493641,840.00,DWT Windows & Doors,CONSTRUCTION INDUSTRY,HRA,Payments to Contractors,C14000
London Borough of Sutton,28/04/2024,50493642,840.00,DWT Windows & Doors,CONSTRUCTION INDUSTRY,HRA,Payments to Contractors,C14000
London Borough of Sutton,28/04/2024,50493643,840.00,DWT Windows & Doors,CONSTRUCTION INDUSTRY,HRA,Payments to Contractors,C14000
London Borough of Sutton,28/04/2024,50493644,"1,050.00",DWT Windows & Doors,CONSTRUCTION INDUSTRY,HRA,Payments to Contractors,C14000
London Borough of Sutton,28/04/2024,50493645,"1,140.00",DWT Windows & Doors,CONSTRUCTION INDUSTRY,HRA,Payments to Contractors,C14000
London Borough of Sutton,28/04/2024,50493646,"1,180.00",DWT Windows & Doors,CONSTRUCTION INDUSTRY,HRA,Payments to Contractors,C14000
London Borough of Sutton,28/04/2024,50493647,"1,050.00",DWT Windows & Doors,CONSTRUCTION INDUSTRY,HRA,Payments to Contractors,C14000
London Borough of Sutton,28/04/2024,50493648,"3,620.00",DWT Windows & Doors,CONSTRUCTION INDUSTRY,HRA,Payments to Contractors,C14000
London Borough of Sutton,28/04/2024,50493649,"1,050.00",DWT Windows & Doors,CONSTRUCTION INDUSTRY,HRA,Payments to Contractors,C14000
London Borough of Sutton,28/04/2024,50493650,"1,050.00",DWT Windows & Doors,CONSTRUCTION INDUSTRY,HRA,Payments to Contractors,C14000
London Borough of Sutton,28/04/2024,50493651,"1,050.00",DWT Windows & Doors,CONSTRUCTION INDUSTRY,HRA,Payments to Contractors,C14000
London Borough of Sutton,28/04/2024,50493652,"1,050.00",DWT Windows & Doors,CONSTRUCTION INDUSTRY,HRA,Payments to Contractors,C14000
London Borough of Sutton,28/04/2024,50493653,"1,890.00",DWT Windows & Doors,CONSTRUCTION INDUSTRY,HRA,Payments to Contractors,C14000
London Borough of Sutton,28/04/2024,50493654,840.00,DWT Windows & Doors,CONSTRUCTION INDUSTRY,HRA,Payments to Contractors,C14000
London Borough of Sutton,28/04/2024,50493655,"1,050.00",DWT Windows & Doors,CONSTRUCTION INDUSTRY,HRA,Payments to Contractors,C14000
London Borough of Sutton,24/05/2024,50498648,"1,050.00",DWT Windows & Doors,CONSTRUCTION INDUSTRY,HRA,Payments to Contractors,C14000
London Borough of Sutton,24/05/2024,50498649,"1,050.00",DWT Windows & Doors,CONSTRUCTION INDUSTRY,HRA,Payments to Contractors,C14000
London Borough of Sutton,23/05/2024,50498650,"3,330.00",DWT Windows & Doors,CONSTRUCTION INDUSTRY,HRA,Payments to Contractors,C14000
London Borough of Sutton,24/05/2024,50498651,"2,940.00",DWT Windows & Doors,CONSTRUCTION INDUSTRY,HRA,Payments to Contractors,C14000
London Borough of Sutton,24/05/2024,50498652,"1,050.00",DWT Windows & Doors,CONSTRUCTION INDUSTRY,HRA,Payments to Contractors,C14000
London Borough of Sutton,24/05/2024,50498653,"1,050.00",DWT Windows & Doors,CONSTRUCTION INDUSTRY,HRA,Payments to Contractors,C14000
London Borough of Sutton,20/04/2024,20075731,"5,480.35",Dynamic Care Ltd,SOCIAL SERVICES RESIDENTIAL,People's Services,Approved Lodgings,A61000
London Borough of Sutton,20/05/2024,20076722,"4,375.00",Dynamic Care Ltd,SOCIAL SERVICES RESIDENTIAL,People's Services,Approved Lodgings,A61000
London Borough of Sutton,20/05/2024,20076723,"1,958.71",Dynamic Care Ltd,SOCIAL SERVICES RESIDENTIAL,People's Services,Approved Lodgings,A61000
London Borough of Sutton,30/04/2024,50492507,267.86,Dynamic Care Ltd,SOCIAL SERVICES RESIDENTIAL,People's Services,Approved Lodgings,A61000
London Borough of Sutton,30/04/2024,50492507,"5,785.70",Dynamic Care Ltd,SOCIAL SERVICES RESIDENTIAL,People's Services,Approved Lodgings,A61000
London Borough of Sutton,30/04/2024,50492520,267.86,Dynamic Care Ltd,SOCIAL SERVICES RESIDENTIAL,People's Services,Approved Lodgings,A61000
London Borough of Sutton,30/04/2024,50492520,"4,714.27",Dynamic Care Ltd,SOCIAL SERVICES RESIDENTIAL,People's Services,Approved Lodgings,A61000
London Borough of Sutton,07/05/2024,20075675,495.66,E & R Moffat Ltd,CONSTRUCTION INDUSTRY,Resources,Equipment And Materials Purchase,A40000
London Borough of Sutton,30/04/2024,20075788,"14,912.00",E Homes And Shelters,ACCOMMODATION BED & BREAKFAST,Environment Housing and Neighbourhoods,Bed & Breakfast,A56000
London Borough of Sutton,10/05/2024,50492857,"3,821.24",Eastcroft Nursing Home,SOCIAL SERVICES RESIDENTIAL,People's Services,Nursing Care Short Term,A56026
